Body Name,Mapped No,Cleansed Supplier Name,Family Category,Sub Category,Ap Net Value,Ap Tax Valve,Ap Gross Value,Paid Date,Cleansed Portfolio
Nottinghamshire County Council,03-00010,ENNSTONE JOHNSTON LIMITED,External Services (Highways & Culture),Earth & Stone Aggregates ,0,0.01,0.01,20-Jun-11,TBC
Nottinghamshire County Council,03-00015,AGGREGATE INDUSTRIES UK,External Services (Highways & Culture),Earth & Stone Aggregates ,0,-0.01,-0.01,13-Jun-11,TBC
Nottinghamshire County Council,03-00021,BRITISH GAS TRADING LIMITED,Hard Facilities Management ,Utilities,0,0.1,0.1,02-Jun-11,TBC
Nottinghamshire County Council,03-00022,ENNSTONE JOHNSTON LIMITED,External Services (Highways & Culture),Earth & Stone Aggregates ,0,0.01,0.01,20-Jun-11,TBC
Nottinghamshire County Council,03-00023,TARMAC CENTRAL LIMITED,External Services (Highways & Culture),Highways & Works,0,-0.01,-0.01,02-Jun-11,TBC
Nottinghamshire County Council,03-00032,LINCOLNSHIRE ICES,Soft Facilities Management,Frozen Goods,0,139.8,139.8,08-Jun-11,TBC
Nottinghamshire County Council,03-00034,INVESTEC ASSET FINANCE PLC,Professional Services,Financial & Insurance Services,0,-0.05,-0.05,21-Jun-11,TBC
Nottinghamshire County Council,03-00049,THE POST AND COLUMN CO LIMITED,Hard Facilities Management ,Building & Construction Supplies,0,0.01,0.01,08-Jun-11,TBC
Nottinghamshire County Council,03-00067,BATCHMIX LIMITED,Hard Facilities Management ,Concrete Installation & Repair Services,0,-0.01,-0.01,20-Jun-11,TBC
Nottinghamshire County Council,03-00079,XMA LIMITED,ICT,Computer Equipment & Accessories,0,-0.01,-0.01,03-Jun-11,TBC
Nottinghamshire County Council,03-00088,BUDGETING SOLUTIONS LTD,ICT,Software,0,150,150,30-Jun-11,TBC
Nottinghamshire County Council,03-00099,SPORT 981,External Services (Highways & Culture),Sports & Recreational Equipment & Supplies,0,199.99,199.99,06-Jun-11,TBC
Nottinghamshire County Council,03-00118,HEMPSALL CONSULTANCIES LIMITED,Professional Services,Consultancy,0,140,140,02-Jun-11,TBC
Nottinghamshire County Council,03-00119,SYNETRIX LIMITED,ICT,Communications Devices & Accessories,0,859.26,859.26,13-Jun-11,TBC
Nottinghamshire County Council,03-00125,MERIDIAN BUSINESS SUPPORT LIMITED,People,Recruitment,0,131.61,131.61,01-Jun-11,TBC
Nottinghamshire County Council,03-00126,MERIDIAN BUSINESS SUPPORT LIMITED,People,Recruitment,0,121.55,121.55,01-Jun-11,TBC
Nottinghamshire County Council,03-00154,TARMAC CENTRAL LIMITED,External Services (Highways & Culture),Highways & Works,0,-0.01,-0.01,01-Jun-11,TBC
Nottinghamshire County Council,03-00155,TARMAC CENTRAL LIMITED,External Services (Highways & Culture),Highways & Works,0,-0.01,-0.01,01-Jun-11,TBC
Nottinghamshire County Council,03-00173,TARMAC CENTRAL LIMITED,External Services (Highways & Culture),Highways & Works,0,-0.01,-0.01,01-Jun-11,TBC
Nottinghamshire County Council,03-00174,TARMAC CENTRAL LIMITED,External Services (Highways & Culture),Highways & Works,0,-0.01,-0.01,01-Jun-11,TBC
Nottinghamshire County Council,03-00177,MEDICARE FIRST,Care,Medical Equipment &  Supplies,0,292.3,292.3,01-Jun-11,TBC
Nottinghamshire County Council,03-00178,MEDICARE FIRST,Care,Medical Equipment &  Supplies,0,292.3,292.3,01-Jun-11,TBC
Nottinghamshire County Council,03-00179,BARKER AND SHELDON,Hard Facilities Management ,Electrical Systems & Lighting,0,-0.01,-0.01,03-Jun-11,TBC
Nottinghamshire County Council,03-00190,RAI TECHNICAL LIMITED,Hard Facilities Management ,Tools & General Machinery,0,-0.01,-0.01,03-Jun-11,TBC
Nottinghamshire County Council,03-00199,TARMAC CENTRAL LIMITED,External Services (Highways & Culture),Highways & Works,0,-0.01,-0.01,07-Jun-11,TBC
Nottinghamshire County Council,03-00200,TARMAC CENTRAL LIMITED,External Services (Highways & Culture),Highways & Works,0,-0.01,-0.01,07-Jun-11,TBC
Nottinghamshire County Council,03-00223,SCHOOL SIGNS,Soft Facilities Management,Printed Media & Signage,0,597,597,01-Jun-11,TBC
Nottinghamshire County Council,03-00225,MEDICARE FIRST,Care,Medical Equipment &  Supplies,0,292.3,292.3,01-Jun-11,TBC
Nottinghamshire County Council,03-00226,MEDICARE FIRST,Care,Medical Equipment &  Supplies,0,360.19,360.19,01-Jun-11,TBC
Nottinghamshire County Council,03-00266,TARMAC CENTRAL LIMITED,External Services (Highways & Culture),Highways & Works,0,-0.01,-0.01,08-Jun-11,TBC
Nottinghamshire County Council,03-00292,TARMAC CENTRAL LIMITED,External Services (Highways & Culture),Highways & Works,0,-0.01,-0.01,08-Jun-11,TBC
Nottinghamshire County Council,03-00293,TARMAC CENTRAL LIMITED,External Services (Highways & Culture),Highways & Works,0,-0.01,-0.01,08-Jun-11,TBC
Nottinghamshire County Council,03-00339,WASTECYCLE LIMITED,Soft Facilities Management,Environmental Services,0,0.01,0.01,02-Jun-11,TBC
Nottinghamshire County Council,03-00350,PICKFORDS LIMITED,Hard Facilities Management ,Material Handling & Storage,0,84.03,84.03,03-Jun-11,TBC
Nottinghamshire County Council,03-00351,AUDIT COMMISSION,Professional Services,Politics & Civic Affairs,0,375,375,07-Jun-11,TBC
Nottinghamshire County Council,03-00352,MEDICARE FIRST,Care,Medical Equipment &  Supplies,0,319.68,319.68,01-Jun-11,TBC
Nottinghamshire County Council,03-00353,ATTENBOROUGH NATURE CENTRE LIMITED,Transport & Travel,Hotels & Venues,0,102.6,102.6,01-Jun-11,TBC
Nottinghamshire County Council,03-00362,TARMAC CENTRAL LIMITED,External Services (Highways & Culture),Highways & Works,0,-0.01,-0.01,08-Jun-11,TBC
Nottinghamshire County Council,03-00363,TARMAC CENTRAL LIMITED,External Services (Highways & Culture),Highways & Works,0,-0.01,-0.01,20-Jun-11,TBC
Nottinghamshire County Council,03-00364,TARMAC CENTRAL LIMITED,External Services (Highways & Culture),Highways & Works,0,-0.01,-0.01,08-Jun-11,TBC
Nottinghamshire County Council,03-00365,TARMAC CENTRAL LIMITED,External Services (Highways & Culture),Highways & Works,0,-0.01,-0.01,08-Jun-11,TBC
Nottinghamshire County Council,03-00366,TARMAC CENTRAL LIMITED,External Services (Highways & Culture),Highways & Works,0,-0.01,-0.01,08-Jun-11,TBC
Nottinghamshire County Council,03-00390,CAPITA SOCIAL CARE AND HOUSING,Care,Domiciliary Care,0,87.84,87.84,02-Jun-11,TBC
Nottinghamshire County Council,03-00391,PICKFORDS LIMITED,Hard Facilities Management ,Material Handling & Storage,0,118.54,118.54,01-Jun-11,TBC
Nottinghamshire County Council,03-00392,EAST MIDLANDS QUALITY CENTRE LIMITED,Care,Community & Social Services,0,304,304,30-Jun-11,TBC
Nottinghamshire County Council,03-00393,EDEN BROWN LIMITED,People,Recruitment,0,226.95,226.95,10-Jun-11,TBC
Nottinghamshire County Council,03-00394,CHRIS FEW CONSULTANCY LIMITED,Professional Services,Consultancy,0,227.26,227.26,02-Jun-11,TBC
Nottinghamshire County Council,03-00395,EDEN BROWN LIMITED,People,Recruitment,0,277.38,277.38,10-Jun-11,TBC
Nottinghamshire County Council,03-00396,EDEN BROWN LIMITED,People,Recruitment,0,315.04,315.04,10-Jun-11,TBC
Nottinghamshire County Council,03-00397,CAPITA SOCIAL CARE AND HOUSING,Care,Domiciliary Care,0,109.08,109.08,02-Jun-11,TBC
Nottinghamshire County Council,03-00474,TARMAC CENTRAL LIMITED,External Services (Highways & Culture),Highways & Works,0,-0.01,-0.01,08-Jun-11,TBC
Nottinghamshire County Council,03-00479,TARMAC CENTRAL LIMITED,External Services (Highways & Culture),Highways & Works,0,-0.01,-0.01,07-Jun-11,TBC
Nottinghamshire County Council,03-00483,TARMAC CENTRAL LIMITED,External Services (Highways & Culture),Highways & Works,0,-0.01,-0.01,14-Jun-11,TBC
Nottinghamshire County Council,03-00484,TARMAC CENTRAL LIMITED,External Services (Highways & Culture),Highways & Works,0,-0.01,-0.01,14-Jun-11,TBC
Nottinghamshire County Council,03-00485,TARMAC CENTRAL LIMITED,External Services (Highways & Culture),Highways & Works,0,-0.01,-0.01,14-Jun-11,TBC
Nottinghamshire County Council,03-00506,EGS GROUP LIMITED,Professional Services,Consultancy,0,601.82,601.82,13-Jun-11,TBC
Nottinghamshire County Council,03-00507,CAPITA SOCIAL CARE AND HOUSING,Care,Domiciliary Care,0,94.32,94.32,02-Jun-11,TBC
Nottinghamshire County Council,03-00508,CAPITA SOCIAL CARE AND HOUSING,Care,Domiciliary Care,0,106.43,106.43,02-Jun-11,TBC
Nottinghamshire County Council,03-00510,KONICA MINOLTA,ICT,"Printing & Publishing, Equipment & Supplies",0,136.69,136.69,06-Jun-11,TBC
Nottinghamshire County Council,03-00511,CARITAS RECRUITMENT,People,Recruitment,0,295.63,295.63,13-Jun-11,TBC
Nottinghamshire County Council,03-00531,XMA LIMITED,ICT,Computer Equipment & Accessories,0,-0.01,-0.01,21-Jun-11,TBC
Nottinghamshire County Council,03-00546,TARMAC CENTRAL LIMITED,External Services (Highways & Culture),Highways & Works,0,-0.01,-0.01,14-Jun-11,TBC
Nottinghamshire County Council,03-00548,TARMAC CENTRAL LIMITED,External Services (Highways & Culture),Highways & Works,0,-0.01,-0.01,14-Jun-11,TBC
Nottinghamshire County Council,03-00550,TARMAC CENTRAL LIMITED,External Services (Highways & Culture),Highways & Works,0,-0.01,-0.01,14-Jun-11,TBC
Nottinghamshire County Council,03-00551,TARMAC CENTRAL LIMITED,External Services (Highways & Culture),Highways & Works,0,-0.01,-0.01,14-Jun-11,TBC
Nottinghamshire County Council,03-00604,PERSONNEL AND CARE BANK,People,Recruitment,0,91.6,91.6,03-Jun-11,TBC
Nottinghamshire County Council,03-00605,GOLDEN RIVER TRAFFIC LIMITED,External Services (Highways & Culture),Highways & Works,0,434,434,13-Jun-11,TBC
Nottinghamshire County Council,03-00606,GEMCO SERVICE LIMITED,Hard Facilities Management ,Tools & General Machinery,0,"1,467.36","1,467.36",09-Jun-11,TBC
Nottinghamshire County Council,03-00607,CAPITA SOCIAL CARE AND HOUSING,Care,Domiciliary Care,0,113.52,113.52,02-Jun-11,TBC
Nottinghamshire County Council,03-00608,CAPITA SOCIAL CARE AND HOUSING,Care,Domiciliary Care,0,113.52,113.52,02-Jun-11,TBC
Nottinghamshire County Council,03-00609,CAPITA SOCIAL CARE AND HOUSING,Care,Domiciliary Care,0,113.52,113.52,02-Jun-11,TBC
Nottinghamshire County Council,03-00610,CAPITA SOCIAL CARE AND HOUSING,Care,Domiciliary Care,0,279.78,279.78,02-Jun-11,TBC
Nottinghamshire County Council,03-00611,EDEN BROWN LIMITED,People,Recruitment,0,111.92,111.92,10-Jun-11,TBC
Nottinghamshire County Council,03-00629,BRITISH GAS TRADING LIMITED,Hard Facilities Management ,Utilities,0,0.01,0.01,01-Jun-11,TBC
Nottinghamshire County Council,03-00642,TARMAC CENTRAL LIMITED,External Services (Highways & Culture),Highways & Works,0,-0.01,-0.01,21-Jun-11,TBC
Nottinghamshire County Council,03-00647,TARMAC CENTRAL LIMITED,External Services (Highways & Culture),Highways & Works,0,-0.01,-0.01,14-Jun-11,TBC
Nottinghamshire County Council,03-00650,TARMAC CENTRAL LIMITED,External Services (Highways & Culture),Highways & Works,0,-0.01,-0.01,16-Jun-11,TBC
Nottinghamshire County Council,03-00776,MIDLAND QUARRY PRODUCTS LIMITED,External Services (Highways & Culture),Earth & Stone Aggregates ,0,0.01,0.01,13-Jun-11,TBC
Nottinghamshire County Council,03-00818,RAI TECHNICAL LIMITED,Hard Facilities Management ,Tools & General Machinery,0,-0.01,-0.01,03-Jun-11,TBC
Nottinghamshire County Council,03-00819,RAI TECHNICAL LIMITED,Hard Facilities Management ,Tools & General Machinery,0,-0.01,-0.01,03-Jun-11,TBC
Nottinghamshire County Council,03-00841,MERIDIAN BUSINESS SUPPORT LIMITED,People,Recruitment,0,97.87,97.87,07-Jun-11,TBC
Nottinghamshire County Council,03-00842,EDEN BROWN LIMITED,People,Recruitment,0,235.06,235.06,10-Jun-11,TBC
Nottinghamshire County Council,03-00844,PICKFORDS LIMITED,Hard Facilities Management ,Material Handling & Storage,0,91.3,91.3,17-Jun-11,TBC
Nottinghamshire County Council,03-00845,MERIDIAN BUSINESS SUPPORT LIMITED,People,Recruitment,0,99.39,99.39,27-Jun-11,TBC
Nottinghamshire County Council,03-00846,EDEN BROWN LIMITED,People,Recruitment,0,235.27,235.27,03-Jun-11,TBC
Nottinghamshire County Council,03-00847,KSA TRAINING AND CONSULTANCY LIMITED,Professional Services,Consultancy,0,"1,592.08","1,592.08",14-Jun-11,TBC
Nottinghamshire County Council,03-00849,CAPITA SOCIAL CARE AND HOUSING,Care,Domiciliary Care,0,137.95,137.95,09-Jun-11,TBC
Nottinghamshire County Council,03-00850,CARDEA,Care,Healthcare Services,0,110.6,110.6,14-Jun-11,TBC
Nottinghamshire County Council,03-00851,CAPITA SOCIAL CARE AND HOUSING,Care,Domiciliary Care,0,227.85,227.85,09-Jun-11,TBC
Nottinghamshire County Council,03-00853,CAPITA SOCIAL CARE AND HOUSING,Care,Domiciliary Care,0,109.08,109.08,09-Jun-11,TBC
Nottinghamshire County Council,03-00854,CAPITA SOCIAL CARE AND HOUSING,Care,Domiciliary Care,0,83.5,83.5,02-Jun-11,TBC
Nottinghamshire County Council,03-00855,EDEN BROWN LIMITED,People,Recruitment,0,264.14,264.14,06-Jun-11,TBC
Nottinghamshire County Council,03-00856,MERRILL LEGAL SOLUTIONS WORDWAVE INTERNA,TBC,TBC,0,115,115,01-Jun-11,TBC
Nottinghamshire County Council,03-00909,HALSALL INTERNATIONAL LIMITED,External Services (Highways & Culture),Toys & Games,0,0.01,0.01,01-Jun-11,TBC
Nottinghamshire County Council,03-00915,CABLE AND WIRELESS,ICT,Telecommunications & Media,0,0.01,0.01,03-Jun-11,TBC
Nottinghamshire County Council,03-00932,TARMAC CENTRAL LIMITED,External Services (Highways & Culture),Highways & Works,0,-0.01,-0.01,14-Jun-11,TBC
Nottinghamshire County Council,03-00934,TARMAC CENTRAL LIMITED,External Services (Highways & Culture),Highways & Works,0,-0.01,-0.01,16-Jun-11,TBC
Nottinghamshire County Council,03-00935,TARMAC CENTRAL LIMITED,External Services (Highways & Culture),Highways & Works,0,-0.01,-0.01,16-Jun-11,TBC
Nottinghamshire County Council,03-00952,HILL TRIDENT,Soft Facilities Management,Security,0,"2,000.00","2,000.00",01-Jun-11,TBC
Nottinghamshire County Council,03-00953,SL CLOTHING LIMITED,Soft Facilities Management,Clothing,0,269.89,269.89,01-Jun-11,TBC
Nottinghamshire County Council,03-00954,WILLIAM FREER LIMITED,Soft Facilities Management,Vending Machines & Food Equipment,0,85.49,85.49,01-Jun-11,TBC
Nottinghamshire County Council,03-00956,LANTEC SERVICES LIMITED,ICT,Communications Devices & Accessories,0,669.48,669.48,01-Jun-11,TBC
Nottinghamshire County Council,03-00958,EMO OIL LIMITED,Hard Facilities Management ,Utilities,0,394.74,394.74,01-Jun-11,TBC
Nottinghamshire County Council,03-00959,SODEXO PRESTIGE LIMITED,Soft Facilities Management,Vending Machines & Food Equipment,0,125,125,01-Jun-11,TBC
Nottinghamshire County Council,03-00960,OUTCOMES UK,People,Recruitment,0,"5,142.90","5,142.90",01-Jun-11,TBC
Nottinghamshire County Council,03-00961,CAPITA SOCIAL CARE AND HOUSING,Care,Domiciliary Care,0,109.8,109.8,09-Jun-11,TBC
Nottinghamshire County Council,03-00962,DRAEFERN LIMITED T/A RIGHT4STAFF,People,Recruitment,0,86.52,86.52,01-Jun-11,TBC
Nottinghamshire County Council,03-00964,CARDEA,Care,Healthcare Services,0,94.87,94.87,14-Jun-11,TBC
Nottinghamshire County Council,03-00965,CAPITA SOCIAL CARE AND HOUSING,Care,Domiciliary Care,0,137.95,137.95,01-Jun-11,TBC
Nottinghamshire County Council,03-00966,CANDOR SERVICES LIMITED,Soft Facilities Management,Cleaning Equipment & Janitorial Supplies,0,90.62,90.62,01-Jun-11,TBC
Nottinghamshire County Council,03-00967,COOKCO LIMITED,Soft Facilities Management,Vending Machines & Food Equipment,0,310,310,01-Jun-11,TBC
Nottinghamshire County Council,03-00968,COOKCO LIMITED,Soft Facilities Management,Vending Machines & Food Equipment,0,296,296,01-Jun-11,TBC
Nottinghamshire County Council,03-00971,CONISTON ASSOCIATES LIMITED,People,Vocational Training,0,194.4,194.4,01-Jun-11,TBC
Nottinghamshire County Council,03-00972,THE NE GROUP (NORTH NOTTINGHAMSHIRE ENTERPRISES),Transport & Travel,Hotels & Venues,0,280,280,01-Jun-11,TBC
Nottinghamshire County Council,03-00973,CONISTON ASSOCIATES LIMITED,People,Vocational Training,0,88.2,88.2,01-Jun-11,TBC
Nottinghamshire County Council,03-00975,ELKS EDUCATION TRUST,External Services (Highways & Culture),Education Services,0,"13,960.00","13,960.00",01-Jun-11,TBC
Nottinghamshire County Council,03-00976,ELKS EDUCATION TRUST,External Services (Highways & Culture),Education Services,0,"13,960.00","13,960.00",01-Jun-11,TBC
Nottinghamshire County Council,03-00977,KONICA MINOLTA,ICT,"Printing & Publishing, Equipment & Supplies",0,102.84,102.84,10-Jun-11,TBC
Nottinghamshire County Council,03-00979,KONICA MINOLTA,ICT,"Printing & Publishing, Equipment & Supplies",0,117.47,117.47,13-Jun-11,TBC
Nottinghamshire County Council,03-00980,KONICA MINOLTA,ICT,"Printing & Publishing, Equipment & Supplies",0,110.15,110.15,13-Jun-11,TBC
Nottinghamshire County Council,03-00981,D J AND M BOWER (TARMAC ROADSURFACING),External Services (Highways & Culture),Highways & Works,0,479.89,479.89,01-Jun-11,TBC
Nottinghamshire County Council,03-00982,BRITISH STANDARDS INSTITUTE,External Services (Highways & Culture),Organisations & Clubs,0,304.4,304.4,01-Jun-11,TBC
Nottinghamshire County Council,03-00983,SQUIDCARD LIMITED,Professional Services,Financial & Insurance Services,0,204,204,20-Jun-11,TBC
Nottinghamshire County Council,03-00984,R COVILL,Persons Name,Person Name,0,187,187,01-Jun-11,TBC
Nottinghamshire County Council,03-00985,PLAYDALE PLAYGROUNDS LIMITED,External Services (Highways & Culture),Sports & Recreational Equipment & Supplies,0,96.4,96.4,01-Jun-11,TBC
Nottinghamshire County Council,03-00986,SQUIDCARD LIMITED,Professional Services,Financial & Insurance Services,0,273.18,273.18,20-Jun-11,TBC
Nottinghamshire County Council,03-00987,SQUIDCARD LIMITED,Professional Services,Financial & Insurance Services,0,195.84,195.84,20-Jun-11,TBC
Nottinghamshire County Council,03-00988,SQUIDCARD LIMITED,Professional Services,Financial & Insurance Services,0,184.67,184.67,20-Jun-11,TBC
Nottinghamshire County Council,03-00989,SQUIDCARD LIMITED,Professional Services,Financial & Insurance Services,0,202,202,20-Jun-11,TBC
Nottinghamshire County Council,03-00990,SQUIDCARD LIMITED,Professional Services,Financial & Insurance Services,0,168.5,168.5,20-Jun-11,TBC
Nottinghamshire County Council,03-00991,POSITIVE PEOPLE COMPANY,Care,Personal & Domestic Services,0,255,255,01-Jun-11,TBC
Nottinghamshire County Council,03-00998,KONICA MINOLTA,ICT,"Printing & Publishing, Equipment & Supplies",0,448.43,448.43,13-Jun-11,TBC
Nottinghamshire County Council,03-00999,SQUIDCARD LIMITED,Professional Services,Financial & Insurance Services,0,230,230,20-Jun-11,TBC
Nottinghamshire County Council,03-01000,CANDOR SERVICES LIMITED,Soft Facilities Management,Cleaning Equipment & Janitorial Supplies,0,98.95,98.95,01-Jun-11,TBC
Nottinghamshire County Council,03-01001,CANDOR SERVICES LIMITED,Soft Facilities Management,Cleaning Equipment & Janitorial Supplies,0,120.44,120.44,01-Jun-11,TBC
Nottinghamshire County Council,03-01005,DEF SOFTWARE LIMITED,ICT,Software,0,"2,014.82","2,014.82",01-Jun-11,TBC
Nottinghamshire County Council,03-01046,AGGREGATE INDUSTRIES UK,External Services (Highways & Culture),Earth & Stone Aggregates ,0,-0.01,-0.01,03-Jun-11,TBC
Nottinghamshire County Council,03-01060,TUBES FITTINGS VALVES LIMITED,Hard Facilities Management ,Plumbing Services,0,0.02,0.02,13-Jun-11,TBC
Nottinghamshire County Council,03-01072,NEWARK CONCRETE,Hard Facilities Management ,Concrete Installation & Repair Services,0,-0.01,-0.01,17-Jun-11,TBC
Nottinghamshire County Council,03-01113,BEESWIFT,Soft Facilities Management,Clothing,0,-143.7,-143.7,06-Jun-11,TBC
Nottinghamshire County Council,03-01117,LANTRA AWARDS,People,Vocational Training,0,235.6,235.6,16-Jun-11,TBC
Nottinghamshire County Council,03-01140,TARMAC CENTRAL LIMITED,External Services (Highways & Culture),Highways & Works,0,-0.01,-0.01,16-Jun-11,TBC
Nottinghamshire County Council,03-01143,TARMAC CENTRAL LIMITED,External Services (Highways & Culture),Highways & Works,0,-0.01,-0.01,16-Jun-11,TBC
Nottinghamshire County Council,03-01145,TARMAC CENTRAL LIMITED,External Services (Highways & Culture),Highways & Works,0,-0.01,-0.01,16-Jun-11,TBC
Nottinghamshire County Council,03-01148,BRAKE BROS LIMITED,Soft Facilities Management,Prepared & Preserved Foods,0,-0.02,-0.02,02-Jun-11,TBC
Nottinghamshire County Council,03-01149,TARMAC CENTRAL LIMITED,External Services (Highways & Culture),Highways & Works,0,-0.01,-0.01,21-Jun-11,TBC
Nottinghamshire County Council,03-01150,TARMAC CENTRAL LIMITED,External Services (Highways & Culture),Highways & Works,0,-0.01,-0.01,21-Jun-11,TBC
Nottinghamshire County Council,03-01152,BRAKE BROS LIMITED,Soft Facilities Management,Prepared & Preserved Foods,0,-0.01,-0.01,02-Jun-11,TBC
Nottinghamshire County Council,03-01317,TUBES FITTINGS VALVES LIMITED,Hard Facilities Management ,Plumbing Services,0,-0.01,-0.01,13-Jun-11,TBC
Nottinghamshire County Council,03-01319,CAPITA SOCIAL CARE AND HOUSING,Care,Domiciliary Care,0,122.09,122.09,02-Jun-11,TBC
Nottinghamshire County Council,03-01320,CAPITA SOCIAL CARE AND HOUSING,Care,Domiciliary Care,0,160.44,160.44,02-Jun-11,TBC
Nottinghamshire County Council,03-01321,FOSTER REFRIGERATOR UK LIMITED,Care,Fostering Services,0,306.2,306.2,02-Jun-11,TBC
Nottinghamshire County Council,03-01322,SHELTER MAINTENANCE CO,Hard Facilities Management ,Building Construction Services,0,423.8,423.8,02-Jun-11,TBC
Nottinghamshire County Council,03-01324,CAPITA SOCIAL CARE AND HOUSING,Care,Domiciliary Care,0,117.04,117.04,02-Jun-11,TBC
Nottinghamshire County Council,03-01325,CARDEA,Care,Healthcare Services,0,112.95,112.95,14-Jun-11,TBC
Nottinghamshire County Council,03-01326,CARDEA,Care,Healthcare Services,0,164.19,164.19,14-Jun-11,TBC
Nottinghamshire County Council,03-01327,CARDEA,Care,Healthcare Services,0,333,333,14-Jun-11,TBC
Nottinghamshire County Council,03-01328,CAPITA,Professional Services,Consultancy,0,"42,627.00","42,627.00",02-Jun-11,TBC
Nottinghamshire County Council,03-01329,CAPITA SOCIAL CARE AND HOUSING,Care,Domiciliary Care,0,115.48,115.48,02-Jun-11,TBC
Nottinghamshire County Council,03-01330,CAPITA SOCIAL CARE AND HOUSING,Care,Domiciliary Care,0,105.4,105.4,09-Jun-11,TBC
Nottinghamshire County Council,03-01331,CAPITA SOCIAL CARE AND HOUSING,Care,Domiciliary Care,0,158.1,158.1,02-Jun-11,TBC
Nottinghamshire County Council,03-01332,CAPITA SOCIAL CARE AND HOUSING,Care,Domiciliary Care,0,164.3,164.3,02-Jun-11,TBC
Nottinghamshire County Council,03-01333,CAPITA SOCIAL CARE AND HOUSING,Care,Domiciliary Care,0,154.23,154.23,02-Jun-11,TBC
Nottinghamshire County Council,03-01334,NORTHERN RECRUITMENT GROUP,People,Recruitment,0,90.28,90.28,10-Jun-11,TBC
Nottinghamshire County Council,03-01335,NORTHERN RECRUITMENT GROUP,People,Recruitment,0,90.28,90.28,10-Jun-11,TBC
Nottinghamshire County Council,03-01336,NORTHERN RECRUITMENT GROUP,People,Recruitment,0,90.28,90.28,10-Jun-11,TBC
Nottinghamshire County Council,03-01337,CAPITA SOCIAL CARE AND HOUSING,Care,Domiciliary Care,0,285.63,285.63,02-Jun-11,TBC
Nottinghamshire County Council,03-01338,HS SPORTS LIMITED,External Services (Highways & Culture),Sports & Recreational Equipment & Supplies,0,173,173,10-Jun-11,TBC
Nottinghamshire County Council,03-01340,ACADEMY SOCIAL CARE LIMITED,Care,Domiciliary Care,0,156.98,156.98,02-Jun-11,TBC
Nottinghamshire County Council,03-01341,ACADEMY SOCIAL CARE LIMITED,Care,Domiciliary Care,0,156.98,156.98,02-Jun-11,TBC
Nottinghamshire County Council,03-01342,ACADEMY SOCIAL CARE LIMITED,Care,Domiciliary Care,0,156.98,156.98,02-Jun-11,TBC
Nottinghamshire County Council,03-01344,ADVANTAGE HEALTHCARE NURSING ANDCARE LIMITED,Care,Healthcare Services,0,365.4,365.4,02-Jun-11,TBC
Nottinghamshire County Council,03-01345,ADVANTAGE HEALTHCARE NURSING ANDCARE LIMITED,Care,Healthcare Services,0,415.8,415.8,02-Jun-11,TBC
Nottinghamshire County Council,03-01347,CAPITA SOCIAL CARE AND HOUSING,Care,Domiciliary Care,0,110.1,110.1,02-Jun-11,TBC
Nottinghamshire County Council,03-01348,CAPITA SOCIAL CARE AND HOUSING,Care,Domiciliary Care,0,229.23,229.23,02-Jun-11,TBC
Nottinghamshire County Council,03-01349,CAPITA SOCIAL CARE AND HOUSING,Care,Domiciliary Care,0,125.85,125.85,09-Jun-11,TBC
Nottinghamshire County Council,03-01350,CAPITA SOCIAL CARE AND HOUSING,Care,Domiciliary Care,0,240.88,240.88,16-Jun-11,TBC
Nottinghamshire County Council,03-01351,WILLIAM FREER LIMITED,Soft Facilities Management,Vending Machines & Food Equipment,0,301.53,301.53,02-Jun-11,TBC
Nottinghamshire County Council,03-01352,WILLIAM FREER LIMITED,Soft Facilities Management,Vending Machines & Food Equipment,0,301.38,301.38,02-Jun-11,TBC
Nottinghamshire County Council,03-01353,COOKCO LIMITED,Soft Facilities Management,Vending Machines & Food Equipment,0,277,277,02-Jun-11,TBC
Nottinghamshire County Council,03-01354,SL CLOTHING LIMITED,Soft Facilities Management,Clothing,0,196.9,196.9,02-Jun-11,TBC
Nottinghamshire County Council,03-01355,HATHERLEY COMMERCIAL SERVICES,Soft Facilities Management,Prepared & Preserved Foods,0,164.8,164.8,02-Jun-11,TBC
Nottinghamshire County Council,03-01356,COOKCO LIMITED,Soft Facilities Management,Vending Machines & Food Equipment,0,486.8,486.8,02-Jun-11,TBC
Nottinghamshire County Council,03-01357,COOKCO LIMITED,Soft Facilities Management,Vending Machines & Food Equipment,0,105.8,105.8,02-Jun-11,TBC
Nottinghamshire County Council,03-01358,COOKCO LIMITED,Soft Facilities Management,Vending Machines & Food Equipment,0,293,293,02-Jun-11,TBC
Nottinghamshire County Council,03-01359,THE NE GROUP (NORTH NOTTINGHAMSHIRE ENTERPRISES),Transport & Travel,Hotels & Venues,0,262,262,02-Jun-11,TBC
Nottinghamshire County Council,03-01360,WILLIAM FREER LIMITED,Soft Facilities Management,Vending Machines & Food Equipment,0,255.32,255.32,02-Jun-11,TBC
Nottinghamshire County Council,03-01361,CYCLESCHEME LIMITED,Transport & Travel,Cycles,0,101.33,101.33,02-Jun-11,TBC
Nottinghamshire County Council,03-01362,SPECIALIST COMPUTER CENTRES LIMITED,ICT,Computer Services,0,"34,494.65","34,494.65",02-Jun-11,TBC
Nottinghamshire County Council,03-01363,KONICA MINOLTA,ICT,"Printing & Publishing, Equipment & Supplies",0,89.12,89.12,02-Jun-11,TBC
Nottinghamshire County Council,03-01364,ADVANTAGE HEALTHCARE NURSING ANDCARE LIMITED,Care,Healthcare Services,0,336,336,02-Jun-11,TBC
Nottinghamshire County Council,03-01365,ADVANTAGE HEALTHCARE NURSING ANDCARE LIMITED,Care,Healthcare Services,0,340.2,340.2,02-Jun-11,TBC
Nottinghamshire County Council,03-01366,GRASSMATS CO UK,Soft Facilities Management,Furniture & Furnishings,0,443,443,07-Jun-11,TBC
Nottinghamshire County Council,03-01367,CYCLESCHEME LIMITED,Transport & Travel,Cycles,0,179.99,179.99,02-Jun-11,TBC
Nottinghamshire County Council,03-01368,RECRUITMENT SPECIALIST GROUP LIMITED,People,Recruitment,0,352.09,352.09,02-Jun-11,TBC
Nottinghamshire County Council,03-01369,RECRUITMENT SPECIALIST GROUP LIMITED,People,Recruitment,0,292.62,292.62,02-Jun-11,TBC
Nottinghamshire County Council,03-01370,CAPITA SOCIAL CARE AND HOUSING,Care,Domiciliary Care,0,134.61,134.61,02-Jun-11,TBC
Nottinghamshire County Council,03-01371,VYSIONICS ITS LIMITED,External Services (Highways & Culture),Highways & Works,0,"4,632.20","4,632.20",16-Jun-11,TBC
Nottinghamshire County Council,03-01376,CUNNINGHAMS CASH REGISTERS LIMITED,Professional Services,Financial & Insurance Services,0,231.79,231.79,02-Jun-11,TBC
Nottinghamshire County Council,03-01377,DLA PIPER UK LLP,Professional Services,Legal Services,0,696.6,696.6,02-Jun-11,TBC
Nottinghamshire County Council,03-01379,ACADEMY SOCIAL CARE LIMITED,Care,Domiciliary Care,0,156.98,156.98,02-Jun-11,TBC
Nottinghamshire County Council,03-01380,THE NE GROUP (NORTH NOTTINGHAMSHIRE ENTERPRISES),Transport & Travel,Hotels & Venues,0,113.4,113.4,02-Jun-11,TBC
Nottinghamshire County Council,03-01381,THE NE GROUP (NORTH NOTTINGHAMSHIRE ENTERPRISES),Transport & Travel,Hotels & Venues,0,154,154,02-Jun-11,TBC
Nottinghamshire County Council,03-01382,PHS GROUP PLC,Soft Facilities Management,Cleaning Equipment & Janitorial Supplies,0,124.57,124.57,02-Jun-11,TBC
Nottinghamshire County Council,03-01383,SPECIALIST COMPUTER CENTRES LIMITED,ICT,Computer Services,0,"47,235.08","47,235.08",02-Jun-11,TBC
Nottinghamshire County Council,03-01384,REED EMPLOYMENT PLC,People,Recruitment,0,208.46,208.46,02-Jun-11,TBC
Nottinghamshire County Council,03-01385,REED EMPLOYMENT PLC,People,Recruitment,0,251.2,251.2,02-Jun-11,TBC
Nottinghamshire County Council,03-01387,INTELLIDENT LIMITED,Care,Infant Or Child Daycare Services,0,129.92,129.92,02-Jun-11,TBC
Nottinghamshire County Council,03-01388,REAL EDUCATION LTD,External Services (Highways & Culture),Education Services,0,558.25,558.25,02-Jun-11,TBC
Nottinghamshire County Council,03-01389,CAPITA SOCIAL CARE AND HOUSING,Care,Domiciliary Care,0,106.43,106.43,09-Jun-11,TBC
Nottinghamshire County Council,03-01390,ADT FIRE AND SECURITY PLC,Soft Facilities Management,Security,0,236,236,02-Jun-11,TBC
Nottinghamshire County Council,03-01391,CAPITA SOCIAL CARE AND HOUSING,Care,Domiciliary Care,0,113.52,113.52,09-Jun-11,TBC
Nottinghamshire County Council,03-01392,CARDEA,Care,Healthcare Services,0,333,333,14-Jun-11,TBC
Nottinghamshire County Council,03-01394,OUTCOMES UK,People,Recruitment,0,"6,360.89","6,360.89",02-Jun-11,TBC
Nottinghamshire County Council,03-01396,KCM (CATERING EQUIPMENT) LIMITED,Soft Facilities Management,Vending Machines & Food Equipment,0,"8,746.40","8,746.40",02-Jun-11,TBC
Nottinghamshire County Council,03-01397,EDEN BROWN LIMITED,People,Recruitment,0,394.58,394.58,17-Jun-11,TBC
Nottinghamshire County Council,03-01398,CARITAS RECRUITMENT,People,Recruitment,0,295.63,295.63,16-Jun-11,TBC
Nottinghamshire County Council,03-01399,EDEN BROWN LIMITED,People,Recruitment,0,315.22,315.22,17-Jun-11,TBC
Nottinghamshire County Council,03-01402,EDEN BROWN LIMITED,People,Recruitment,0,287.82,287.82,17-Jun-11,TBC
Nottinghamshire County Council,03-01404,WILSON ELECTRICS,Hard Facilities Management ,Electrical Systems & Lighting,0,88.22,88.22,02-Jun-11,TBC
Nottinghamshire County Council,03-01406,CAPITA SOCIAL CARE AND HOUSING,Care,Domiciliary Care,0,151.23,151.23,02-Jun-11,TBC
Nottinghamshire County Council,03-01407,TURNER AND TOWNSEND,Professional Services,Financial & Insurance Services,0,"1,200.00","1,200.00",02-Jun-11,TBC
Nottinghamshire County Council,03-01408,CAPITA SOCIAL CARE AND HOUSING,Care,Domiciliary Care,0,140.72,140.72,02-Jun-11,TBC
Nottinghamshire County Council,03-01410,HI-SPEC SERVICES,Soft Facilities Management,Cleaning Equipment & Janitorial Supplies,0,129.77,129.77,02-Jun-11,TBC
Nottinghamshire County Council,03-01411,WILLIAM FREER LIMITED,Soft Facilities Management,Vending Machines & Food Equipment,0,647.99,647.99,02-Jun-11,TBC
Nottinghamshire County Council,03-01412,THOMAS FATTORINI LIMITED,Professional Services,"Reproduction, Photographic & Design Services",0,123.45,123.45,16-Jun-11,TBC
Nottinghamshire County Council,03-01413,PREMIER PETS HOTEL,External Services (Highways & Culture),Plant & Animal Supplies,0,209.54,209.54,02-Jun-11,TBC
Nottinghamshire County Council,03-01414,DOOR CARE AND SECURITY LIMITED,Soft Facilities Management,Security,0,0.03,0.03,02-Jun-11,TBC
Nottinghamshire County Council,03-01415,FOREVER FUELS LIMITED,Transport & Travel,Gas Fuels & Lubricants ,0,43.58,43.58,02-Jun-11,TBC
Nottinghamshire County Council,03-01419,CIVICA UK LIMITED,ICT,Networking,0,"1,848.04","1,848.04",02-Jun-11,TBC
Nottinghamshire County Council,03-01424,BRAKE BROS LIMITED,Soft Facilities Management,Prepared & Preserved Foods,0,-0.04,-0.04,02-Jun-11,TBC
Nottinghamshire County Council,03-01434,BRAKE BROS LIMITED,Soft Facilities Management,Prepared & Preserved Foods,0,0.02,0.02,02-Jun-11,TBC
Nottinghamshire County Council,03-01447,D BERRINGTON BUILDING SERVICES,Hard Facilities Management ,Building Construction Services,0,315,315,03-Jun-11,TBC
Nottinghamshire County Council,03-01455,ARVAL P H H BUSINESS SOLUTIONS,Transport & Travel,Gas Fuels & Lubricants ,0,1.01,1.01,02-Jun-11,TBC
Nottinghamshire County Council,03-01456,ARVAL P H H BUSINESS SOLUTIONS,Transport & Travel,Gas Fuels & Lubricants ,0,0.01,0.01,02-Jun-11,TBC
Nottinghamshire County Council,03-01473,TARMAC CENTRAL LIMITED,External Services (Highways & Culture),Highways & Works,0,-0.01,-0.01,17-Jun-11,TBC
Nottinghamshire County Council,03-01475,TARMAC CENTRAL LIMITED,External Services (Highways & Culture),Highways & Works,0,-0.01,-0.01,22-Jun-11,TBC
Nottinghamshire County Council,03-01476,TARMAC CENTRAL LIMITED,External Services (Highways & Culture),Highways & Works,0,-0.01,-0.01,28-Jun-11,TBC
Nottinghamshire County Council,03-01477,TARMAC CENTRAL LIMITED,External Services (Highways & Culture),Highways & Works,0,-0.01,-0.01,28-Jun-11,TBC
Nottinghamshire County Council,03-01481,TRANS UK SUPPLIES LIMITED,ICT,Audio & Visual Equipment,0,-0.01,-0.01,03-Jun-11,TBC
Nottinghamshire County Council,03-01513,XEROX (UK) LIMITED,ICT,"Printing & Publishing, Equipment & Supplies",0,360.35,360.35,10-Jun-11,TBC
Nottinghamshire County Council,03-01529,AUTOMOTIVE LEASING,Transport & Travel,Motor Vehicles,0,0.01,0.01,03-Jun-11,TBC
Nottinghamshire County Council,03-01530,AUTOMOTIVE LEASING,Transport & Travel,Motor Vehicles,0,-0.01,-0.01,13-Jun-11,TBC
Nottinghamshire County Council,03-01544,EXPRESS ASPHALT LIMITED,External Services (Highways & Culture),Highways & Works,0,0.01,0.01,20-Jun-11,TBC
Nottinghamshire County Council,03-01569,EMO OIL LIMITED,Hard Facilities Management ,Utilities,0,-94.84,-94.84,07-Jun-11,TBC
Nottinghamshire County Council,03-01605,ZYCOMM ELECTRONICS LIMITED,Hard Facilities Management ,Electronic Components & Supplies,0,271.89,271.89,03-Jun-11,TBC
Nottinghamshire County Council,03-01606,MERIDIAN BUSINESS SUPPORT LIMITED,People,Recruitment,0,99.38,99.38,03-Jun-11,TBC
Nottinghamshire County Council,03-01607,MERIDIAN BUSINESS SUPPORT LIMITED,People,Recruitment,0,99.38,99.38,03-Jun-11,TBC
Nottinghamshire County Council,03-01608,MERIDIAN BUSINESS SUPPORT LIMITED,People,Recruitment,0,-86.63,-86.63,27-Jun-11,TBC
Nottinghamshire County Council,03-01609,MERIDIAN BUSINESS SUPPORT LIMITED,People,Recruitment,0,-99.38,-99.38,27-Jun-11,TBC
Nottinghamshire County Council,03-01610,EDEN BROWN LIMITED,People,Recruitment,0,296.52,296.52,10-Jun-11,TBC
Nottinghamshire County Council,03-01612,MERIDIAN BUSINESS SUPPORT LIMITED,People,Recruitment,0,108.12,108.12,09-Jun-11,TBC
Nottinghamshire County Council,03-01613,KONICA MINOLTA,ICT,"Printing & Publishing, Equipment & Supplies",0,95.48,95.48,03-Jun-11,TBC
Nottinghamshire County Council,03-01614,KONICA MINOLTA,ICT,"Printing & Publishing, Equipment & Supplies",0,195.43,195.43,06-Jun-11,TBC
Nottinghamshire County Council,03-01615,KONICA MINOLTA,ICT,"Printing & Publishing, Equipment & Supplies",0,136.18,136.18,13-Jun-11,TBC
Nottinghamshire County Council,03-01616,KONICA MINOLTA,ICT,"Printing & Publishing, Equipment & Supplies",0,206.53,206.53,03-Jun-11,TBC
Nottinghamshire County Council,03-01617,KONICA MINOLTA,ICT,"Printing & Publishing, Equipment & Supplies",0,213.66,213.66,03-Jun-11,TBC
Nottinghamshire County Council,03-01618,CAPITA SOCIAL CARE AND HOUSING,Care,Domiciliary Care,0,116.97,116.97,03-Jun-11,TBC
Nottinghamshire County Council,03-01619,CAPITA SOCIAL CARE AND HOUSING,Care,Domiciliary Care,0,116.94,116.94,03-Jun-11,TBC
Nottinghamshire County Council,03-01620,C P ASSET MANAGEMENT LIMITED,Soft Facilities Management,Security,0,98.5,98.5,03-Jun-11,TBC
Nottinghamshire County Council,03-01621,FEET (LINE MARKERS ) LIMITED,External Services (Highways & Culture),Sports & Recreational Equipment & Supplies,0,182,182,03-Jun-11,TBC
Nottinghamshire County Council,03-01622,BUCHANAN COMPUTING LIMITED,ICT,Computer Services,0,242.6,242.6,03-Jun-11,TBC
Nottinghamshire County Council,03-01623,EMO OIL LIMITED,Hard Facilities Management ,Utilities,0,63.73,63.73,03-Jun-11,TBC
Nottinghamshire County Council,03-01625,WILLIAM FREER LIMITED,Soft Facilities Management,Vending Machines & Food Equipment,0,321.86,321.86,03-Jun-11,TBC
Nottinghamshire County Council,03-01626,CARITAS RECRUITMENT,People,Recruitment,0,307.2,307.2,03-Jun-11,TBC
Nottinghamshire County Council,03-01628,THE NE GROUP (NORTH NOTTINGHAMSHIRE ENTERPRISES),Transport & Travel,Hotels & Venues,0,144.4,144.4,03-Jun-11,TBC
Nottinghamshire County Council,03-01629,ADVANTAGE HEALTHCARE NURSING ANDCARE LIMITED,Care,Healthcare Services,0,352.8,352.8,03-Jun-11,TBC
Nottinghamshire County Council,03-01630,REED EMPLOYMENT PLC,People,Recruitment,0,245.68,245.68,03-Jun-11,TBC
Nottinghamshire County Council,03-01631,REED EMPLOYMENT PLC,People,Recruitment,0,275.73,275.73,03-Jun-11,TBC
Nottinghamshire County Council,03-01632,REED EMPLOYMENT PLC,People,Recruitment,0,266,266,03-Jun-11,TBC
Nottinghamshire County Council,03-01633,REED EMPLOYMENT PLC,People,Recruitment,0,212.1,212.1,03-Jun-11,TBC
Nottinghamshire County Council,03-01634,REED EMPLOYMENT PLC,People,Recruitment,0,173.22,173.22,03-Jun-11,TBC
Nottinghamshire County Council,03-01635,CAPITA SOCIAL CARE AND HOUSING,Care,Domiciliary Care,0,174.33,174.33,03-Jun-11,TBC
Nottinghamshire County Council,03-01636,CAPITA SOCIAL CARE AND HOUSING,Care,Domiciliary Care,0,102.57,102.57,03-Jun-11,TBC
Nottinghamshire County Council,03-01637,FOSTER REFRIGERATOR UK LIMITED,Care,Fostering Services,0,311.2,311.2,03-Jun-11,TBC
Nottinghamshire County Council,03-01638,CAPITA SOCIAL CARE AND HOUSING,Care,Domiciliary Care,0,114.6,114.6,09-Jun-11,TBC
Nottinghamshire County Council,03-01640,CAPITA SOCIAL CARE AND HOUSING,Care,Domiciliary Care,0,92.04,92.04,03-Jun-11,TBC
Nottinghamshire County Council,03-01642,CAPITA SOCIAL CARE AND HOUSING,Care,Domiciliary Care,0,121.59,121.59,03-Jun-11,TBC
Nottinghamshire County Council,03-01643,PHS GROUP PLC,Soft Facilities Management,Cleaning Equipment & Janitorial Supplies,0,93.56,93.56,03-Jun-11,TBC
Nottinghamshire County Council,03-01644,P S MARSDEN LIMITED,Professional Services,Professional Engineering Services,0,110.53,110.53,03-Jun-11,TBC
Nottinghamshire County Council,03-01645,WILLIAM FREER LIMITED,Soft Facilities Management,Vending Machines & Food Equipment,0,101.07,101.07,03-Jun-11,TBC
Nottinghamshire County Council,03-01647,UNIVERSAL LOCUMS,People,Recruitment,0,200.87,200.87,03-Jun-11,TBC
Nottinghamshire County Council,03-01648,UNIVERSAL LOCUMS,People,Recruitment,0,236.11,236.11,03-Jun-11,TBC
Nottinghamshire County Council,03-01649,EMEND LIMITED,ICT,Software,0,767.34,767.34,03-Jun-11,TBC
Nottinghamshire County Council,03-01650,CYCLESCHEME LIMITED,Transport & Travel,Cycles,0,125,125,03-Jun-11,TBC
Nottinghamshire County Council,03-01651,SLACK AND CO FLOORCOVERINGS,Soft Facilities Management,Furniture & Furnishings,0,98.4,98.4,03-Jun-11,TBC
Nottinghamshire County Council,03-01652,CAPITA SOCIAL CARE AND HOUSING,Care,Domiciliary Care,0,227.85,227.85,16-Jun-11,TBC
Nottinghamshire County Council,03-01653,KB RECRUITMENT LIMITED,People,Recruitment,0,209.18,209.18,03-Jun-11,TBC
Nottinghamshire County Council,03-01654,KB RECRUITMENT LIMITED,People,Recruitment,0,239.09,239.09,03-Jun-11,TBC
Nottinghamshire County Council,03-01655,GOLDEN RIVER TRAFFIC LIMITED,External Services (Highways & Culture),Highways & Works,0,165,165,22-Jun-11,TBC
Nottinghamshire County Council,03-01656,KB RECRUITMENT LIMITED,People,Recruitment,0,253.73,253.73,03-Jun-11,TBC
Nottinghamshire County Council,03-01657,KB RECRUITMENT LIMITED,People,Recruitment,0,94.2,94.2,03-Jun-11,TBC
Nottinghamshire County Council,03-01658,KB RECRUITMENT LIMITED,People,Recruitment,0,192.32,192.32,03-Jun-11,TBC
Nottinghamshire County Council,03-01659,DAVID HAMMOND CHARTERED SURVEYORS,Professional Services,Consultancy,0,173.2,173.2,06-Jun-11,TBC
Nottinghamshire County Council,03-01660,MEDICARE FIRST,Care,Medical Equipment &  Supplies,0,295.56,295.56,07-Jun-11,TBC
Nottinghamshire County Council,03-01661,THE ROWAN ORGANISATION,Care,Daycare,0,"6,090.50","6,090.50",03-Jun-11,TBC
Nottinghamshire County Council,03-01662,CAPITA SOCIAL CARE AND HOUSING,Care,Domiciliary Care,0,87.18,87.18,16-Jun-11,TBC
Nottinghamshire County Council,03-01663,MEDICARE FIRST,Care,Medical Equipment &  Supplies,0,335.88,335.88,14-Jun-11,TBC
Nottinghamshire County Council,03-01665,SMILE REHAB LIMITED,Care,Medical Equipment &  Supplies,0,279.4,279.4,24-Jun-11,TBC
Nottinghamshire County Council,03-01666,DRAEFERN LIMITED T/A RIGHT4STAFF,People,Recruitment,0,139.92,139.92,03-Jun-11,TBC
Nottinghamshire County Council,03-01667,KONICA MINOLTA,ICT,"Printing & Publishing, Equipment & Supplies",0,89.6,89.6,03-Jun-11,TBC
Nottinghamshire County Council,03-01669,AUDIT COMMISSION,Professional Services,Politics & Civic Affairs,0,"4,041.60","4,041.60",13-Jun-11,TBC
Nottinghamshire County Council,03-01670,@HOME CHILDCARE LIMITED,Care,Infant Or Child Daycare Services,0,190,190,03-Jun-11,TBC
Nottinghamshire County Council,03-01672,NEWLAND FREEHOLDS LIMITED,Professional Services,Property Management,0,"1,250.00","1,250.00",30-Jun-11,TBC
Nottinghamshire County Council,03-01673,CRANTON ELECTRICAL CO LIMITED,Hard Facilities Management ,Electrical Systems & Lighting,0,103.89,103.89,03-Jun-11,TBC
Nottinghamshire County Council,03-01675,CBN,External Services (Highways & Culture),Organisations & Clubs,0,140,140,14-Jun-11,TBC
Nottinghamshire County Council,03-01679,R AND R ADVISORY SERVICES LIMITED,Professional Services,Financial & Insurance Services,0,"2,200.00","2,200.00",14-Jun-11,TBC
Nottinghamshire County Council,03-01683,CIPFA BUSINESS LIMITED,External Services (Highways & Culture),Organisations & Clubs,0,806,806,03-Jun-11,TBC
Nottinghamshire County Council,03-01710,FIELDWELL ENERGY SERVICES LIMITED,Hard Facilities Management ,Utilities,0,-0.01,-0.01,10-Jun-11,TBC
Nottinghamshire County Council,03-01713,SPEEDY ASSET SERVICES LIMITED,Hard Facilities Management ,Tools & General Machinery,0,-0.01,-0.01,13-Jun-11,TBC
Nottinghamshire County Council,03-01717,BARCHAM TREES PLC,External Services (Highways & Culture),Agricultural & Forestry & Landscape Machinery & Equipment,0,179.82,179.82,03-Jun-11,TBC
Nottinghamshire County Council,03-01726,TARMAC CENTRAL LIMITED,External Services (Highways & Culture),Highways & Works,0,-0.01,-0.01,21-Jun-11,TBC
Nottinghamshire County Council,03-01730,TARMAC CENTRAL LIMITED,External Services (Highways & Culture),Highways & Works,0,-0.01,-0.01,22-Jun-11,TBC
Nottinghamshire County Council,03-01732,TARMAC CENTRAL LIMITED,External Services (Highways & Culture),Highways & Works,0,-0.02,-0.02,22-Jun-11,TBC
Nottinghamshire County Council,03-01733,TARMAC CENTRAL LIMITED,External Services (Highways & Culture),Highways & Works,0,-0.01,-0.01,22-Jun-11,TBC
Nottinghamshire County Council,03-01735,TARMAC CENTRAL LIMITED,External Services (Highways & Culture),Highways & Works,0,-0.01,-0.01,28-Jun-11,TBC
Nottinghamshire County Council,03-01744,H DAVEY,Persons Name,Person Name,0,100,100,03-Jun-11,TBC
Nottinghamshire County Council,03-01771,BRAKE BROS LIMITED,Soft Facilities Management,Prepared & Preserved Foods,0,-0.04,-0.04,03-Jun-11,TBC
Nottinghamshire County Council,03-01772,BRIAN CLEGG (EDUCATIONAL PRODUCTS),External Services (Highways & Culture),Education Services,0,0.01,0.01,03-Jun-11,TBC
Nottinghamshire County Council,03-01773,BRIAN CLEGG (EDUCATIONAL PRODUCTS),External Services (Highways & Culture),Education Services,0,0.01,0.01,03-Jun-11,TBC
Nottinghamshire County Council,03-01774,BRIAN CLEGG (EDUCATIONAL PRODUCTS),External Services (Highways & Culture),Education Services,0,-0.01,-0.01,03-Jun-11,TBC
Nottinghamshire County Council,03-01782,DESPERATE MEASURES,External Services (Highways & Culture),Sports & Recreational Equipment & Supplies,0,0.02,0.02,03-Jun-11,TBC
Nottinghamshire County Council,03-01889,BRITISH STANDARDS INSTITUTE,External Services (Highways & Culture),Organisations & Clubs,0,226.8,226.8,06-Jun-11,TBC
Nottinghamshire County Council,03-01890,UNIVERSAL LOCUMS,People,Recruitment,0,214.96,214.96,06-Jun-11,TBC
Nottinghamshire County Council,03-01891,BOOKTRUST,ICT,"Printing & Publishing, Equipment & Supplies",0,695.27,695.27,06-Jun-11,TBC
Nottinghamshire County Council,03-01892,CAPITA SOCIAL CARE AND HOUSING,Care,Domiciliary Care,0,124.68,124.68,16-Jun-11,TBC
Nottinghamshire County Council,03-01893,CAPITA SOCIAL CARE AND HOUSING,Care,Domiciliary Care,0,113.52,113.52,16-Jun-11,TBC
Nottinghamshire County Council,03-01894,CAPITA SOCIAL CARE AND HOUSING,Care,Domiciliary Care,0,116.22,116.22,16-Jun-11,TBC
Nottinghamshire County Council,03-01895,CAPITA SOCIAL CARE AND HOUSING,Care,Domiciliary Care,0,110.45,110.45,16-Jun-11,TBC
Nottinghamshire County Council,03-01896,CAPITA SOCIAL CARE AND HOUSING,Care,Domiciliary Care,0,113.52,113.52,16-Jun-11,TBC
Nottinghamshire County Council,03-01897,CAPITA SOCIAL CARE AND HOUSING,Care,Domiciliary Care,0,119.1,119.1,16-Jun-11,TBC
Nottinghamshire County Council,03-01898,CAPITA SOCIAL CARE AND HOUSING,Care,Domiciliary Care,0,118.41,118.41,16-Jun-11,TBC
Nottinghamshire County Council,03-01899,CAPITA SOCIAL CARE AND HOUSING,Care,Domiciliary Care,0,95.1,95.1,16-Jun-11,TBC
Nottinghamshire County Council,03-01900,CAPITA SOCIAL CARE AND HOUSING,Care,Domiciliary Care,0,113.52,113.52,16-Jun-11,TBC
Nottinghamshire County Council,03-01901,CAPITA SOCIAL CARE AND HOUSING,Care,Domiciliary Care,0,129.41,129.41,16-Jun-11,TBC
Nottinghamshire County Council,03-01902,CAPITA SOCIAL CARE AND HOUSING,Care,Domiciliary Care,0,113.52,113.52,16-Jun-11,TBC
Nottinghamshire County Council,03-01903,CAPITA SOCIAL CARE AND HOUSING,Care,Domiciliary Care,0,85.9,85.9,16-Jun-11,TBC
Nottinghamshire County Council,03-01904,CAPITA SOCIAL CARE AND HOUSING,Care,Domiciliary Care,0,135.9,135.9,16-Jun-11,TBC
Nottinghamshire County Council,03-01905,BRITISH RED CROSS SOCIETY,Care,Residential Care,0,"4,061.90","4,061.90",17-Jun-11,TBC
Nottinghamshire County Council,03-01906,BRITISH RED CROSS SOCIETY,Care,Residential Care,0,"7,990.24","7,990.24",17-Jun-11,TBC
Nottinghamshire County Council,03-01907,BRITISH RED CROSS SOCIETY,Care,Residential Care,0,"2,691.22","2,691.22",17-Jun-11,TBC
Nottinghamshire County Council,03-01908,FRONTLINE,Hard Facilities Management ,Plumbing Services,0,358.58,358.58,06-Jun-11,TBC
Nottinghamshire County Council,03-01909,FRONTLINE,Hard Facilities Management ,Plumbing Services,0,298.15,298.15,16-Jun-11,TBC
Nottinghamshire County Council,03-01910,CARDEA,Care,Healthcare Services,0,113.12,113.12,07-Jun-11,TBC
Nottinghamshire County Council,03-01911,MEDICARE FIRST,Care,Medical Equipment &  Supplies,0,292.3,292.3,07-Jun-11,TBC
Nottinghamshire County Council,03-01912,FRONTLINE,Hard Facilities Management ,Plumbing Services,0,298.15,298.15,09-Jun-11,TBC
Nottinghamshire County Council,03-01913,EDEN BROWN LIMITED,People,Recruitment,0,238.34,238.34,17-Jun-11,TBC
Nottinghamshire County Council,03-01914,EDEN BROWN LIMITED,People,Recruitment,0,267.68,267.68,17-Jun-11,TBC
Nottinghamshire County Council,03-01915,EDEN BROWN LIMITED,People,Recruitment,0,263.86,263.86,17-Jun-11,TBC
Nottinghamshire County Council,03-01916,EDEN BROWN LIMITED,People,Recruitment,0,215.12,215.12,17-Jun-11,TBC
Nottinghamshire County Council,03-01917,EDEN BROWN LIMITED,People,Recruitment,0,481,481,17-Jun-11,TBC
Nottinghamshire County Council,03-01918,MEDICARE FIRST,Care,Medical Equipment &  Supplies,0,357.6,357.6,07-Jun-11,TBC
Nottinghamshire County Council,03-01919,EDEN BROWN LIMITED,People,Recruitment,0,353.95,353.95,17-Jun-11,TBC
Nottinghamshire County Council,03-01920,MEDICARE FIRST,Care,Medical Equipment &  Supplies,0,342.99,342.99,14-Jun-11,TBC
Nottinghamshire County Council,03-01921,EDEN BROWN LIMITED,People,Recruitment,0,403.43,403.43,17-Jun-11,TBC
Nottinghamshire County Council,03-01922,MEDICARE FIRST,Care,Medical Equipment &  Supplies,0,361.54,361.54,06-Jun-11,TBC
Nottinghamshire County Council,03-01923,EDEN BROWN LIMITED,People,Recruitment,0,217.45,217.45,16-Jun-11,TBC
Nottinghamshire County Council,03-01924,MEDICARE FIRST,Care,Medical Equipment &  Supplies,0,416.79,416.79,14-Jun-11,TBC
Nottinghamshire County Council,03-01925,EDEN BROWN LIMITED,People,Recruitment,0,365.71,365.71,17-Jun-11,TBC
Nottinghamshire County Council,03-01926,EDEN BROWN LIMITED,People,Recruitment,0,295.78,295.78,17-Jun-11,TBC
Nottinghamshire County Council,03-01927,EDEN BROWN LIMITED,People,Recruitment,0,434.04,434.04,17-Jun-11,TBC
Nottinghamshire County Council,03-01928,ART CLEANING (MIDLANDS) LIMITED,Soft Facilities Management,Industrial Cleaning Services,0,84,84,06-Jun-11,TBC
Nottinghamshire County Council,03-01930,PHS GROUP PLC,Soft Facilities Management,Cleaning Equipment & Janitorial Supplies,0,93.54,93.54,06-Jun-11,TBC
Nottinghamshire County Council,03-01931,CRANTON ELECTRICAL CO LIMITED,Hard Facilities Management ,Electrical Systems & Lighting,0,163.93,163.93,06-Jun-11,TBC
Nottinghamshire County Council,03-01932,BRITISH RED CROSS SOCIETY,Care,Residential Care,0,282.4,282.4,13-Jun-11,TBC
Nottinghamshire County Council,03-01934,ARGOS BUSINESS SOLUTIONS,ICT,"Printing & Publishing, Equipment & Supplies",0,242.15,242.15,06-Jun-11,TBC
Nottinghamshire County Council,03-01936,TNT POST UK LIMITED,Soft Facilities Management,Mail & Couriers,0,391.16,391.16,06-Jun-11,TBC
Nottinghamshire County Council,03-01937,CYCLESCHEME LIMITED,Transport & Travel,Cycles,0,126.24,126.24,06-Jun-11,TBC
Nottinghamshire County Council,03-01938,DRAEFERN LIMITED T/A RIGHT4STAFF,People,Recruitment,0,153.11,153.11,06-Jun-11,TBC
Nottinghamshire County Council,03-01939,RUFFORD PARK GOLF AND COUNTRY CLUB,Transport & Travel,Hotels & Venues,0,224,224,06-Jun-11,TBC
Nottinghamshire County Council,03-01940,BRITISH RED CROSS SOCIETY,Care,Residential Care,0,"20,955.34","20,955.34",17-Jun-11,TBC
Nottinghamshire County Council,03-01941,THE AWARD SCHEME LIMITED,External Services (Highways & Culture),Organisations & Clubs,0,820,820,06-Jun-11,TBC
Nottinghamshire County Council,03-01942,BADENOCH AND CLARK,People,Recruitment,0,500,500,06-Jun-11,TBC
Nottinghamshire County Council,03-01943,EDEN BROWN LIMITED,People,Recruitment,0,275.22,275.22,16-Jun-11,TBC
Nottinghamshire County Council,03-01944,CAPITA SOCIAL CARE AND HOUSING,Care,Domiciliary Care,0,333,333,16-Jun-11,TBC
Nottinghamshire County Council,03-01945,CAPITA SOCIAL CARE AND HOUSING,Care,Domiciliary Care,0,333,333,16-Jun-11,TBC
Nottinghamshire County Council,03-01946,EDEN BROWN LIMITED,People,Recruitment,0,268.92,268.92,17-Jun-11,TBC
Nottinghamshire County Council,03-01947,CAPITA SOCIAL CARE AND HOUSING,Care,Domiciliary Care,0,333,333,16-Jun-11,TBC
Nottinghamshire County Council,03-01948,CARITAS RECRUITMENT,People,Recruitment,0,997.89,997.89,09-Jun-11,TBC
Nottinghamshire County Council,03-01949,CARITAS RECRUITMENT,People,Recruitment,0,332.63,332.63,16-Jun-11,TBC
Nottinghamshire County Council,03-01950,UNIVERSAL LOCUMS,People,Recruitment,0,204.39,204.39,06-Jun-11,TBC
Nottinghamshire County Council,03-01951,CAPITA SOCIAL CARE AND HOUSING,Care,Domiciliary Care,0,135.42,135.42,16-Jun-11,TBC
Nottinghamshire County Council,03-01952,MEDICARE FIRST,Care,Medical Equipment &  Supplies,0,292.3,292.3,14-Jun-11,TBC
Nottinghamshire County Council,03-01953,CAPITA SOCIAL CARE AND HOUSING,Care,Domiciliary Care,0,254.65,254.65,09-Jun-11,TBC
Nottinghamshire County Council,03-01954,OUTCOMES UK,People,Recruitment,0,280.25,280.25,06-Jun-11,TBC
Nottinghamshire County Council,03-01955,CAPITA SOCIAL CARE AND HOUSING,Care,Domiciliary Care,0,465.51,465.51,16-Jun-11,TBC
Nottinghamshire County Council,03-01956,CAPITA SOCIAL CARE AND HOUSING,Care,Domiciliary Care,0,170.63,170.63,06-Jun-11,TBC
Nottinghamshire County Council,03-01958,CAPITA SOCIAL CARE AND HOUSING,Care,Domiciliary Care,0,241.2,241.2,06-Jun-11,TBC
Nottinghamshire County Council,03-01959,CAPITA SOCIAL CARE AND HOUSING,Care,Domiciliary Care,0,336.96,336.96,16-Jun-11,TBC
Nottinghamshire County Council,03-01960,ACADEMY SOCIAL CARE LIMITED,Care,Domiciliary Care,0,156.98,156.98,06-Jun-11,TBC
Nottinghamshire County Council,03-01961,ACADEMY SOCIAL CARE LIMITED,Care,Domiciliary Care,0,156.98,156.98,06-Jun-11,TBC
Nottinghamshire County Council,03-01962,ACADEMY SOCIAL CARE LIMITED,Care,Domiciliary Care,0,156.98,156.98,06-Jun-11,TBC
Nottinghamshire County Council,03-01964,ACADEMY SOCIAL CARE LIMITED,Care,Domiciliary Care,0,194.64,194.64,06-Jun-11,TBC
Nottinghamshire County Council,03-01966,CAPITA SOCIAL CARE AND HOUSING,Care,Domiciliary Care,0,357.3,357.3,16-Jun-11,TBC
Nottinghamshire County Council,03-01967,PHS GROUP PLC,Soft Facilities Management,Cleaning Equipment & Janitorial Supplies,0,328.11,328.11,06-Jun-11,TBC
Nottinghamshire County Council,03-01968,CAPITA SOCIAL CARE AND HOUSING,Care,Domiciliary Care,0,290.4,290.4,09-Jun-11,TBC
Nottinghamshire County Council,03-01969,CAPITA SOCIAL CARE AND HOUSING,Care,Domiciliary Care,0,260.24,260.24,16-Jun-11,TBC
Nottinghamshire County Council,03-01970,RECRUITMENT SPECIALIST GROUP LIMITED,People,Recruitment,0,352.09,352.09,06-Jun-11,TBC
Nottinghamshire County Council,03-01971,UNIVERSAL LOCUMS,People,Recruitment,0,130.39,130.39,06-Jun-11,TBC
Nottinghamshire County Council,03-01972,KONICA MINOLTA,ICT,"Printing & Publishing, Equipment & Supplies",0,189.08,189.08,06-Jun-11,TBC
Nottinghamshire County Council,03-01973,KONICA MINOLTA,ICT,"Printing & Publishing, Equipment & Supplies",0,343.17,343.17,06-Jun-11,TBC
Nottinghamshire County Council,03-01976,CYCLESCHEME LIMITED,Transport & Travel,Cycles,0,129.17,129.17,06-Jun-11,TBC
Nottinghamshire County Council,03-01998,REGATTA LIMITED,Soft Facilities Management,Clothing,0,-0.03,-0.03,06-Jun-11,TBC
Nottinghamshire County Council,03-02093,TARMAC CENTRAL LIMITED,External Services (Highways & Culture),Highways & Works,0,-0.01,-0.01,28-Jun-11,TBC
Nottinghamshire County Council,03-02094,TARMAC CENTRAL LIMITED,External Services (Highways & Culture),Highways & Works,0,-0.01,-0.01,28-Jun-11,TBC
Nottinghamshire County Council,03-02130,C P BERRY GROUNDWORKS LIMITED,External Services (Highways & Culture),Highways & Works,0,0.01,0.01,22-Jun-11,TBC
Nottinghamshire County Council,03-02138,MIDLAND QUARRY PRODUCTS LIMITED,External Services (Highways & Culture),Earth & Stone Aggregates ,0,0.01,0.01,28-Jun-11,TBC
Nottinghamshire County Council,03-02139,NEWARK CONCRETE,Hard Facilities Management ,Concrete Installation & Repair Services,0,-0.01,-0.01,14-Jun-11,TBC
Nottinghamshire County Council,03-02154,CAPITA SOCIAL CARE AND HOUSING,Care,Domiciliary Care,0,109.45,109.45,16-Jun-11,TBC
Nottinghamshire County Council,03-02157,EDEN BROWN LIMITED,People,Recruitment,0,335.28,335.28,07-Jun-11,TBC
Nottinghamshire County Council,03-02158,CARDEA,Care,Healthcare Services,0,94.97,94.97,07-Jun-11,TBC
Nottinghamshire County Council,03-02159,SWIIS (UK) LIMITED,People,Agency Staff - Care,0,147.69,147.69,07-Jun-11,TBC
Nottinghamshire County Council,03-02160,SWIIS (UK) LIMITED,People,Agency Staff - Care,0,159.74,159.74,07-Jun-11,TBC
Nottinghamshire County Council,03-02161,SWIIS (UK) LIMITED,People,Agency Staff - Care,0,178.58,178.58,07-Jun-11,TBC
Nottinghamshire County Council,03-02162,SWIIS (UK) LIMITED,People,Agency Staff - Care,0,173.31,173.31,07-Jun-11,TBC
Nottinghamshire County Council,03-02163,SWIIS (UK) LIMITED,People,Agency Staff - Care,0,113.03,113.03,10-Jun-11,TBC
Nottinghamshire County Council,03-02164,CAPITA SOCIAL CARE AND HOUSING,Care,Domiciliary Care,0,101.81,101.81,07-Jun-11,TBC
Nottinghamshire County Council,03-02165,ARJO LIMITED,Care,Medical Equipment &  Supplies,0,157.76,157.76,07-Jun-11,TBC
Nottinghamshire County Council,03-02166,CARDEA,Care,Healthcare Services,0,85.2,85.2,14-Jun-11,TBC
Nottinghamshire County Council,03-02168,CARDEA,Care,Healthcare Services,0,117.15,117.15,14-Jun-11,TBC
Nottinghamshire County Council,03-02170,SWIIS (UK) LIMITED,People,Agency Staff - Care,0,111.52,111.52,17-Jun-11,TBC
Nottinghamshire County Council,03-02171,SWIIS (UK) LIMITED,People,Agency Staff - Care,0,100.22,100.22,17-Jun-11,TBC
Nottinghamshire County Council,03-02172,CAPITA SOCIAL CARE AND HOUSING,Care,Domiciliary Care,0,120.48,120.48,07-Jun-11,TBC
Nottinghamshire County Council,03-02173,KONICA MINOLTA,ICT,"Printing & Publishing, Equipment & Supplies",0,199.87,199.87,17-Jun-11,TBC
Nottinghamshire County Council,03-02174,BESTWOOD LODGE HOTEL,Transport & Travel,Hotels & Venues,0,503.38,503.38,07-Jun-11,TBC
Nottinghamshire County Council,03-02177,MEDICARE FIRST,Care,Medical Equipment &  Supplies,0,261.18,261.18,07-Jun-11,TBC
Nottinghamshire County Council,03-02178,MEDICARE FIRST,Care,Medical Equipment &  Supplies,0,356.54,356.54,14-Jun-11,TBC
Nottinghamshire County Council,03-02179,NISAI VIRTUAL ACADEMY,People,Vocational Training,0,"9,500.00","9,500.00",07-Jun-11,TBC
Nottinghamshire County Council,03-02181,CARDEA,Care,Healthcare Services,0,83.43,83.43,21-Jun-11,TBC
Nottinghamshire County Council,03-02182,PROCHOICE RECRUITMENT SERVICES LIMITED,People,Recruitment,0,115.2,115.2,07-Jun-11,TBC
Nottinghamshire County Council,03-02183,EDEN BROWN LIMITED,People,Recruitment,0,342.49,342.49,10-Jun-11,TBC
Nottinghamshire County Council,03-02184,CAPITA SOCIAL CARE AND HOUSING,Care,Domiciliary Care,0,181.8,181.8,16-Jun-11,TBC
Nottinghamshire County Council,03-02185,CAPITA SOCIAL CARE AND HOUSING,Care,Domiciliary Care,0,102.27,102.27,16-Jun-11,TBC
Nottinghamshire County Council,03-02186,CAPITA SOCIAL CARE AND HOUSING,Care,Domiciliary Care,0,113.52,113.52,16-Jun-11,TBC
Nottinghamshire County Council,03-02190,BRITISH STANDARDS INSTITUTE,External Services (Highways & Culture),Organisations & Clubs,0,152.2,152.2,07-Jun-11,TBC
Nottinghamshire County Council,03-02191,BRITISH STANDARDS INSTITUTE,External Services (Highways & Culture),Organisations & Clubs,0,113.4,113.4,07-Jun-11,TBC
Nottinghamshire County Council,03-02192,HEALTHCARE TRAINING,People,Vocational Training,0,120,120,13-Jun-11,TBC
Nottinghamshire County Council,03-02193,JDI SOLUTIONS LIMITED,ICT,Software,0,"1,400.00","1,400.00",27-Jun-11,TBC
Nottinghamshire County Council,03-02194,CLYMAC,ICT,Audio & Visual Equipment,0,96,96,07-Jun-11,TBC
Nottinghamshire County Council,03-02198,FORMOST AIRCONDITIONING AND REFRIG LIMITED,Hard Facilities Management ,Heating & Ventilation (Inc A/C),0,649.4,649.4,07-Jun-11,TBC
Nottinghamshire County Council,03-02199,PARK FARMING LIMITED,Soft Facilities Management,Scrap & Waste Materials,0,626.99,626.99,29-Jun-11,TBC
Nottinghamshire County Council,03-02200,PARK FARMING LIMITED,Soft Facilities Management,Scrap & Waste Materials,0,626.99,626.99,29-Jun-11,TBC
Nottinghamshire County Council,03-02204,CAPITA SOCIAL CARE AND HOUSING,Care,Domiciliary Care,0,113.52,113.52,07-Jun-11,TBC
Nottinghamshire County Council,03-02205,HS SPORTS LIMITED,External Services (Highways & Culture),Sports & Recreational Equipment & Supplies,0,385,385,07-Jun-11,TBC
Nottinghamshire County Council,03-02206,INCLUSIVE TECHNOLOGY,ICT,Software,0,89.6,89.6,07-Jun-11,TBC
Nottinghamshire County Council,03-02207,BRAKE BROS LIMITED,Soft Facilities Management,Prepared & Preserved Foods,0,50.62,50.62,07-Jun-11,TBC
Nottinghamshire County Council,03-02211,KONICA MINOLTA,ICT,"Printing & Publishing, Equipment & Supplies",0,291.83,291.83,07-Jun-11,TBC
Nottinghamshire County Council,03-02212,KONICA MINOLTA,ICT,"Printing & Publishing, Equipment & Supplies",0,125.9,125.9,07-Jun-11,TBC
Nottinghamshire County Council,03-02214,KONICA MINOLTA,ICT,"Printing & Publishing, Equipment & Supplies",0,258.72,258.72,13-Jun-11,TBC
Nottinghamshire County Council,03-02215,CRANTON ELECTRICAL CO LIMITED,Hard Facilities Management ,Electrical Systems & Lighting,0,138.98,138.98,07-Jun-11,TBC
Nottinghamshire County Council,03-02218,CAPITA SOCIAL CARE AND HOUSING,Care,Domiciliary Care,0,102.28,102.28,07-Jun-11,TBC
Nottinghamshire County Council,03-02287,TUBES FITTINGS VALVES LIMITED,Hard Facilities Management ,Plumbing Services,0,0.01,0.01,10-Jun-11,TBC
Nottinghamshire County Council,03-02290,TUBES FITTINGS VALVES LIMITED,Hard Facilities Management ,Plumbing Services,0,-0.01,-0.01,13-Jun-11,TBC
Nottinghamshire County Council,03-02321,TOTAL UK LIMITED,Transport & Travel,Gas Fuels & Lubricants ,0,-0.01,-0.01,10-Jun-11,TBC
Nottinghamshire County Council,03-02324,NEWARK CONCRETE,Hard Facilities Management ,Concrete Installation & Repair Services,0,0.01,0.01,14-Jun-11,TBC
Nottinghamshire County Council,03-02350,ENNSTONE JOHNSTON LIMITED,External Services (Highways & Culture),Earth & Stone Aggregates ,0,0.01,0.01,08-Jun-11,TBC
Nottinghamshire County Council,03-02442,PROCHOICE RECRUITMENT SERVICES LIMITED,People,Recruitment,0,114,114,08-Jun-11,TBC
Nottinghamshire County Council,03-02444,CAPITA SOCIAL CARE AND HOUSING,Care,Domiciliary Care,0,156.89,156.89,08-Jun-11,TBC
Nottinghamshire County Council,03-02445,H CAVA,Persons Name,Person Name,0,323.83,323.83,08-Jun-11,TBC
Nottinghamshire County Council,03-02446,KINGSFORTH SECURITY FENCING LIMITED,Soft Facilities Management,Security,0,133.05,133.05,08-Jun-11,TBC
Nottinghamshire County Council,03-02447,SMARTT SOFTWARE LIMITED,ICT,Software,0,945.81,945.81,08-Jun-11,TBC
Nottinghamshire County Council,03-02448,KINGSFORTH SECURITY FENCING LIMITED,Soft Facilities Management,Security,0,432.47,432.47,08-Jun-11,TBC
Nottinghamshire County Council,03-02449,MERIDIAN BUSINESS SUPPORT LIMITED,People,Recruitment,0,118.86,118.86,27-Jun-11,TBC
Nottinghamshire County Council,03-02450,PROCYON LIMITED,ICT,Audio & Visual Equipment,0,447,447,21-Jun-11,TBC
Nottinghamshire County Council,03-02451,SWIIS (UK) LIMITED,People,Agency Staff - Care,0,99.33,99.33,17-Jun-11,TBC
Nottinghamshire County Council,03-02452,CARDEA,Care,Healthcare Services,0,188.95,188.95,21-Jun-11,TBC
Nottinghamshire County Council,03-02453,CARDEA,Care,Healthcare Services,0,333,333,21-Jun-11,TBC
Nottinghamshire County Council,03-02454,CAPITA SOCIAL CARE AND HOUSING,Care,Domiciliary Care,0,236.54,236.54,23-Jun-11,TBC
Nottinghamshire County Council,03-02455,WILLIAM FREER LIMITED,Soft Facilities Management,Vending Machines & Food Equipment,0,331.57,331.57,08-Jun-11,TBC
Nottinghamshire County Council,03-02456,CARDEA,Care,Healthcare Services,0,124.6,124.6,21-Jun-11,TBC
Nottinghamshire County Council,03-02457,LEICESTERSHIRE COUNTY COUNCIL,Professional Services,Politics & Civic Affairs,0,110.4,110.4,14-Jun-11,TBC
Nottinghamshire County Council,03-02458,KELWAY (UK) LIMITED,ICT,Computer Services,0,176.06,176.06,24-Jun-11,TBC
Nottinghamshire County Council,03-02459,CARDEA,Care,Healthcare Services,0,91.7,91.7,21-Jun-11,TBC
Nottinghamshire County Council,03-02460,CAPITA SOCIAL CARE AND HOUSING,Care,Domiciliary Care,0,113.52,113.52,08-Jun-11,TBC
Nottinghamshire County Council,03-02461,CAPITA SOCIAL CARE AND HOUSING,Care,Domiciliary Care,0,157.28,157.28,08-Jun-11,TBC
Nottinghamshire County Council,03-02462,HAROLD POTTER AND COMPANY LIMITED,Professional Services,Professional Engineering Services,0,208.38,208.38,08-Jun-11,TBC
Nottinghamshire County Council,03-02463,EDEN BROWN LIMITED,People,Recruitment,0,268.92,268.92,24-Jun-11,TBC
Nottinghamshire County Council,03-02464,EDEN BROWN LIMITED,People,Recruitment,0,353.05,353.05,24-Jun-11,TBC
Nottinghamshire County Council,03-02465,EDEN BROWN LIMITED,People,Recruitment,0,165.56,165.56,24-Jun-11,TBC
Nottinghamshire County Council,03-02466,EDEN BROWN LIMITED,People,Recruitment,0,370.03,370.03,24-Jun-11,TBC
Nottinghamshire County Council,03-02467,EDEN BROWN LIMITED,People,Recruitment,0,282.64,282.64,24-Jun-11,TBC
Nottinghamshire County Council,03-02468,EDEN BROWN LIMITED,People,Recruitment,0,286.65,286.65,24-Jun-11,TBC
Nottinghamshire County Council,03-02469,EDEN BROWN LIMITED,People,Recruitment,0,226.91,226.91,24-Jun-11,TBC
Nottinghamshire County Council,03-02470,EDEN BROWN LIMITED,People,Recruitment,0,481,481,24-Jun-11,TBC
Nottinghamshire County Council,03-02471,EDEN BROWN LIMITED,People,Recruitment,0,365.71,365.71,24-Jun-11,TBC
Nottinghamshire County Council,03-02472,EDEN BROWN LIMITED,People,Recruitment,0,430.62,430.62,24-Jun-11,TBC
Nottinghamshire County Council,03-02473,EDEN BROWN LIMITED,People,Recruitment,0,403.43,403.43,24-Jun-11,TBC
Nottinghamshire County Council,03-02474,EDEN BROWN LIMITED,People,Recruitment,0,369.67,369.67,24-Jun-11,TBC
Nottinghamshire County Council,03-02475,EDEN BROWN LIMITED,People,Recruitment,0,295.78,295.78,24-Jun-11,TBC
Nottinghamshire County Council,03-02476,OUTCOMES UK,People,Recruitment,0,703,703,08-Jun-11,TBC
Nottinghamshire County Council,03-02477,CARDEA,Care,Healthcare Services,0,213.36,213.36,08-Jun-11,TBC
Nottinghamshire County Council,03-02478,ADVANTAGE HEALTHCARE NURSING ANDCARE LIMITED,Care,Healthcare Services,0,325.5,325.5,08-Jun-11,TBC
Nottinghamshire County Council,03-02479,ADVANTAGE HEALTHCARE NURSING ANDCARE LIMITED,Care,Healthcare Services,0,292.26,292.26,08-Jun-11,TBC
Nottinghamshire County Council,03-02480,ADVANTAGE HEALTHCARE NURSING ANDCARE LIMITED,Care,Healthcare Services,0,236.76,236.76,08-Jun-11,TBC
Nottinghamshire County Council,03-02481,WATCH-IT SECURITY SERVICES,Soft Facilities Management,Security,0,149,149,08-Jun-11,TBC
Nottinghamshire County Council,03-02482,SPECIALIST COMPUTER CENTRES LIMITED,ICT,Computer Services,0,95.48,95.48,20-Jun-11,TBC
Nottinghamshire County Council,03-02483,GATENBY SANDERSON,Persons Name,Person Name,0,516.73,516.73,08-Jun-11,TBC
Nottinghamshire County Council,03-02485,REDSPEED INTERNATION LIMITED,External Services (Highways & Culture),Highways & Works,0,749.85,749.85,17-Jun-11,TBC
Nottinghamshire County Council,03-02486,LIFTSHARE,Transport & Travel,Taxi,0,"1,166.89","1,166.89",08-Jun-11,TBC
Nottinghamshire County Council,03-02487,CARDEA,Care,Healthcare Services,0,100.87,100.87,14-Jun-11,TBC
Nottinghamshire County Council,03-02488,CARDEA,Care,Healthcare Services,0,115.43,115.43,08-Jun-11,TBC
Nottinghamshire County Council,03-02489,CARDEA,Care,Healthcare Services,0,148.29,148.29,08-Jun-11,TBC
Nottinghamshire County Council,03-02490,REED EMPLOYMENT PLC,People,Recruitment,0,282.8,282.8,08-Jun-11,TBC
Nottinghamshire County Council,03-02491,EDEN BROWN LIMITED,People,Recruitment,0,282,282,23-Jun-11,TBC
Nottinghamshire County Council,03-02492,REED EMPLOYMENT PLC,People,Recruitment,0,239.17,239.17,08-Jun-11,TBC
Nottinghamshire County Council,03-02493,EDEN BROWN LIMITED,People,Recruitment,0,222.39,222.39,23-Jun-11,TBC
Nottinghamshire County Council,03-02494,CARITAS RECRUITMENT,People,Recruitment,0,141.73,141.73,23-Jun-11,TBC
Nottinghamshire County Council,03-02495,EDEN BROWN LIMITED,People,Recruitment,0,506.76,506.76,23-Jun-11,TBC
Nottinghamshire County Council,03-02496,N S L LIMITED,Transport & Travel,Motor Vehicles,0,"18,441.24","18,441.24",08-Jun-11,TBC
Nottinghamshire County Council,03-02497,A4E CONSULT LIMITED,Professional Services,Consultancy,0,136.5,136.5,08-Jun-11,TBC
Nottinghamshire County Council,03-02499,CAPITA SOCIAL CARE AND HOUSING,Care,Domiciliary Care,0,179.75,179.75,16-Jun-11,TBC
Nottinghamshire County Council,03-02500,CAPITA SOCIAL CARE AND HOUSING,Care,Domiciliary Care,0,174.94,174.94,09-Jun-11,TBC
Nottinghamshire County Council,03-02501,ACADEMY SOCIAL CARE LIMITED,Care,Domiciliary Care,0,192.18,192.18,08-Jun-11,TBC
Nottinghamshire County Council,03-02502,HS SPORTS LIMITED,External Services (Highways & Culture),Sports & Recreational Equipment & Supplies,0,100.3,100.3,10-Jun-11,TBC
Nottinghamshire County Council,03-02505,REED BUSINESS INFORMATION LIMITED,ICT,"Printing & Publishing, Equipment & Supplies",0,"1,417.40","1,417.40",08-Jun-11,TBC
Nottinghamshire County Council,03-02506,E M E C ECOLOGICAL CONSULTANTS,Soft Facilities Management,Environmental Services,0,315.5,315.5,08-Jun-11,TBC
Nottinghamshire County Council,03-02568,BRAKE BROS LIMITED,Soft Facilities Management,Prepared & Preserved Foods,0,0.03,0.03,08-Jun-11,TBC
Nottinghamshire County Council,03-02674,BRAKE BROS LIMITED,Soft Facilities Management,Prepared & Preserved Foods,0,-0.01,-0.01,08-Jun-11,TBC
Nottinghamshire County Council,03-02691,BATCHMIX LIMITED,Hard Facilities Management ,Concrete Installation & Repair Services,0,-0.01,-0.01,14-Jun-11,TBC
Nottinghamshire County Council,03-02692,BATCHMIX LIMITED,Hard Facilities Management ,Concrete Installation & Repair Services,0,0.01,0.01,14-Jun-11,TBC
Nottinghamshire County Council,03-02693,BATCHMIX LIMITED,Hard Facilities Management ,Concrete Installation & Repair Services,0,0.01,0.01,14-Jun-11,TBC
Nottinghamshire County Council,03-02708,SIGNATURE LIMITED,External Services (Highways & Culture),Highways & Works,0,"2,050.33","2,050.33",09-Jun-11,TBC
Nottinghamshire County Council,03-02713,SIGNATURE LIMITED,External Services (Highways & Culture),Highways & Works,0,450,450,09-Jun-11,TBC
Nottinghamshire County Council,03-02714,TUNSTALL TELECOM LIMITED,ICT,Telecommunications & Media,0,89.28,89.28,09-Jun-11,TBC
Nottinghamshire County Council,03-02715,ADVANCE CARE TRAINING LIMITED,People,Vocational Training,0,125,125,29-Jun-11,TBC
Nottinghamshire County Council,03-02716,EMERY JOHNSON SOLICITORS,Professional Services,Legal Services,0,152.09,152.09,22-Jun-11,TBC
Nottinghamshire County Council,03-02718,EMERY JOHNSON SOLICITORS,Professional Services,Legal Services,0,84.37,84.37,22-Jun-11,TBC
Nottinghamshire County Council,03-02719,SOUTH FOREST LEISURE CENTRE,Transport & Travel,Hotels & Venues,0,106.64,106.64,09-Jun-11,TBC
Nottinghamshire County Council,03-02720,STRAW AND PEARCE SOLICITORS,Professional Services,Legal Services,0,399.56,399.56,22-Jun-11,TBC
Nottinghamshire County Council,03-02721,CARTER BROWN ASSOCIATES,Professional Services,Legal Services,0,163.5,163.5,09-Jun-11,TBC
Nottinghamshire County Council,03-02722,CARTER BROWN ASSOCIATES,Professional Services,Legal Services,0,223.87,223.87,09-Jun-11,TBC
Nottinghamshire County Council,03-02723,GALTEC SOLUTIONS LIMITED,ICT,Computer Equipment & Accessories,0,"1,073.80","1,073.80",09-Jun-11,TBC
Nottinghamshire County Council,03-02724,J L HARPHAM LIMITED,TBC,TBC,0,195.3,195.3,09-Jun-11,TBC
Nottinghamshire County Council,03-02725,C ANDERSON,Persons Name,Person Name,0,95,95,09-Jun-11,TBC
Nottinghamshire County Council,03-02726,J CLAXTON,Persons Name,Person Name,0,440,440,09-Jun-11,TBC
Nottinghamshire County Council,03-02727,CARTER BROWN ASSOCIATES,Professional Services,Legal Services,0,191.71,191.71,09-Jun-11,TBC
Nottinghamshire County Council,03-02728,CARTER BROWN ASSOCIATES,Professional Services,Legal Services,0,107.82,107.82,09-Jun-11,TBC
Nottinghamshire County Council,03-02729,EMO OIL LIMITED,Hard Facilities Management ,Utilities,0,31.57,31.57,09-Jun-11,TBC
Nottinghamshire County Council,03-02730,XMA LIMITED,ICT,Computer Equipment & Accessories,0,89.76,89.76,24-Jun-11,TBC
Nottinghamshire County Council,03-02731,CANDOR SERVICES LIMITED,Soft Facilities Management,Cleaning Equipment & Janitorial Supplies,0,220,220,09-Jun-11,TBC
Nottinghamshire County Council,03-02732,FEET (LINE MARKERS ) LIMITED,External Services (Highways & Culture),Sports & Recreational Equipment & Supplies,0,182,182,09-Jun-11,TBC
Nottinghamshire County Council,03-02733,OFFICE INNOVATIONS,Soft Facilities Management,Office Supplies & Machines (Non It),0,203.4,203.4,29-Jun-11,TBC
Nottinghamshire County Council,03-02735,CARTER BROWN ASSOCIATES,Professional Services,Legal Services,0,375,375,09-Jun-11,TBC
Nottinghamshire County Council,03-02737,H KAUR,Persons Name,Person Name,0,270,270,14-Jun-11,TBC
Nottinghamshire County Council,03-02738,DAVID BRIGGS ASSOCIATES,Care,Daycare,0,126.74,126.74,09-Jun-11,TBC
Nottinghamshire County Council,03-02739,WILLIAM FREER LIMITED,Soft Facilities Management,Vending Machines & Food Equipment,0,185.41,185.41,09-Jun-11,TBC
Nottinghamshire County Council,03-02740,KONICA MINOLTA,ICT,"Printing & Publishing, Equipment & Supplies",0,112.69,112.69,10-Jun-11,TBC
Nottinghamshire County Council,03-02741,J L HARPHAM LIMITED,TBC,TBC,0,96.2,96.2,09-Jun-11,TBC
Nottinghamshire County Council,03-02743,BRITISH RED CROSS SOCIETY,Care,Residential Care,0,433.71,433.71,17-Jun-11,TBC
Nottinghamshire County Council,03-02744,JACKSON QUINN SOLICITORS,Professional Services,Legal Services,0,118.63,118.63,10-Jun-11,TBC
Nottinghamshire County Council,03-02745,KONICA MINOLTA,ICT,"Printing & Publishing, Equipment & Supplies",0,122.65,122.65,10-Jun-11,TBC
Nottinghamshire County Council,03-02746,THE ROWAN ORGANISATION,Care,Daycare,0,"4,016.40","4,016.40",09-Jun-11,TBC
Nottinghamshire County Council,03-02747,IAN BUGG,People,Vocational Training,0,200,200,09-Jun-11,TBC
Nottinghamshire County Council,03-02748,SODEXO PRESTIGE LIMITED,Soft Facilities Management,Vending Machines & Food Equipment,0,120,120,09-Jun-11,TBC
Nottinghamshire County Council,03-02749,LINCOLNSHIRE MARINE SERVICES,Professional Services,Politics & Civic Affairs,0,312.4,312.4,16-Jun-11,TBC
Nottinghamshire County Council,03-02750,FLORIDA MARQUEES LIMITED,Transport & Travel,Hotels & Venues,0,244.57,244.57,09-Jun-11,TBC
Nottinghamshire County Council,03-02751,DIVERSITY AND INCLUSION VISSER ASSOCIATES,Professional Services,Consultancy,0,163.42,163.42,09-Jun-11,TBC
Nottinghamshire County Council,03-02752,RUFFORD PARK GOLF AND COUNTRY CLUB,Transport & Travel,Hotels & Venues,0,217.6,217.6,09-Jun-11,TBC
Nottinghamshire County Council,03-02753,CAPITA SOCIAL CARE AND HOUSING,Care,Domiciliary Care,0,107.57,107.57,23-Jun-11,TBC
Nottinghamshire County Council,03-02755,CAPITA SOCIAL CARE AND HOUSING,Care,Domiciliary Care,0,113.52,113.52,23-Jun-11,TBC
Nottinghamshire County Council,03-02757,CAPITA SOCIAL CARE AND HOUSING,Care,Domiciliary Care,0,108.72,108.72,23-Jun-11,TBC
Nottinghamshire County Council,03-02758,HAROLD POTTER AND COMPANY LIMITED,Professional Services,Professional Engineering Services,0,193.79,193.79,09-Jun-11,TBC
Nottinghamshire County Council,03-02759,TNT POST UK LIMITED,Soft Facilities Management,Mail & Couriers,0,296.32,296.32,09-Jun-11,TBC
Nottinghamshire County Council,03-02760,CAPITA SOCIAL CARE AND HOUSING,Care,Domiciliary Care,0,115.92,115.92,23-Jun-11,TBC
Nottinghamshire County Council,03-02761,CANDOR SERVICES LIMITED,Soft Facilities Management,Cleaning Equipment & Janitorial Supplies,0,134.91,134.91,09-Jun-11,TBC
Nottinghamshire County Council,03-02762,CARDEA,Care,Healthcare Services,0,198.8,198.8,09-Jun-11,TBC
Nottinghamshire County Council,03-02763,SHERIDAN MYERS,Professional Services,Consultancy,0,"1,377.71","1,377.71",09-Jun-11,TBC
Nottinghamshire County Council,03-02764,SIGNATURE LIMITED,External Services (Highways & Culture),Highways & Works,0,710,710,09-Jun-11,TBC
Nottinghamshire County Council,03-02765,BRAKE BROS LIMITED,Soft Facilities Management,Prepared & Preserved Foods,0,-0.08,-0.08,09-Jun-11,TBC
Nottinghamshire County Council,03-03025,BCB COATED STONE LIMITED,External Services (Highways & Culture),Highways & Works,0,-0.01,-0.01,17-Jun-11,TBC
Nottinghamshire County Council,03-03026,BRAKE BROS LIMITED,Soft Facilities Management,Prepared & Preserved Foods,0,0.02,0.02,10-Jun-11,TBC
Nottinghamshire County Council,03-03115,IMPERIAL PORTLAND LAUNDRY CO LIMITED,Soft Facilities Management,Industrial Cleaning Services,0,135.24,135.24,10-Jun-11,TBC
Nottinghamshire County Council,03-03116,ARCO LIMITED,Hard Facilities Management ,Health & Safety,0,92.84,92.84,10-Jun-11,TBC
Nottinghamshire County Council,03-03117,SHELTER MAINTENANCE CO,Hard Facilities Management ,Building Construction Services,0,126,126,10-Jun-11,TBC
Nottinghamshire County Council,03-03118,KOREC,TBC,TBC,0,166.25,166.25,10-Jun-11,TBC
Nottinghamshire County Council,03-03120,SHAW BROS LIMITED,Hard Facilities Management ,Plumbing Services,0,86.4,86.4,10-Jun-11,TBC
Nottinghamshire County Council,03-03121,CABAT COMMERCIAL FURNIURE,Soft Facilities Management,Furniture & Furnishings,0,386.65,386.65,16-Jun-11,TBC
Nottinghamshire County Council,03-03122,CABAT COMMERCIAL FURNIURE,Soft Facilities Management,Furniture & Furnishings,0,386.65,386.65,10-Jun-11,TBC
Nottinghamshire County Council,03-03123,MIDLAND ROOFING SERVICES (DERBY) LIMITED,Hard Facilities Management ,Roofing Services,0,155.2,155.2,29-Jun-11,TBC
Nottinghamshire County Council,03-03124,CAPITA SOCIAL CARE AND HOUSING,Care,Domiciliary Care,0,116.76,116.76,23-Jun-11,TBC
Nottinghamshire County Council,03-03125,CAPITA SOCIAL CARE AND HOUSING,Care,Domiciliary Care,0,117.03,117.03,23-Jun-11,TBC
Nottinghamshire County Council,03-03126,CAPITA SOCIAL CARE AND HOUSING,Care,Domiciliary Care,0,125.41,125.41,23-Jun-11,TBC
Nottinghamshire County Council,03-03127,CAPITA SOCIAL CARE AND HOUSING,Care,Domiciliary Care,0,125.04,125.04,23-Jun-11,TBC
Nottinghamshire County Council,03-03128,CAPITA SOCIAL CARE AND HOUSING,Care,Domiciliary Care,0,116.94,116.94,23-Jun-11,TBC
Nottinghamshire County Council,03-03129,CAPITA SOCIAL CARE AND HOUSING,Care,Domiciliary Care,0,103.1,103.1,23-Jun-11,TBC
Nottinghamshire County Council,03-03130,CAPITA SOCIAL CARE AND HOUSING,Care,Domiciliary Care,0,122.16,122.16,23-Jun-11,TBC
Nottinghamshire County Council,03-03131,CAPITA SOCIAL CARE AND HOUSING,Care,Domiciliary Care,0,143.68,143.68,23-Jun-11,TBC
Nottinghamshire County Council,03-03133,ROBERT WOODHEAD LIMITED,Hard Facilities Management ,Building Construction Services,0,477,477,10-Jun-11,TBC
Nottinghamshire County Council,03-03135,WSP DEVELOPMENT AND TRANSPORTATION,Professional Services,Consultancy,0,433,433,10-Jun-11,TBC
Nottinghamshire County Council,03-03136,OUTCOMES UK,People,Recruitment,0,"1,188.16","1,188.16",10-Jun-11,TBC
Nottinghamshire County Council,03-03137,CYCLESCHEME LIMITED,Transport & Travel,Cycles,0,119.33,119.33,10-Jun-11,TBC
Nottinghamshire County Council,03-03138,CYCLESCHEME LIMITED,Transport & Travel,Cycles,0,127.5,127.5,10-Jun-11,TBC
Nottinghamshire County Council,03-03139,ASSETCO RENTALS NO 2 LIMITED,Transport & Travel,Motor Vehicles,0,98.45,98.45,10-Jun-11,TBC
Nottinghamshire County Council,03-03140,CAPITA SOCIAL CARE AND HOUSING,Care,Domiciliary Care,0,119.06,119.06,16-Jun-11,TBC
Nottinghamshire County Council,03-03141,CAPITA SOCIAL CARE AND HOUSING,Care,Domiciliary Care,0,132.74,132.74,16-Jun-11,TBC
Nottinghamshire County Council,03-03142,CAPITA SOCIAL CARE AND HOUSING,Care,Domiciliary Care,0,121.72,121.72,10-Jun-11,TBC
Nottinghamshire County Council,03-03143,CHIPSIDE LIMITED,ICT,Software,0,441.05,441.05,10-Jun-11,TBC
Nottinghamshire County Council,03-03144,COACHWISE LIMITED,Transport & Travel,Bus,0,2,2,10-Jun-11,TBC
Nottinghamshire County Council,03-03145,CARITAS RECRUITMENT,People,Recruitment,0,295.63,295.63,23-Jun-11,TBC
Nottinghamshire County Council,03-03146,EDEN BROWN LIMITED,People,Recruitment,0,315.31,315.31,24-Jun-11,TBC
Nottinghamshire County Council,03-03147,EDEN BROWN LIMITED,People,Recruitment,0,353.88,353.88,24-Jun-11,TBC
Nottinghamshire County Council,03-03148,EDEN BROWN LIMITED,People,Recruitment,0,276.84,276.84,24-Jun-11,TBC
Nottinghamshire County Council,03-03149,SERENE CONSULTING LIMITED,Professional Services,Consultancy,0,"1,705.00","1,705.00",10-Jun-11,TBC
Nottinghamshire County Council,03-03150,CAPITA SOCIAL CARE AND HOUSING,Care,Domiciliary Care,0,135.42,135.42,23-Jun-11,TBC
Nottinghamshire County Council,03-03151,SPRING TECHNOLOGY STAFFING SERVICES,People,Recruitment,0,368.55,368.55,10-Jun-11,TBC
Nottinghamshire County Council,03-03152,SPRING TECHNOLOGY STAFFING SERVICES,People,Recruitment,0,368.55,368.55,10-Jun-11,TBC
Nottinghamshire County Council,03-03153,SPRING TECHNOLOGY STAFFING SERVICES,People,Recruitment,0,368.55,368.55,10-Jun-11,TBC
Nottinghamshire County Council,03-03154,CAPITA SOCIAL CARE AND HOUSING,Care,Domiciliary Care,0,233.72,233.72,23-Jun-11,TBC
Nottinghamshire County Council,03-03155,SPRING TECHNOLOGY STAFFING SERVICES,People,Recruitment,0,368.55,368.55,10-Jun-11,TBC
Nottinghamshire County Council,03-03156,SPRING TECHNOLOGY STAFFING SERVICES,People,Recruitment,0,526.5,526.5,10-Jun-11,TBC
Nottinghamshire County Council,03-03157,RB2 UK LIMITED,Care,Medical Equipment &  Supplies,0,373,373,10-Jun-11,TBC
Nottinghamshire County Council,03-03158,OUTCOMES UK,People,Recruitment,0,"6,883.49","6,883.49",10-Jun-11,TBC
Nottinghamshire County Council,03-03159,DRAEFERN LIMITED T/A RIGHT4STAFF,People,Recruitment,0,86.52,86.52,10-Jun-11,TBC
Nottinghamshire County Council,03-03160,SPRING TECHNOLOGY STAFFING SERVICES,People,Recruitment,0,526.5,526.5,10-Jun-11,TBC
Nottinghamshire County Council,03-03161,SPRING TECHNOLOGY STAFFING SERVICES,People,Recruitment,0,526.5,526.5,10-Jun-11,TBC
Nottinghamshire County Council,03-03162,SPRING TECHNOLOGY STAFFING SERVICES,People,Recruitment,0,526.5,526.5,10-Jun-11,TBC
Nottinghamshire County Council,03-03163,SPRING TECHNOLOGY STAFFING SERVICES,People,Recruitment,0,315.9,315.9,10-Jun-11,TBC
Nottinghamshire County Council,03-03164,SPRING TECHNOLOGY STAFFING SERVICES,People,Recruitment,0,421.2,421.2,10-Jun-11,TBC
Nottinghamshire County Council,03-03165,SPRING TECHNOLOGY STAFFING SERVICES,People,Recruitment,0,122.85,122.85,10-Jun-11,TBC
Nottinghamshire County Council,03-03166,SPRING TECHNOLOGY STAFFING SERVICES,People,Recruitment,0,245.7,245.7,10-Jun-11,TBC
Nottinghamshire County Council,03-03167,SPRING TECHNOLOGY STAFFING SERVICES,People,Recruitment,0,368.55,368.55,10-Jun-11,TBC
Nottinghamshire County Council,03-03168,SPRING TECHNOLOGY STAFFING SERVICES,People,Recruitment,0,526.5,526.5,10-Jun-11,TBC
Nottinghamshire County Council,03-03169,SPRING TECHNOLOGY STAFFING SERVICES,People,Recruitment,0,368.55,368.55,10-Jun-11,TBC
Nottinghamshire County Council,03-03170,SPRING TECHNOLOGY STAFFING SERVICES,People,Recruitment,0,526.5,526.5,10-Jun-11,TBC
Nottinghamshire County Council,03-03171,SPRING TECHNOLOGY STAFFING SERVICES,People,Recruitment,0,368.55,368.55,10-Jun-11,TBC
Nottinghamshire County Council,03-03172,SHEFFIELD FAMILY LAW ASSOCIATES,Professional Services,Legal Services,0,93.91,93.91,10-Jun-11,TBC
Nottinghamshire County Council,03-03173,ASSETCO RENTALS NO 2 LIMITED,Transport & Travel,Motor Vehicles,0,207.6,207.6,10-Jun-11,TBC
Nottinghamshire County Council,03-03174,CARITAS RECRUITMENT,People,Recruitment,0,"1,373.10","1,373.10",23-Jun-11,TBC
Nottinghamshire County Council,03-03177,OCEANS OF FUN,External Services (Highways & Culture),Sports & Recreational Equipment & Supplies,0,200,200,10-Jun-11,TBC
Nottinghamshire County Council,03-03180,A WREN,Persons Name,Person Name,0,494,494,20-Jun-11,TBC
Nottinghamshire County Council,03-03261,HULLEYS,Soft Facilities Management,Frozen Goods,0,-0.01,-0.01,10-Jun-11,TBC
Nottinghamshire County Council,03-03276,BRAKE BROS LIMITED,Soft Facilities Management,Prepared & Preserved Foods,0,-0.04,-0.04,10-Jun-11,TBC
Nottinghamshire County Council,03-03308,WASTE RECYCLING GROUP PLC,Soft Facilities Management,Environmental Services,0,-0.01,-0.01,29-Jun-11,TBC
Nottinghamshire County Council,03-03309,WASTE RECYCLING GROUP PLC,Soft Facilities Management,Environmental Services,0,"15,268.43","15,268.43",29-Jun-11,TBC
Nottinghamshire County Council,03-03318,NORTHCLIFFE MEDIA LIMITED,ICT,Telecommunications & Media,0,-0.04,-0.04,14-Jun-11,TBC
Nottinghamshire County Council,03-03319,TSL EDUCATION LIMITED,External Services (Highways & Culture),Education Services,0,-0.03,-0.03,14-Jun-11,TBC
Nottinghamshire County Council,03-03577,HULLEYS,Soft Facilities Management,Frozen Goods,0,-0.01,-0.01,13-Jun-11,TBC
Nottinghamshire County Council,03-03588,NTL GROUP LIMITED,ICT,Telecommunications & Media,0,-22.77,-22.77,14-Jun-11,TBC
Nottinghamshire County Council,03-03602,AQUAFIELD,People,Vocational Training,0,480,480,13-Jun-11,TBC
Nottinghamshire County Council,03-03603,AQUAFIELD,People,Vocational Training,0,120,120,14-Jun-11,TBC
Nottinghamshire County Council,03-03604,AQUAFIELD,People,Vocational Training,0,120,120,13-Jun-11,TBC
Nottinghamshire County Council,03-03646,B AND M INSTALLATIONS LIMITED,Hard Facilities Management ,Building Construction Services,0,158,158,14-Jun-11,TBC
Nottinghamshire County Council,03-03647,KB RECRUITMENT LIMITED,People,Recruitment,0,133.63,133.63,14-Jun-11,TBC
Nottinghamshire County Council,03-03648,FEET (LINE MARKERS ) LIMITED,External Services (Highways & Culture),Sports & Recreational Equipment & Supplies,0,182,182,14-Jun-11,TBC
Nottinghamshire County Council,03-03649,GRASSMATS CO UK,Soft Facilities Management,Furniture & Furnishings,0,197.8,197.8,21-Jun-11,TBC
Nottinghamshire County Council,03-03651,KB RECRUITMENT LIMITED,People,Recruitment,0,158.04,158.04,14-Jun-11,TBC
Nottinghamshire County Council,03-03653,CANDOR SERVICES LIMITED,Soft Facilities Management,Cleaning Equipment & Janitorial Supplies,0,94.41,94.41,14-Jun-11,TBC
Nottinghamshire County Council,03-03654,SPORT LEADER UK,People,Vocational Training,0,406.25,406.25,14-Jun-11,TBC
Nottinghamshire County Council,03-03655,SPRING TECHNOLOGY STAFFING SERVICES,People,Recruitment,0,421.2,421.2,14-Jun-11,TBC
Nottinghamshire County Council,03-03658,CYCLESCHEME LIMITED,Transport & Travel,Cycles,0,255.92,255.92,14-Jun-11,TBC
Nottinghamshire County Council,03-03659,PITNEY BOWES FINANCE PLC,Soft Facilities Management,Mail & Couriers,0,120.4,120.4,14-Jun-11,TBC
Nottinghamshire County Council,03-03660,VENTURE4LIFE,External Services (Highways & Culture),Education Services,0,528,528,14-Jun-11,TBC
Nottinghamshire County Council,03-03678,C BRIGHT,Persons Name,Person Name,0,230,230,14-Jun-11,TBC
Nottinghamshire County Council,03-03702,CEMEX UK OPERATIONS,External Services (Highways & Culture),Earth & Stone Aggregates ,0,-0.01,-0.01,16-Jun-11,TBC
Nottinghamshire County Council,03-03752,RAI TECHNICAL LIMITED,Hard Facilities Management ,Tools & General Machinery,0,-0.01,-0.01,29-Jun-11,TBC
Nottinghamshire County Council,03-03759,ABLE COMMUNITY CARE,Care,Residential Care,0,-487.4,-487.4,27-Jun-11,TBC
Nottinghamshire County Council,03-03770,HOBART UK LIMITED,Soft Facilities Management,Prepared & Preserved Foods,0,99,99,14-Jun-11,TBC
Nottinghamshire County Council,03-03833,INPLACE PERSONNEL SERVICES LIMITED,People,Recruitment,0,0.01,0.01,16-Jun-11,TBC
Nottinghamshire County Council,03-04089,EDEN BROWN LIMITED,People,Recruitment,0,365.71,365.71,17-Jun-11,TBC
Nottinghamshire County Council,03-04090,G WILTON DECORATING CONTRACTORS LIMITED,Hard Facilities Management ,Decoration Services,0,99,99,16-Jun-11,TBC
Nottinghamshire County Council,03-04091,EXPERIAN LIMITED,Professional Services,Financial & Insurance Services,0,"1,200.00","1,200.00",15-Jun-11,TBC
Nottinghamshire County Council,03-04092,CARITAS RECRUITMENT,People,Recruitment,0,"1,241.72","1,241.72",23-Jun-11,TBC
Nottinghamshire County Council,03-04093,RURAL COMMUNITY ACTION GROUP,External Services (Highways & Culture),Organisations & Clubs,0,"1,779.30","1,779.30",15-Jun-11,TBC
Nottinghamshire County Council,03-04094,C ANDERSON,Persons Name,Person Name,0,450,450,15-Jun-11,TBC
Nottinghamshire County Council,03-04095,CANDOR SERVICES LIMITED,Soft Facilities Management,Cleaning Equipment & Janitorial Supplies,0,139.86,139.86,15-Jun-11,TBC
Nottinghamshire County Council,03-04096,PLINTH 2000 LIMITED,Care,Medical Equipment &  Supplies,0,165,165,15-Jun-11,TBC
Nottinghamshire County Council,03-04097,PREMIERE POLISH COMPANY LIMITED,Soft Facilities Management,Cleaning Equipment & Janitorial Supplies,0,157.2,157.2,15-Jun-11,TBC
Nottinghamshire County Council,03-04099,CAPITA SOCIAL CARE AND HOUSING,Care,Domiciliary Care,0,95.28,95.28,23-Jun-11,TBC
Nottinghamshire County Council,03-04100,CONTRACT FURNITURE SPECIALISTS LIMITED,Soft Facilities Management,Furniture & Furnishings,0,327.3,327.3,23-Jun-11,TBC
Nottinghamshire County Council,03-04101,MEDICARE FIRST,Care,Medical Equipment &  Supplies,0,239.4,239.4,16-Jun-11,TBC
Nottinghamshire County Council,03-04102,MEDICARE FIRST,Care,Medical Equipment &  Supplies,0,310.8,310.8,16-Jun-11,TBC
Nottinghamshire County Council,03-04103,CAPITA SOCIAL CARE AND HOUSING,Care,Domiciliary Care,0,189.11,189.11,20-Jun-11,TBC
Nottinghamshire County Council,03-04104,CAPITA SOCIAL CARE AND HOUSING,Care,Domiciliary Care,0,93.6,93.6,16-Jun-11,TBC
Nottinghamshire County Council,03-04105,MEDICARE FIRST,Care,Medical Equipment &  Supplies,0,252,252,16-Jun-11,TBC
Nottinghamshire County Council,03-04106,CAPITA SOCIAL CARE AND HOUSING,Care,Domiciliary Care,0,85.05,85.05,23-Jun-11,TBC
Nottinghamshire County Council,03-04107,ROMPA LIMITED,Care,Mental Health Services,0,111.19,111.19,27-Jun-11,TBC
Nottinghamshire County Council,03-04109,CAPITA SOCIAL CARE AND HOUSING,Care,Domiciliary Care,0,187.74,187.74,23-Jun-11,TBC
Nottinghamshire County Council,03-04110,L SAMUELS,Persons Name,Person Name,0,444,444,15-Jun-11,TBC
Nottinghamshire County Council,03-04111,CYCLESCHEME LIMITED,Transport & Travel,Cycles,0,114.98,114.98,15-Jun-11,TBC
Nottinghamshire County Council,03-04112,SOLCHAR LIMITED,ICT,Software,0,644.88,644.88,29-Jun-11,TBC
Nottinghamshire County Council,03-04113,ADOPTION U K,Care,Adoption Services,0,98.63,98.63,15-Jun-11,TBC
Nottinghamshire County Council,03-04114,ADOPTION U K,Care,Adoption Services,0,98.63,98.63,15-Jun-11,TBC
Nottinghamshire County Council,03-04115,ADOPTION U K,Care,Adoption Services,0,98.63,98.63,15-Jun-11,TBC
Nottinghamshire County Council,03-04116,ADOPTION U K,Care,Adoption Services,0,124.53,124.53,15-Jun-11,TBC
Nottinghamshire County Council,03-04117,ADOPTION U K,Care,Adoption Services,0,124.53,124.53,15-Jun-11,TBC
Nottinghamshire County Council,03-04118,ADOPTION U K,Care,Adoption Services,0,124.53,124.53,15-Jun-11,TBC
Nottinghamshire County Council,03-04119,SPECIALIST COMPUTER CENTRES LIMITED,ICT,Computer Services,0,"10,562.66","10,562.66",23-Jun-11,TBC
Nottinghamshire County Council,03-04120,COA SOLUTIONS LIMITED,ICT,Software,0,"18,400.00","18,400.00",15-Jun-11,TBC
Nottinghamshire County Council,03-04121,WSP ENVIRONMENTAL LIMITED,Soft Facilities Management,Environmental Services,0,793.2,793.2,23-Jun-11,TBC
Nottinghamshire County Council,03-04122,OUTCOMES UK,People,Recruitment,0,"5,990.96","5,990.96",15-Jun-11,TBC
Nottinghamshire County Council,03-04124,GVA GRIMLEY LIMITED CLIENT RE INSOLVENCY,Professional Services,Financial & Insurance Services,0,"9,644.28","9,644.28",15-Jun-11,TBC
Nottinghamshire County Council,03-04125,CAPITA SOCIAL CARE AND HOUSING,Care,Domiciliary Care,0,94.32,94.32,23-Jun-11,TBC
Nottinghamshire County Council,03-04126,CYCLESCHEME LIMITED,Transport & Travel,Cycles,0,104.16,104.16,15-Jun-11,TBC
Nottinghamshire County Council,03-04127,CARDEA,Care,Healthcare Services,0,164.67,164.67,28-Jun-11,TBC
Nottinghamshire County Council,03-04128,CARDEA,Care,Healthcare Services,0,144.5,144.5,28-Jun-11,TBC
Nottinghamshire County Council,03-04129,CARDEA,Care,Healthcare Services,0,94.87,94.87,28-Jun-11,TBC
Nottinghamshire County Council,03-04130,SYNARBOR EDUCATION,External Services (Highways & Culture),Education Services,0,155.82,155.82,16-Jun-11,TBC
Nottinghamshire County Council,03-04131,SYNARBOR EDUCATION,External Services (Highways & Culture),Education Services,0,116.87,116.87,16-Jun-11,TBC
Nottinghamshire County Council,03-04132,SYNARBOR EDUCATION,External Services (Highways & Culture),Education Services,0,116.87,116.87,16-Jun-11,TBC
Nottinghamshire County Council,03-04133,SYNARBOR EDUCATION,External Services (Highways & Culture),Education Services,0,192.18,192.18,16-Jun-11,TBC
Nottinghamshire County Council,03-04204,BATCHMIX LIMITED,Hard Facilities Management ,Concrete Installation & Repair Services,0,0.02,0.02,20-Jun-11,TBC
Nottinghamshire County Council,03-04206,EXPRESS ASPHALT LIMITED,External Services (Highways & Culture),Highways & Works,0,-0.01,-0.01,27-Jun-11,TBC
Nottinghamshire County Council,03-04207,EXPRESS ASPHALT LIMITED,External Services (Highways & Culture),Highways & Works,0,-0.01,-0.01,27-Jun-11,TBC
Nottinghamshire County Council,03-04208,EXPRESS ASPHALT LIMITED,External Services (Highways & Culture),Highways & Works,0,-0.01,-0.01,27-Jun-11,TBC
Nottinghamshire County Council,03-04211,NEWARK CONCRETE,Hard Facilities Management ,Concrete Installation & Repair Services,0,0.01,0.01,20-Jun-11,TBC
Nottinghamshire County Council,03-04222,BCB COATED STONE LIMITED,External Services (Highways & Culture),Highways & Works,0,-0.01,-0.01,17-Jun-11,TBC
Nottinghamshire County Council,03-04551,BRAKE BROS LIMITED,Soft Facilities Management,Prepared & Preserved Foods,0,-0.03,-0.03,17-Jun-11,TBC
Nottinghamshire County Council,03-04663,PHS GROUP PLC,Soft Facilities Management,Cleaning Equipment & Janitorial Supplies,0,-0.01,-0.01,17-Jun-11,TBC
Nottinghamshire County Council,03-04678,BRIGHT IDEAS MARKETING LIMITED,Professional Services,Marketing & Distribution,0,-0.01,-0.01,17-Jun-11,TBC
Nottinghamshire County Council,03-04685,ALLEN GLENOLD LIMITED,Soft Facilities Management,Paper & Paper Products,0,-0.01,-0.01,17-Jun-11,TBC
Nottinghamshire County Council,03-04726,EDC (NOTTINGHAM) LIMITED,People,Recruitment,0,-0.01,-0.01,27-Jun-11,TBC
Nottinghamshire County Council,03-04730,KEN BURROWS LIMITED,Hard Facilities Management ,Electrical Systems & Lighting,0,95.16,95.16,17-Jun-11,TBC
Nottinghamshire County Council,03-04731,M DIGGLE,Persons Name,Person Name,0,175,175,20-Jun-11,TBC
Nottinghamshire County Council,03-04737,BRITISH GAS TRADING LIMITED,Hard Facilities Management ,Utilities,0,0.04,0.04,21-Jun-11,TBC
Nottinghamshire County Council,03-04740,TRANS UK SUPPLIES LIMITED,ICT,Audio & Visual Equipment,0,-0.01,-0.01,21-Jun-11,TBC
Nottinghamshire County Council,03-04741,TRANS UK SUPPLIES LIMITED,ICT,Audio & Visual Equipment,0,-0.01,-0.01,21-Jun-11,TBC
Nottinghamshire County Council,03-04742,TRANS UK SUPPLIES LIMITED,ICT,Audio & Visual Equipment,0,-0.01,-0.01,21-Jun-11,TBC
Nottinghamshire County Council,03-04765,J FARRAH,Persons Name,Person Name,0,0.03,0.03,17-Jun-11,TBC
Nottinghamshire County Council,03-04766,FARMHOUSE SPECIALITY FOODS,Soft Facilities Management,Prepared & Preserved Foods,0,0.02,0.02,17-Jun-11,TBC
Nottinghamshire County Council,03-04767,CREME D'OR,Soft Facilities Management,Prepared & Preserved Foods,0,0.02,0.02,17-Jun-11,TBC
Nottinghamshire County Council,03-04772,EMO OIL LIMITED,Hard Facilities Management ,Utilities,0,-98.93,-98.93,22-Jun-11,TBC
Nottinghamshire County Council,03-04880,KB RECRUITMENT LIMITED,People,Recruitment,0,91.22,91.22,20-Jun-11,TBC
Nottinghamshire County Council,03-04881,EDEN BROWN LIMITED,People,Recruitment,0,275.39,275.39,24-Jun-11,TBC
Nottinghamshire County Council,03-04883,THE RIGHTS OF WAY LAW REVIEW,TBC,TBC,0,98.4,98.4,20-Jun-11,TBC
Nottinghamshire County Council,03-04884,KB RECRUITMENT LIMITED,People,Recruitment,0,193.38,193.38,20-Jun-11,TBC
Nottinghamshire County Council,03-04885,CARDEA,Care,Healthcare Services,0,127.8,127.8,20-Jun-11,TBC
Nottinghamshire County Council,03-04886,CARAVAN PARK ELECTRICAL SERVICES LTD,Hard Facilities Management ,Electrical Systems & Lighting,0,"1,247.93","1,247.93",24-Jun-11,TBC
Nottinghamshire County Council,03-04887,BRAKE BROS LIMITED,Soft Facilities Management,Prepared & Preserved Foods,0,69.95,69.95,20-Jun-11,TBC
Nottinghamshire County Council,03-04889,TROJAN CONSULTANTS LIMITED,ICT,Software,0,"2,883.40","2,883.40",20-Jun-11,TBC
Nottinghamshire County Council,03-04890,PROCHOICE RECRUITMENT SERVICES LIMITED,People,Recruitment,0,86.4,86.4,20-Jun-11,TBC
Nottinghamshire County Council,03-04892,CONISTON ASSOCIATES LIMITED,People,Vocational Training,0,114,114,20-Jun-11,TBC
Nottinghamshire County Council,03-04893,J PUGH LEWIS LIMITED,Hard Facilities Management ,Building Construction Services,0,"1,122.52","1,122.52",20-Jun-11,TBC
Nottinghamshire County Council,03-04895,COUNTRYSIDE TRAINING AND TREE MANAGEMENT,People,Vocational Training,0,200,200,20-Jun-11,TBC
Nottinghamshire County Council,03-04897,PEAR TREE PLANT,External Services (Highways & Culture),Plant & Animal Supplies,0,88.15,88.15,20-Jun-11,TBC
Nottinghamshire County Council,03-04898,A4E CONSULT LIMITED,Professional Services,Consultancy,0,782,782,20-Jun-11,TBC
Nottinghamshire County Council,03-04899,ALEXANDER LEIGH CONSULTING LIMITED,Professional Services,Consultancy,0,259.48,259.48,20-Jun-11,TBC
Nottinghamshire County Council,03-04900,MEDICARE FIRST,Care,Medical Equipment &  Supplies,0,237,237,28-Jun-11,TBC
Nottinghamshire County Council,03-04901,OUTCOMES UK,People,Recruitment,0,494,494,20-Jun-11,TBC
Nottinghamshire County Council,03-04902,COOKCO LIMITED,Soft Facilities Management,Vending Machines & Food Equipment,0,223.6,223.6,20-Jun-11,TBC
Nottinghamshire County Council,03-04903,COOKCO LIMITED,Soft Facilities Management,Vending Machines & Food Equipment,0,576,576,20-Jun-11,TBC
Nottinghamshire County Council,03-04904,COOKCO LIMITED,Soft Facilities Management,Vending Machines & Food Equipment,0,286,286,20-Jun-11,TBC
Nottinghamshire County Council,03-04905,COOKCO LIMITED,Soft Facilities Management,Vending Machines & Food Equipment,0,348,348,20-Jun-11,TBC
Nottinghamshire County Council,03-04906,COOKCO LIMITED,Soft Facilities Management,Vending Machines & Food Equipment,0,243.4,243.4,20-Jun-11,TBC
Nottinghamshire County Council,03-04907,ELKS EDUCATION TRUST,External Services (Highways & Culture),Education Services,0,"13,960.00","13,960.00",30-Jun-11,TBC
Nottinghamshire County Council,03-04908,ELKS EDUCATION TRUST,External Services (Highways & Culture),Education Services,0,"3,743.00","3,743.00",30-Jun-11,TBC
Nottinghamshire County Council,03-04911,CIPFA BUSINESS LIMITED,External Services (Highways & Culture),Organisations & Clubs,0,822,822,20-Jun-11,TBC
Nottinghamshire County Council,03-04912,BADENOCH AND CLARK,People,Recruitment,0,500,500,20-Jun-11,TBC
Nottinghamshire County Council,03-04913,BADENOCH AND CLARK,People,Recruitment,0,500,500,20-Jun-11,TBC
Nottinghamshire County Council,03-04914,ARJO LIMITED,Care,Medical Equipment &  Supplies,0,138.03,138.03,20-Jun-11,TBC
Nottinghamshire County Council,03-04915,MEDICARE FIRST,Care,Medical Equipment &  Supplies,0,237,237,21-Jun-11,TBC
Nottinghamshire County Council,03-04917,ROAD MARKING SERVICES LIMITED,External Services (Highways & Culture),Highways & Works,0,168,168,20-Jun-11,TBC
Nottinghamshire County Council,03-04918,ROAD MARKING SERVICES LIMITED,External Services (Highways & Culture),Highways & Works,0,128,128,20-Jun-11,TBC
Nottinghamshire County Council,03-04919,CANDOR SERVICES LIMITED,Soft Facilities Management,Cleaning Equipment & Janitorial Supplies,0,128.07,128.07,20-Jun-11,TBC
Nottinghamshire County Council,03-04920,ROYAL MAIL GROUP PLC,Soft Facilities Management,Mail & Couriers,0,261.36,261.36,20-Jun-11,TBC
Nottinghamshire County Council,03-04921,SAVOY COMPUTING SERVICES LIMITED,ICT,Computer Services,0,170.4,170.4,20-Jun-11,TBC
Nottinghamshire County Council,03-04943,TARMAC CENTRAL LIMITED,External Services (Highways & Culture),Highways & Works,0,-0.01,-0.01,29-Jun-11,TBC
Nottinghamshire County Council,03-04950,TARMAC CENTRAL LIMITED,External Services (Highways & Culture),Highways & Works,0,-0.01,-0.01,29-Jun-11,TBC
Nottinghamshire County Council,03-04955,TARMAC CENTRAL LIMITED,External Services (Highways & Culture),Highways & Works,0,-0.01,-0.01,29-Jun-11,TBC
Nottinghamshire County Council,03-04959,EXPRESS ASPHALT LIMITED,External Services (Highways & Culture),Highways & Works,0,-0.01,-0.01,27-Jun-11,TBC
Nottinghamshire County Council,03-04960,EXPRESS ASPHALT LIMITED,External Services (Highways & Culture),Highways & Works,0,-0.01,-0.01,27-Jun-11,TBC
Nottinghamshire County Council,03-04961,NEWARK CONCRETE,Hard Facilities Management ,Concrete Installation & Repair Services,0,0.01,0.01,28-Jun-11,TBC
Nottinghamshire County Council,03-05032,PR TRANSPORT,Transport & Travel,Taxi,0,141,141,21-Jun-11,TBC
Nottinghamshire County Council,03-05033,EMO OIL LIMITED,Hard Facilities Management ,Utilities,0,66.89,66.89,21-Jun-11,TBC
Nottinghamshire County Council,03-05034,KB RECRUITMENT LIMITED,People,Recruitment,0,356.07,356.07,21-Jun-11,TBC
Nottinghamshire County Council,03-05035,FLUKE (UK) LIMITED,TBC,TBC,0,90,90,21-Jun-11,TBC
Nottinghamshire County Council,03-05036,AQUAJET (GB) LIMITED,Soft Facilities Management,Industrial Cleaning Services,0,186.2,186.2,21-Jun-11,TBC
Nottinghamshire County Council,03-05037,CARDEA,Care,Healthcare Services,0,86.1,86.1,21-Jun-11,TBC
Nottinghamshire County Council,03-05038,MEDICARE FIRST,Care,Medical Equipment &  Supplies,0,359.04,359.04,28-Jun-11,TBC
Nottinghamshire County Council,03-05039,CYCLESCHEME LIMITED,Transport & Travel,Cycles,0,166.5,166.5,21-Jun-11,TBC
Nottinghamshire County Council,03-05040,MIDLAND CATERING SUPPLIES,Soft Facilities Management,Restaurants & Catering,0,470.29,470.29,21-Jun-11,TBC
Nottinghamshire County Council,03-05041,EDEN BROWN LIMITED,People,Recruitment,0,222.39,222.39,30-Jun-11,TBC
Nottinghamshire County Council,03-05042,MEDICARE FIRST,Care,Medical Equipment &  Supplies,0,247.8,247.8,21-Jun-11,TBC
Nottinghamshire County Council,03-05043,EDEN BROWN LIMITED,People,Recruitment,0,280.89,280.89,30-Jun-11,TBC
Nottinghamshire County Council,03-05044,CARITAS RECRUITMENT,People,Recruitment,0,225.31,225.31,30-Jun-11,TBC
Nottinghamshire County Council,03-05045,CARITAS RECRUITMENT,People,Recruitment,0,218.04,218.04,27-Jun-11,TBC
Nottinghamshire County Council,03-05046,EDEN BROWN LIMITED,People,Recruitment,0,270.78,270.78,30-Jun-11,TBC
Nottinghamshire County Council,03-05047,MAKING IT! ENTERPRISES LIMITED,External Services (Highways & Culture),Sports & Recreational Equipment & Supplies,0,191.74,191.74,21-Jun-11,TBC
Nottinghamshire County Council,03-05048,FRONTLINE,Hard Facilities Management ,Plumbing Services,0,298.15,298.15,23-Jun-11,TBC
Nottinghamshire County Council,03-05049,FRONTLINE,Hard Facilities Management ,Plumbing Services,0,298.15,298.15,30-Jun-11,TBC
Nottinghamshire County Council,03-05050,DAVID HAMMOND CHARTERED SURVEYORS,Professional Services,Consultancy,0,91.1,91.1,29-Jun-11,TBC
Nottinghamshire County Council,03-05052,W K W TREE SERVICES,External Services (Highways & Culture),Farming Forestry & Wildlife Services,0,"1,717.00","1,717.00",21-Jun-11,TBC
Nottinghamshire County Council,03-05053,SOCITM LIMITED,Professional Services,Consultancy,0,226,226,21-Jun-11,TBC
Nottinghamshire County Council,03-05055,PROTOCOL NATIONAL,People,Vocational Training,0,682.31,682.31,21-Jun-11,TBC
Nottinghamshire County Council,03-05056,TNT POST UK LIMITED,Soft Facilities Management,Mail & Couriers,0,372.91,372.91,21-Jun-11,TBC
Nottinghamshire County Council,03-05057,COAL 4 ENERGY,Hard Facilities Management ,Utilities,0,60.77,60.77,21-Jun-11,TBC
Nottinghamshire County Council,03-05058,BUNZL UK LIMITED,Soft Facilities Management,Cleaning Equipment & Janitorial Supplies,0,83.4,83.4,21-Jun-11,TBC
Nottinghamshire County Council,03-05059,THE APPROPRIATE ADULT SERVICE,Care,Community & Social Services,0,439.25,439.25,21-Jun-11,TBC
Nottinghamshire County Council,03-05060,EDC (NOTTINGHAM) LIMITED,People,Recruitment,0,750.88,750.88,21-Jun-11,TBC
Nottinghamshire County Council,03-05061,AD-ABSOLUTEDIGITAL LIMITED,TBC,TBC,0,214.4,214.4,21-Jun-11,TBC
Nottinghamshire County Council,03-05062,MICROFILM SHOP,Professional Services,"Reproduction, Photographic & Design Services",0,760,760,21-Jun-11,TBC
Nottinghamshire County Council,03-05064,@HOME CHILDCARE LIMITED,Care,Infant Or Child Daycare Services,0,95,95,21-Jun-11,TBC
Nottinghamshire County Council,03-05065,@HOME CHILDCARE LIMITED,Care,Infant Or Child Daycare Services,0,190,190,21-Jun-11,TBC
Nottinghamshire County Council,03-05066,MAKING IT! ENTERPRISES LIMITED,External Services (Highways & Culture),Sports & Recreational Equipment & Supplies,0,300.16,300.16,21-Jun-11,TBC
Nottinghamshire County Council,03-05067,SHEFFIELD FAMILY LAW ASSOCIATES,Professional Services,Legal Services,0,232.51,232.51,21-Jun-11,TBC
Nottinghamshire County Council,03-05068,SHEFFIELD FAMILY LAW ASSOCIATES,Professional Services,Legal Services,0,887.05,887.05,21-Jun-11,TBC
Nottinghamshire County Council,03-05069,CAPITA SOCIAL CARE AND HOUSING,Care,Domiciliary Care,0,90.18,90.18,21-Jun-11,TBC
Nottinghamshire County Council,03-05070,SHEFFIELD FAMILY LAW ASSOCIATES,Professional Services,Legal Services,0,86.73,86.73,21-Jun-11,TBC
Nottinghamshire County Council,03-05071,CAPITA SOCIAL CARE AND HOUSING,Care,Domiciliary Care,0,109.91,109.91,23-Jun-11,TBC
Nottinghamshire County Council,03-05072,SHEFFIELD FAMILY LAW ASSOCIATES,Professional Services,Legal Services,0,96.9,96.9,21-Jun-11,TBC
Nottinghamshire County Council,03-05073,CAPITA SOCIAL CARE AND HOUSING,Care,Domiciliary Care,0,90.18,90.18,23-Jun-11,TBC
Nottinghamshire County Council,03-05074,SHEFFIELD FAMILY LAW ASSOCIATES,Professional Services,Legal Services,0,87.8,87.8,21-Jun-11,TBC
Nottinghamshire County Council,03-05075,CAPITA SOCIAL CARE AND HOUSING,Care,Domiciliary Care,0,90.18,90.18,29-Jun-11,TBC
Nottinghamshire County Council,03-05076,SHEFFIELD FAMILY LAW ASSOCIATES,Professional Services,Legal Services,0,135.11,135.11,21-Jun-11,TBC
Nottinghamshire County Council,03-05079,SHEFFIELD FAMILY LAW ASSOCIATES,Professional Services,Legal Services,0,176.47,176.47,21-Jun-11,TBC
Nottinghamshire County Council,03-05082,PROCHOICE RECRUITMENT SERVICES LIMITED,People,Recruitment,0,86.4,86.4,21-Jun-11,TBC
Nottinghamshire County Council,03-05083,WSP DEVELOPMENT AND TRANSPORTATION,Professional Services,Consultancy,0,370,370,21-Jun-11,TBC
Nottinghamshire County Council,03-05084,CARTER BROWN ASSOCIATES,Professional Services,Legal Services,0,247.14,247.14,21-Jun-11,TBC
Nottinghamshire County Council,03-05085,PPG ARCHITECTURAL COATINGS UK LIMITED,Hard Facilities Management ,Building Construction Services,0,171.08,171.08,21-Jun-11,TBC
Nottinghamshire County Council,03-05180,W K W TREE SERVICES,External Services (Highways & Culture),Farming Forestry & Wildlife Services,0,789.8,789.8,21-Jun-11,TBC
Nottinghamshire County Council,03-08323,E M D D LIMITED,Hard Facilities Management ,Tools & General Machinery,0,"3,024.79","3,024.79",22-Jun-11,TBC
Nottinghamshire County Council,03-08324,THE RIGHTS OF WAY LAW REVIEW,TBC,TBC,0,59.4,59.4,22-Jun-11,TBC
Nottinghamshire County Council,03-08325,GROUNDSMAN TOOLS AND SUPPLIES,Hard Facilities Management ,Tools & General Machinery,0,112.82,112.82,22-Jun-11,TBC
Nottinghamshire County Council,03-08326,EDEN BROWN LIMITED,People,Recruitment,0,371.65,371.65,22-Jun-11,TBC
Nottinghamshire County Council,03-08327,OTR LIMITED,Professional Services,Consultancy,0,400,400,22-Jun-11,TBC
Nottinghamshire County Council,03-08329,INTELLIDENT LIMITED,Care,Infant Or Child Daycare Services,0,224,224,22-Jun-11,TBC
Nottinghamshire County Council,03-08330,SL CLOTHING LIMITED,Soft Facilities Management,Clothing,0,139.4,139.4,22-Jun-11,TBC
Nottinghamshire County Council,03-08331,CAPITA SOCIAL CARE AND HOUSING,Care,Domiciliary Care,0,93.6,93.6,29-Jun-11,TBC
Nottinghamshire County Council,03-08332,CAPITA SOCIAL CARE AND HOUSING,Care,Domiciliary Care,0,113.52,113.52,23-Jun-11,TBC
Nottinghamshire County Council,03-08334,CAPITA SOCIAL CARE AND HOUSING,Care,Domiciliary Care,0,125.49,125.49,29-Jun-11,TBC
Nottinghamshire County Council,03-08335,CAPITA SOCIAL CARE AND HOUSING,Care,Domiciliary Care,0,116.76,116.76,29-Jun-11,TBC
Nottinghamshire County Council,03-08336,CIPFA BUSINESS LIMITED,External Services (Highways & Culture),Organisations & Clubs,0,"1,353.00","1,353.00",22-Jun-11,TBC
Nottinghamshire County Council,03-08337,K M FARRELL,Persons Name,Person Name,0,775,775,22-Jun-11,TBC
Nottinghamshire County Council,03-08338,ITT WATER AND WASTEWATER UK LIMITED,Soft Facilities Management,Environmental Services,0,96,96,22-Jun-11,TBC
Nottinghamshire County Council,03-08339,THE INDEPENDENT CHOICE,Professional Services,Writing & Translations,0,118.06,118.06,22-Jun-11,TBC
Nottinghamshire County Council,03-08340,STANLEY SECURITY SOLUTIONS,Soft Facilities Management,Security,0,"2,844.79","2,844.79",22-Jun-11,TBC
Nottinghamshire County Council,03-08341,WISTOW PROPERTIES,Professional Services,Property Management,0,675,675,22-Jun-11,TBC
Nottinghamshire County Council,03-08342,LIBERATOR LIMITED,Care,Medical Equipment &  Supplies,0,"1,081.00","1,081.00",22-Jun-11,TBC
Nottinghamshire County Council,03-08343,CALIBA,Hard Facilities Management ,Building Construction Services,0,84,84,22-Jun-11,TBC
Nottinghamshire County Council,03-08344,CAPITA SOCIAL CARE AND HOUSING,Care,Domiciliary Care,0,102.27,102.27,29-Jun-11,TBC
Nottinghamshire County Council,03-08345,COAL 4 ENERGY,Hard Facilities Management ,Utilities,0,234.24,234.24,22-Jun-11,TBC
Nottinghamshire County Council,03-08346,CAPITA SOCIAL CARE AND HOUSING,Care,Domiciliary Care,0,102.27,102.27,23-Jun-11,TBC
Nottinghamshire County Council,03-08347,COLDSTART LIMITED,Soft Facilities Management,Prepared & Preserved Foods,0,109.74,109.74,22-Jun-11,TBC
Nottinghamshire County Council,03-08348,DCM HEALTHCARE,Care,Healthcare Services,0,226.4,226.4,29-Jun-11,TBC
Nottinghamshire County Council,03-08349,KB RECRUITMENT LIMITED,People,Recruitment,0,294,294,22-Jun-11,TBC
Nottinghamshire County Council,03-08350,KB RECRUITMENT LIMITED,People,Recruitment,0,423.88,423.88,22-Jun-11,TBC
Nottinghamshire County Council,03-08351,CAPITA SOCIAL CARE AND HOUSING,Care,Domiciliary Care,0,138.48,138.48,23-Jun-11,TBC
Nottinghamshire County Council,03-08352,CAPITA SOCIAL CARE AND HOUSING,Care,Domiciliary Care,0,132.26,132.26,23-Jun-11,TBC
Nottinghamshire County Council,03-08353,CAPITA SOCIAL CARE AND HOUSING,Care,Domiciliary Care,0,138.48,138.48,29-Jun-11,TBC
Nottinghamshire County Council,03-08354,CAPITA SOCIAL CARE AND HOUSING,Care,Domiciliary Care,0,132.26,132.26,29-Jun-11,TBC
Nottinghamshire County Council,03-08363,BESTWOOD LODGE HOTEL,Transport & Travel,Hotels & Venues,0,49.58,49.58,22-Jun-11,TBC
Nottinghamshire County Council,03-08366,CAPITA SOCIAL CARE AND HOUSING,Care,Domiciliary Care,0,138.48,138.48,22-Jun-11,TBC
Nottinghamshire County Council,03-08397,CARDEA,Care,Healthcare Services,0,100.7,100.7,22-Jun-11,TBC
Nottinghamshire County Council,03-08402,ENNSTONE JOHNSTON LIMITED,External Services (Highways & Culture),Earth & Stone Aggregates ,0,15.1,15.1,27-Jun-11,TBC
Nottinghamshire County Council,03-08403,ENNSTONE JOHNSTON LIMITED,External Services (Highways & Culture),Earth & Stone Aggregates ,0,14.25,14.25,27-Jun-11,TBC
Nottinghamshire County Council,03-08473,BRAKE BROS LIMITED,Soft Facilities Management,Prepared & Preserved Foods,0,-0.01,-0.01,24-Jun-11,TBC
Nottinghamshire County Council,03-08485,TELEVISION INSTALL.SERV MANSFIELD LIMITED,ICT,Telecommunications & Media,0,486.41,486.41,23-Jun-11,TBC
Nottinghamshire County Council,03-08486,TALLON MONITORING LIMITED,ICT,Telecommunications & Media,0,"1,617.00","1,617.00",23-Jun-11,TBC
Nottinghamshire County Council,03-08487,PICKFORDS LIMITED,Hard Facilities Management ,Material Handling & Storage,0,259.6,259.6,23-Jun-11,TBC
Nottinghamshire County Council,03-08488,PICKFORDS LIMITED,Hard Facilities Management ,Material Handling & Storage,0,139.4,139.4,23-Jun-11,TBC
Nottinghamshire County Council,03-08489,SL CLOTHING LIMITED,Soft Facilities Management,Clothing,0,129.13,129.13,23-Jun-11,TBC
Nottinghamshire County Council,03-08491,JBA CONSULTING,Professional Services,Consultancy,0,143.07,143.07,23-Jun-11,TBC
Nottinghamshire County Council,03-08492,FORMSCAN,ICT,"Printing & Publishing, Equipment & Supplies",0,250,250,23-Jun-11,TBC
Nottinghamshire County Council,03-08493,RECRUITMENT SPECIALIST GROUP LIMITED,People,Recruitment,0,"1,640.00","1,640.00",23-Jun-11,TBC
Nottinghamshire County Council,03-08496,KB RECRUITMENT LIMITED,People,Recruitment,0,288.84,288.84,23-Jun-11,TBC
Nottinghamshire County Council,03-08497,CBRE LIMITED,Professional Services,Property Management,0,"1,710.00","1,710.00",29-Jun-11,TBC
Nottinghamshire County Council,03-08498,STANLEY SECURITY SOLUTIONS,Soft Facilities Management,Security,0,"3,621.60","3,621.60",23-Jun-11,TBC
Nottinghamshire County Council,03-08499,CAPITA SOCIAL CARE AND HOUSING,Care,Domiciliary Care,0,173.83,173.83,29-Jun-11,TBC
Nottinghamshire County Council,03-08500,CAPITA SOCIAL CARE AND HOUSING,Care,Domiciliary Care,0,164.35,164.35,23-Jun-11,TBC
Nottinghamshire County Council,03-08501,THE APPROPRIATE ADULT SERVICE,Care,Community & Social Services,0,231,231,23-Jun-11,TBC
Nottinghamshire County Council,03-08502,PEDAL EXPRESS LIMITED,Soft Facilities Management,Mail & Couriers,0,102.74,102.74,23-Jun-11,TBC
Nottinghamshire County Council,03-08503,SHEFFIELD FAMILY LAW ASSOCIATES,Professional Services,Legal Services,0,144.06,144.06,23-Jun-11,TBC
Nottinghamshire County Council,03-08504,J L HARPHAM LIMITED,TBC,TBC,0,97.5,97.5,23-Jun-11,TBC
Nottinghamshire County Council,03-08505,N HOWES,TBC,TBC,0,130.16,130.16,23-Jun-11,TBC
Nottinghamshire County Council,03-08506,DODDS AND PARTNERS,Care,Medical Equipment &  Supplies,0,104.76,104.76,29-Jun-11,TBC
Nottinghamshire County Council,03-08507,BROWNE JACOBSON LLP,Professional Services,Legal Services,0,761,761,23-Jun-11,TBC
Nottinghamshire County Council,03-08508,STRAW AND PEARCE SOLICITORS,Professional Services,Legal Services,0,356.52,356.52,29-Jun-11,TBC
Nottinghamshire County Council,03-08509,STRAW AND PEARCE SOLICITORS,Professional Services,Legal Services,0,294.98,294.98,29-Jun-11,TBC
Nottinghamshire County Council,03-08510,CARTER BROWN ASSOCIATES,Professional Services,Legal Services,0,103,103,23-Jun-11,TBC
Nottinghamshire County Council,03-08511,CAPITA SOCIAL CARE AND HOUSING,Care,Domiciliary Care,0,92.04,92.04,23-Jun-11,TBC
Nottinghamshire County Council,03-08512,ATTENBOROUGH INDUSTRIAL DOORS LIMITED,Hard Facilities Management ,Window & Door Installation Services,0,496,496,23-Jun-11,TBC
Nottinghamshire County Council,03-08514,CAPITA SOCIAL CARE AND HOUSING,Care,Domiciliary Care,0,116.39,116.39,23-Jun-11,TBC
Nottinghamshire County Council,03-08516,CAPITA SOCIAL CARE AND HOUSING,Care,Domiciliary Care,0,189.11,189.11,23-Jun-11,TBC
Nottinghamshire County Council,03-08517,HARTNOLL LIMITED,Soft Facilities Management,Vending Machines & Food Equipment,0,104.73,104.73,23-Jun-11,TBC
Nottinghamshire County Council,03-08519,CAPITA SOCIAL CARE AND HOUSING,Care,Domiciliary Care,0,106.02,106.02,23-Jun-11,TBC
Nottinghamshire County Council,03-08520,KB RECRUITMENT LIMITED,People,Recruitment,0,88.18,88.18,23-Jun-11,TBC
Nottinghamshire County Council,03-08521,CAPITA SOCIAL CARE AND HOUSING,Care,Domiciliary Care,0,106.02,106.02,23-Jun-11,TBC
Nottinghamshire County Council,03-08522,THE PURE WATER COMPANY LIMITED,Soft Facilities Management,Beverages,0,90.41,90.41,30-Jun-11,TBC
Nottinghamshire County Council,03-08523,DRAEFERN LIMITED T/A RIGHT4STAFF,People,Recruitment,0,90.39,90.39,23-Jun-11,TBC
Nottinghamshire County Council,03-08524,DRAEFERN LIMITED T/A RIGHT4STAFF,People,Recruitment,0,87.27,87.27,23-Jun-11,TBC
Nottinghamshire County Council,03-08525,I CAN SERVICES LIMITED,External Services (Highways & Culture),Education Services,0,320,320,23-Jun-11,TBC
Nottinghamshire County Council,03-08526,I CAN SERVICES LIMITED,External Services (Highways & Culture),Education Services,0,320,320,23-Jun-11,TBC
Nottinghamshire County Council,03-08527,OUTCOMES UK,People,Recruitment,0,596.8,596.8,23-Jun-11,TBC
Nottinghamshire County Council,03-08528,REED EMPLOYMENT PLC,People,Recruitment,0,282.8,282.8,23-Jun-11,TBC
Nottinghamshire County Council,03-08529,CARTER BROWN ASSOCIATES,Professional Services,Legal Services,0,145.8,145.8,23-Jun-11,TBC
Nottinghamshire County Council,03-08530,STRAW AND PEARCE SOLICITORS,Professional Services,Legal Services,0,228,228,29-Jun-11,TBC
Nottinghamshire County Council,03-08531,STRAW AND PEARCE SOLICITORS,Professional Services,Legal Services,0,573.54,573.54,29-Jun-11,TBC
Nottinghamshire County Council,03-08532,OUTCOMES UK,People,Recruitment,0,"4,914.43","4,914.43",23-Jun-11,TBC
Nottinghamshire County Council,03-08533,REED EMPLOYMENT PLC,People,Recruitment,0,243.92,243.92,23-Jun-11,TBC
Nottinghamshire County Council,03-08534,REED EMPLOYMENT PLC,People,Recruitment,0,242.4,242.4,23-Jun-11,TBC
Nottinghamshire County Council,03-08536,GATENBY SANDERSON,Persons Name,Person Name,0,783.33,783.33,23-Jun-11,TBC
Nottinghamshire County Council,03-08537,JOHNSONS STALBRIDGE LINEN SERVICES,Soft Facilities Management,Cleaning Equipment & Janitorial Supplies,0,83.39,83.39,23-Jun-11,TBC
Nottinghamshire County Council,03-08539,T S W SERVICES,External Services (Highways & Culture),Farming Forestry & Wildlife Services,0,97.62,97.62,23-Jun-11,TBC
Nottinghamshire County Council,03-08543,ROBERT WALTON,Persons Name,Person Name,0,165,165,23-Jun-11,TBC
Nottinghamshire County Council,03-08544,STRAW AND PEARCE SOLICITORS,Professional Services,Legal Services,0,338.53,338.53,29-Jun-11,TBC
Nottinghamshire County Council,03-08545,WOMENS ROYAL VOLUNTARY SERVICE,External Services (Highways & Culture),Organisations & Clubs,0,456,456,23-Jun-11,TBC
Nottinghamshire County Council,03-08546,BRAKE BROS LIMITED,Soft Facilities Management,Prepared & Preserved Foods,0,-0.02,-0.02,24-Jun-11,TBC
Nottinghamshire County Council,03-08551,BRAKE BROS LIMITED,Soft Facilities Management,Prepared & Preserved Foods,0,-0.09,-0.09,24-Jun-11,TBC
Nottinghamshire County Council,03-08567,DAWSON RENTALS PORTABLE COLD STORAGE LIMITED,Soft Facilities Management,Vending Machines & Food Equipment,0,-0.01,-0.01,23-Jun-11,TBC
Nottinghamshire County Council,03-08594,ROTEL LEISURE LIMITED,Transport & Travel,Hotels & Venues,0,113.71,113.71,23-Jun-11,TBC
Nottinghamshire County Council,03-08633,FREDK LAMB LIMITED,Hard Facilities Management ,Building Construction Services,0,85.85,85.85,24-Jun-11,TBC
Nottinghamshire County Council,03-08634,BAKER SHEPHERD GILLESPIE LLP,Professional Services,Legal Services,0,826.4,826.4,24-Jun-11,TBC
Nottinghamshire County Council,03-08635,THE TRADING STANDARDS INSTITUTE,External Services (Highways & Culture),Organisations & Clubs,0,442.3,442.3,24-Jun-11,TBC
Nottinghamshire County Council,03-08638,KB RECRUITMENT LIMITED,People,Recruitment,0,309.56,309.56,24-Jun-11,TBC
Nottinghamshire County Council,03-08639,CAPITA SOCIAL CARE AND HOUSING,Care,Domiciliary Care,0,233.61,233.61,29-Jun-11,TBC
Nottinghamshire County Council,03-08640,GLASDON UK LIMITED,Soft Facilities Management,Cleaning Equipment & Janitorial Supplies,0,504,504,24-Jun-11,TBC
Nottinghamshire County Council,03-08642,KONICA MINOLTA,ICT,"Printing & Publishing, Equipment & Supplies",0,114.41,114.41,24-Jun-11,TBC
Nottinghamshire County Council,03-08677,NEWARK ADVERTISER COMPANY LIMITED,Professional Services,Advertising,0,0.03,0.03,24-Jun-11,TBC
Nottinghamshire County Council,03-08726,SPECIALIST COMPUTER CENTRES LIMITED,ICT,Computer Services,0,-0.01,-0.01,28-Jun-11,TBC
Nottinghamshire County Council,03-08779,REED BUSINESS INFORMATION LIMITED,ICT,"Printing & Publishing, Equipment & Supplies",0,-0.01,-0.01,24-Jun-11,TBC
Nottinghamshire County Council,03-08784,BRAKE BROS LIMITED,Soft Facilities Management,Prepared & Preserved Foods,0,-0.05,-0.05,27-Jun-11,TBC
Nottinghamshire County Council,03-08868,CAPITA SOCIAL CARE AND HOUSING,Care,Domiciliary Care,0,135.42,135.42,27-Jun-11,TBC
Nottinghamshire County Council,03-08869,NOTTINGHAM REHAB LIMITED,Care,Medical Equipment &  Supplies,0,113.19,113.19,27-Jun-11,TBC
Nottinghamshire County Council,03-08870,TUNSTALL TELECOM LIMITED,ICT,Telecommunications & Media,0,201.19,201.19,27-Jun-11,TBC
Nottinghamshire County Council,03-08871,ART CLEANING (MIDLANDS) LIMITED,Soft Facilities Management,Industrial Cleaning Services,0,264.8,264.8,27-Jun-11,TBC
Nottinghamshire County Council,03-08872,ROBERT HALF LIMITED,People,Recruitment,0,103.25,103.25,27-Jun-11,TBC
Nottinghamshire County Council,03-08873,SPRING TECHNOLOGY STAFFING SERVICES,People,Recruitment,0,368.55,368.55,27-Jun-11,TBC
Nottinghamshire County Council,03-08874,THE NE GROUP (NORTH NOTTINGHAMSHIRE ENTERPRISES),Transport & Travel,Hotels & Venues,0,97.4,97.4,27-Jun-11,TBC
Nottinghamshire County Council,03-08875,CRANTON ELECTRICAL CO LIMITED,Hard Facilities Management ,Electrical Systems & Lighting,0,87.08,87.08,27-Jun-11,TBC
Nottinghamshire County Council,03-08876,REED EMPLOYMENT PLC,People,Recruitment,0,200.43,200.43,27-Jun-11,TBC
Nottinghamshire County Council,03-08877,SPRING TECHNOLOGY STAFFING SERVICES,People,Recruitment,0,368.55,368.55,27-Jun-11,TBC
Nottinghamshire County Council,03-08878,SPRING TECHNOLOGY STAFFING SERVICES,People,Recruitment,0,421.2,421.2,27-Jun-11,TBC
Nottinghamshire County Council,03-08879,SPRING TECHNOLOGY STAFFING SERVICES,People,Recruitment,0,368.55,368.55,27-Jun-11,TBC
Nottinghamshire County Council,03-08880,SPRING TECHNOLOGY STAFFING SERVICES,People,Recruitment,0,526.5,526.5,27-Jun-11,TBC
Nottinghamshire County Council,03-08881,SPRING TECHNOLOGY STAFFING SERVICES,People,Recruitment,0,526.5,526.5,27-Jun-11,TBC
Nottinghamshire County Council,03-08883,OUTCOMES UK,People,Recruitment,0,"7,026.13","7,026.13",27-Jun-11,TBC
Nottinghamshire County Council,03-08884,SHEFFIELD FAMILY LAW ASSOCIATES,Professional Services,Legal Services,0,120.52,120.52,27-Jun-11,TBC
Nottinghamshire County Council,03-08885,CRANTON ELECTRICAL CO LIMITED,Hard Facilities Management ,Electrical Systems & Lighting,0,120.94,120.94,27-Jun-11,TBC
Nottinghamshire County Council,03-08886,KB RECRUITMENT LIMITED,People,Recruitment,0,363.67,363.67,27-Jun-11,TBC
Nottinghamshire County Council,03-08887,KB RECRUITMENT LIMITED,People,Recruitment,0,443.33,443.33,27-Jun-11,TBC
Nottinghamshire County Council,03-08889,CAPITA SOCIAL CARE AND HOUSING,Care,Domiciliary Care,0,122.61,122.61,29-Jun-11,TBC
Nottinghamshire County Council,03-08890,KONICA MINOLTA,ICT,"Printing & Publishing, Equipment & Supplies",0,179.1,179.1,27-Jun-11,TBC
Nottinghamshire County Council,03-08891,SL CLOTHING LIMITED,Soft Facilities Management,Clothing,0,133.22,133.22,27-Jun-11,TBC
Nottinghamshire County Council,03-08893,KCM (CATERING EQUIPMENT) LIMITED,Soft Facilities Management,Vending Machines & Food Equipment,0,83.6,83.6,27-Jun-11,TBC
Nottinghamshire County Council,03-08894,KB RECRUITMENT LIMITED,People,Recruitment,0,631.69,631.69,27-Jun-11,TBC
Nottinghamshire County Council,03-08895,POTENTIAL UK,People,Vocational Training,0,684,684,29-Jun-11,TBC
Nottinghamshire County Council,03-08902,BRAKE BROS LIMITED,Soft Facilities Management,Prepared & Preserved Foods,0,-0.04,-0.04,28-Jun-11,TBC
Nottinghamshire County Council,03-08909,BRAKE BROS LIMITED,Soft Facilities Management,Prepared & Preserved Foods,0,0.01,0.01,28-Jun-11,TBC
Nottinghamshire County Council,03-08918,ENERGAS LIMITED,External Services (Highways & Culture),Chemicals & Gases,0,-93.85,-93.85,28-Jun-11,TBC
Nottinghamshire County Council,03-08924,ENNSTONE JOHNSTON LIMITED,External Services (Highways & Culture),Earth & Stone Aggregates ,0,0.01,0.01,27-Jun-11,TBC
Nottinghamshire County Council,03-08928,BRIGHT IDEAS MARKETING LIMITED,Professional Services,Marketing & Distribution,0,-0.01,-0.01,28-Jun-11,TBC
Nottinghamshire County Council,03-08929,BRIGHT IDEAS MARKETING LIMITED,Professional Services,Marketing & Distribution,0,-0.02,-0.02,28-Jun-11,TBC
Nottinghamshire County Council,03-08936,BRAKE BROS LIMITED,Soft Facilities Management,Prepared & Preserved Foods,0,-0.06,-0.06,29-Jun-11,TBC
Nottinghamshire County Council,03-08942,BRAKE BROS LIMITED,Soft Facilities Management,Prepared & Preserved Foods,0,0.02,0.02,27-Jun-11,TBC
Nottinghamshire County Council,03-08952,HILL TRIDENT,Soft Facilities Management,Security,0,"1,996.31","1,996.31",28-Jun-11,TBC
Nottinghamshire County Council,03-08953,GREGORY PRYCE,Persons Name,Person Name,0,277,277,28-Jun-11,TBC
Nottinghamshire County Council,03-08954,P GALLAGHER,TBC,TBC,0,130,130,29-Jun-11,TBC
Nottinghamshire County Council,03-08955,PERFORMING RIGHT SOCIETY LIMITED,External Services (Highways & Culture),Organisations & Clubs,0,155.34,155.34,28-Jun-11,TBC
Nottinghamshire County Council,03-08956,MARMAX PRODUCTS LIMITED,Hard Facilities Management ,Building & Construction Supplies,0,93.8,93.8,28-Jun-11,TBC
Nottinghamshire County Council,03-08957,THE ART DEPARTMENT,External Services (Highways & Culture),Classroom Supplies & Teaching Aids,0,468,468,29-Jun-11,TBC
Nottinghamshire County Council,03-08958,KONICA MINOLTA,ICT,"Printing & Publishing, Equipment & Supplies",0,105.36,105.36,28-Jun-11,TBC
Nottinghamshire County Council,03-08960,KONICA MINOLTA,ICT,"Printing & Publishing, Equipment & Supplies",0,88,88,28-Jun-11,TBC
Nottinghamshire County Council,03-08962,ADVANTAGE HEALTHCARE NURSING ANDCARE LIMITED,Care,Healthcare Services,0,303.15,303.15,28-Jun-11,TBC
Nottinghamshire County Council,03-08964,FEET (LINE MARKERS ) LIMITED,External Services (Highways & Culture),Sports & Recreational Equipment & Supplies,0,90.96,90.96,28-Jun-11,TBC
Nottinghamshire County Council,03-08966,SYNETRIX LIMITED,ICT,Communications Devices & Accessories,0,"29,172.20","29,172.20",27-Jun-11,TBC
Nottinghamshire County Council,03-08967,SYNETRIX LIMITED,ICT,Communications Devices & Accessories,0,"16,537.80","16,537.80",27-Jun-11,TBC
Nottinghamshire County Council,03-08968,SYNETRIX LIMITED,ICT,Communications Devices & Accessories,0,"7,206.00","7,206.00",27-Jun-11,TBC
Nottinghamshire County Council,03-08969,SYNETRIX LIMITED,ICT,Communications Devices & Accessories,0,"64,122.60","64,122.60",27-Jun-11,TBC
Nottinghamshire County Council,03-08970,SYNETRIX LIMITED,ICT,Communications Devices & Accessories,0,"59,096.40","59,096.40",27-Jun-11,TBC
Nottinghamshire County Council,03-08971,DIGITAL PAINT,Hard Facilities Management ,Decoration Services,0,300,300,28-Jun-11,TBC
Nottinghamshire County Council,03-09038,BEESWIFT,Soft Facilities Management,Clothing,0,-148.49,-148.49,30-Jun-11,TBC
Nottinghamshire County Council,03-09319,GET BACK SUPPLIES LIMITED,Soft Facilities Management,Furniture & Furnishings,0,465.4,465.4,29-Jun-11,TBC
Nottinghamshire County Council,03-09320,E M E C ECOLOGICAL CONSULTANTS,Soft Facilities Management,Environmental Services,0,160,160,29-Jun-11,TBC
Nottinghamshire County Council,03-09325,MOVEMENT 2 LIMITED,Hard Facilities Management ,Tools & General Machinery,0,379,379,29-Jun-11,TBC
Nottinghamshire County Council,03-09326,REAL EDUCATION LTD,External Services (Highways & Culture),Education Services,0,452.23,452.23,29-Jun-11,TBC
Nottinghamshire County Council,03-09327,CHRIS FEW CONSULTANCY LIMITED,Professional Services,Consultancy,0,553.39,553.39,29-Jun-11,TBC
Nottinghamshire County Council,03-09328,CATERSHIELD LIMITED,Soft Facilities Management,Restaurants & Catering,0,259,259,29-Jun-11,TBC
Nottinghamshire County Council,03-09329,CRANTON ELECTRICAL CO LIMITED,Hard Facilities Management ,Electrical Systems & Lighting,0,147.84,147.84,29-Jun-11,TBC
Nottinghamshire County Council,03-09334,SIRSIDYNIX,ICT,Software,0,464,464,29-Jun-11,TBC
Nottinghamshire County Council,03-09335,BADENOCH AND CLARK,People,Recruitment,0,500,500,29-Jun-11,TBC
Nottinghamshire County Council,03-09336,BADENOCH AND CLARK,People,Recruitment,0,500,500,29-Jun-11,TBC
Nottinghamshire County Council,03-09337,ADVANTAGE HEALTHCARE NURSING ANDCARE LIMITED,Care,Healthcare Services,0,343.14,343.14,29-Jun-11,TBC
Nottinghamshire County Council,03-09338,CARTER BROWN ASSOCIATES,Professional Services,Legal Services,0,203.47,203.47,29-Jun-11,TBC
Nottinghamshire County Council,03-09339,C ANDERSON,Persons Name,Person Name,0,95,95,29-Jun-11,TBC
Nottinghamshire County Council,03-09340,STRAW AND PEARCE SOLICITORS,Professional Services,Legal Services,0,167.8,167.8,29-Jun-11,TBC
Nottinghamshire County Council,03-09341,IMPOWER CONSULTING LIMITED,Professional Services,Consultancy,0,"11,204.81","11,204.81",28-Jun-11,TBC
Nottinghamshire County Council,03-09453,ARVAL P H H BUSINESS SOLUTIONS,Transport & Travel,Gas Fuels & Lubricants ,0,-1.52,-1.52,30-Jun-11,TBC
Nottinghamshire County Council,03-09454,ARVAL P H H BUSINESS SOLUTIONS,Transport & Travel,Gas Fuels & Lubricants ,0,0.02,0.02,30-Jun-11,TBC
Nottinghamshire County Council,03-09456,REGATTA LIMITED,Soft Facilities Management,Clothing,0,0.01,0.01,30-Jun-11,TBC
Nottinghamshire County Council,03-09467,COPTRIN LIMITED,Soft Facilities Management,Vending Machines & Food Equipment,0,-0.01,-0.01,30-Jun-11,TBC
Nottinghamshire County Council,03-03248,COOKCO LIMITED,Soft Facilities Management,Vending Machines & Food Equipment,279,279,558,10-Jun-11,TBC
Nottinghamshire County Council,03-03257,COOKCO LIMITED,Soft Facilities Management,Vending Machines & Food Equipment,296,296,592,10-Jun-11,TBC
Nottinghamshire County Council,03-03571,ROCK HOUSE,Care,Residential Care,"27,140.00","27,140.00","54,280.00",21-Jun-11,TBC
Nottinghamshire County Council,03-00962,DRAEFERN LIMITED T/A RIGHT4STAFF,People,Recruitment,432.6,0,432.6,01-Jun-11,COMMUNITIES
Nottinghamshire County Council,03-00966,CANDOR SERVICES LIMITED,Soft Facilities Management,Cleaning Equipment & Janitorial Supplies,7.5,0,7.5,01-Jun-11,COMMUNITIES
Nottinghamshire County Council,03-00966,CANDOR SERVICES LIMITED,Soft Facilities Management,Cleaning Equipment & Janitorial Supplies,12.5,0,12.5,01-Jun-11,COMMUNITIES
Nottinghamshire County Council,03-00966,CANDOR SERVICES LIMITED,Soft Facilities Management,Cleaning Equipment & Janitorial Supplies,1.45,0,1.45,01-Jun-11,COMMUNITIES
Nottinghamshire County Council,03-00966,CANDOR SERVICES LIMITED,Soft Facilities Management,Cleaning Equipment & Janitorial Supplies,9.6,0,9.6,01-Jun-11,COMMUNITIES
Nottinghamshire County Council,03-00966,CANDOR SERVICES LIMITED,Soft Facilities Management,Cleaning Equipment & Janitorial Supplies,1.25,0,1.25,01-Jun-11,COMMUNITIES
Nottinghamshire County Council,03-00966,CANDOR SERVICES LIMITED,Soft Facilities Management,Cleaning Equipment & Janitorial Supplies,0.29,0,0.29,01-Jun-11,COMMUNITIES
Nottinghamshire County Council,03-00966,CANDOR SERVICES LIMITED,Soft Facilities Management,Cleaning Equipment & Janitorial Supplies,1.25,0,1.25,01-Jun-11,COMMUNITIES
Nottinghamshire County Council,03-00966,CANDOR SERVICES LIMITED,Soft Facilities Management,Cleaning Equipment & Janitorial Supplies,0.29,0,0.29,01-Jun-11,COMMUNITIES
Nottinghamshire County Council,03-00966,CANDOR SERVICES LIMITED,Soft Facilities Management,Cleaning Equipment & Janitorial Supplies,9.6,0,9.6,01-Jun-11,COMMUNITIES
Nottinghamshire County Council,03-00966,CANDOR SERVICES LIMITED,Soft Facilities Management,Cleaning Equipment & Janitorial Supplies,2.5,0,2.5,01-Jun-11,COMMUNITIES
Nottinghamshire County Council,03-00966,CANDOR SERVICES LIMITED,Soft Facilities Management,Cleaning Equipment & Janitorial Supplies,10,0,10,01-Jun-11,COMMUNITIES
Nottinghamshire County Council,03-00966,CANDOR SERVICES LIMITED,Soft Facilities Management,Cleaning Equipment & Janitorial Supplies,5,0,5,01-Jun-11,COMMUNITIES
Nottinghamshire County Council,03-00966,CANDOR SERVICES LIMITED,Soft Facilities Management,Cleaning Equipment & Janitorial Supplies,20.95,0,20.95,01-Jun-11,COMMUNITIES
Nottinghamshire County Council,03-00966,CANDOR SERVICES LIMITED,Soft Facilities Management,Cleaning Equipment & Janitorial Supplies,6.25,0,6.25,01-Jun-11,COMMUNITIES
Nottinghamshire County Council,03-00966,CANDOR SERVICES LIMITED,Soft Facilities Management,Cleaning Equipment & Janitorial Supplies,6.25,0,6.25,01-Jun-11,COMMUNITIES
Nottinghamshire County Council,03-00966,CANDOR SERVICES LIMITED,Soft Facilities Management,Cleaning Equipment & Janitorial Supplies,0.58,0,0.58,01-Jun-11,COMMUNITIES
Nottinghamshire County Council,03-00966,CANDOR SERVICES LIMITED,Soft Facilities Management,Cleaning Equipment & Janitorial Supplies,1.77,0,1.77,01-Jun-11,COMMUNITIES
Nottinghamshire County Council,03-00966,CANDOR SERVICES LIMITED,Soft Facilities Management,Cleaning Equipment & Janitorial Supplies,0.65,0,0.65,01-Jun-11,COMMUNITIES
Nottinghamshire County Council,03-00966,CANDOR SERVICES LIMITED,Soft Facilities Management,Cleaning Equipment & Janitorial Supplies,9.6,0,9.6,01-Jun-11,COMMUNITIES
Nottinghamshire County Council,03-00966,CANDOR SERVICES LIMITED,Soft Facilities Management,Cleaning Equipment & Janitorial Supplies,20.95,0,20.95,01-Jun-11,COMMUNITIES
Nottinghamshire County Council,03-00966,CANDOR SERVICES LIMITED,Soft Facilities Management,Cleaning Equipment & Janitorial Supplies,10,0,10,01-Jun-11,COMMUNITIES
Nottinghamshire County Council,03-00966,CANDOR SERVICES LIMITED,Soft Facilities Management,Cleaning Equipment & Janitorial Supplies,0.87,0,0.87,01-Jun-11,COMMUNITIES
Nottinghamshire County Council,03-00966,CANDOR SERVICES LIMITED,Soft Facilities Management,Cleaning Equipment & Janitorial Supplies,6.36,0,6.36,01-Jun-11,COMMUNITIES
Nottinghamshire County Council,03-00966,CANDOR SERVICES LIMITED,Soft Facilities Management,Cleaning Equipment & Janitorial Supplies,19.2,0,19.2,01-Jun-11,COMMUNITIES
Nottinghamshire County Council,03-00966,CANDOR SERVICES LIMITED,Soft Facilities Management,Cleaning Equipment & Janitorial Supplies,7.5,0,7.5,01-Jun-11,COMMUNITIES
Nottinghamshire County Council,03-00966,CANDOR SERVICES LIMITED,Soft Facilities Management,Cleaning Equipment & Janitorial Supplies,0.87,0,0.87,01-Jun-11,COMMUNITIES
Nottinghamshire County Council,03-00966,CANDOR SERVICES LIMITED,Soft Facilities Management,Cleaning Equipment & Janitorial Supplies,2,0,2,01-Jun-11,COMMUNITIES
Nottinghamshire County Council,03-00966,CANDOR SERVICES LIMITED,Soft Facilities Management,Cleaning Equipment & Janitorial Supplies,2.49,0,2.49,01-Jun-11,COMMUNITIES
Nottinghamshire County Council,03-00966,CANDOR SERVICES LIMITED,Soft Facilities Management,Cleaning Equipment & Janitorial Supplies,1.77,0,1.77,01-Jun-11,COMMUNITIES
Nottinghamshire County Council,03-00966,CANDOR SERVICES LIMITED,Soft Facilities Management,Cleaning Equipment & Janitorial Supplies,23,0,23,01-Jun-11,COMMUNITIES
Nottinghamshire County Council,03-00966,CANDOR SERVICES LIMITED,Soft Facilities Management,Cleaning Equipment & Janitorial Supplies,20.95,0,20.95,01-Jun-11,COMMUNITIES
Nottinghamshire County Council,03-00966,CANDOR SERVICES LIMITED,Soft Facilities Management,Cleaning Equipment & Janitorial Supplies,5,0,5,01-Jun-11,COMMUNITIES
Nottinghamshire County Council,03-00966,CANDOR SERVICES LIMITED,Soft Facilities Management,Cleaning Equipment & Janitorial Supplies,0.58,0,0.58,01-Jun-11,COMMUNITIES
Nottinghamshire County Council,03-00966,CANDOR SERVICES LIMITED,Soft Facilities Management,Cleaning Equipment & Janitorial Supplies,1,0,1,01-Jun-11,COMMUNITIES
Nottinghamshire County Council,03-00966,CANDOR SERVICES LIMITED,Soft Facilities Management,Cleaning Equipment & Janitorial Supplies,9.6,0,9.6,01-Jun-11,COMMUNITIES
Nottinghamshire County Council,03-00966,CANDOR SERVICES LIMITED,Soft Facilities Management,Cleaning Equipment & Janitorial Supplies,11.5,0,11.5,01-Jun-11,COMMUNITIES
Nottinghamshire County Council,03-00966,CANDOR SERVICES LIMITED,Soft Facilities Management,Cleaning Equipment & Janitorial Supplies,7.5,0,7.5,01-Jun-11,COMMUNITIES
Nottinghamshire County Council,03-00966,CANDOR SERVICES LIMITED,Soft Facilities Management,Cleaning Equipment & Janitorial Supplies,1.3,0,1.3,01-Jun-11,COMMUNITIES
Nottinghamshire County Council,03-00966,CANDOR SERVICES LIMITED,Soft Facilities Management,Cleaning Equipment & Janitorial Supplies,1.3,0,1.3,01-Jun-11,COMMUNITIES
Nottinghamshire County Council,03-00966,CANDOR SERVICES LIMITED,Soft Facilities Management,Cleaning Equipment & Janitorial Supplies,2.49,0,2.49,01-Jun-11,COMMUNITIES
Nottinghamshire County Council,03-00966,CANDOR SERVICES LIMITED,Soft Facilities Management,Cleaning Equipment & Janitorial Supplies,10.4,0,10.4,01-Jun-11,COMMUNITIES
Nottinghamshire County Council,03-00966,CANDOR SERVICES LIMITED,Soft Facilities Management,Cleaning Equipment & Janitorial Supplies,9.6,0,9.6,01-Jun-11,COMMUNITIES
Nottinghamshire County Council,03-00966,CANDOR SERVICES LIMITED,Soft Facilities Management,Cleaning Equipment & Janitorial Supplies,37.5,0,37.5,01-Jun-11,COMMUNITIES
Nottinghamshire County Council,03-00966,CANDOR SERVICES LIMITED,Soft Facilities Management,Cleaning Equipment & Janitorial Supplies,4.93,0,4.93,01-Jun-11,COMMUNITIES
Nottinghamshire County Council,03-00966,CANDOR SERVICES LIMITED,Soft Facilities Management,Cleaning Equipment & Janitorial Supplies,13.62,0,13.62,01-Jun-11,COMMUNITIES
Nottinghamshire County Council,03-00966,CANDOR SERVICES LIMITED,Soft Facilities Management,Cleaning Equipment & Janitorial Supplies,7.88,0,7.88,01-Jun-11,COMMUNITIES
Nottinghamshire County Council,03-00966,CANDOR SERVICES LIMITED,Soft Facilities Management,Cleaning Equipment & Janitorial Supplies,6.2,0,6.2,01-Jun-11,COMMUNITIES
Nottinghamshire County Council,03-00966,CANDOR SERVICES LIMITED,Soft Facilities Management,Cleaning Equipment & Janitorial Supplies,5.96,0,5.96,01-Jun-11,COMMUNITIES
Nottinghamshire County Council,03-00966,CANDOR SERVICES LIMITED,Soft Facilities Management,Cleaning Equipment & Janitorial Supplies,2.29,0,2.29,01-Jun-11,COMMUNITIES
Nottinghamshire County Council,03-00966,CANDOR SERVICES LIMITED,Soft Facilities Management,Cleaning Equipment & Janitorial Supplies,23,0,23,01-Jun-11,COMMUNITIES
Nottinghamshire County Council,03-00966,CANDOR SERVICES LIMITED,Soft Facilities Management,Cleaning Equipment & Janitorial Supplies,20.95,0,20.95,01-Jun-11,COMMUNITIES
Nottinghamshire County Council,03-00966,CANDOR SERVICES LIMITED,Soft Facilities Management,Cleaning Equipment & Janitorial Supplies,40,0,40,01-Jun-11,COMMUNITIES
Nottinghamshire County Council,03-00966,CANDOR SERVICES LIMITED,Soft Facilities Management,Cleaning Equipment & Janitorial Supplies,6.41,0,6.41,01-Jun-11,COMMUNITIES
Nottinghamshire County Council,03-00966,CANDOR SERVICES LIMITED,Soft Facilities Management,Cleaning Equipment & Janitorial Supplies,0.87,0,0.87,01-Jun-11,COMMUNITIES
Nottinghamshire County Council,03-00982,BRITISH STANDARDS INSTITUTE,External Services (Highways & Culture),Organisations & Clubs,"1,522.00",0,"1,522.00",01-Jun-11,COMMUNITIES
Nottinghamshire County Council,03-01000,CANDOR SERVICES LIMITED,Soft Facilities Management,Cleaning Equipment & Janitorial Supplies,76.7,0,76.7,01-Jun-11,COMMUNITIES
Nottinghamshire County Council,03-01000,CANDOR SERVICES LIMITED,Soft Facilities Management,Cleaning Equipment & Janitorial Supplies,3.19,0,3.19,01-Jun-11,COMMUNITIES
Nottinghamshire County Council,03-01000,CANDOR SERVICES LIMITED,Soft Facilities Management,Cleaning Equipment & Janitorial Supplies,4.98,0,4.98,01-Jun-11,COMMUNITIES
Nottinghamshire County Council,03-01000,CANDOR SERVICES LIMITED,Soft Facilities Management,Cleaning Equipment & Janitorial Supplies,1.3,0,1.3,01-Jun-11,COMMUNITIES
Nottinghamshire County Council,03-01000,CANDOR SERVICES LIMITED,Soft Facilities Management,Cleaning Equipment & Janitorial Supplies,1.3,0,1.3,01-Jun-11,COMMUNITIES
Nottinghamshire County Council,03-01000,CANDOR SERVICES LIMITED,Soft Facilities Management,Cleaning Equipment & Janitorial Supplies,11.92,0,11.92,01-Jun-11,COMMUNITIES
Nottinghamshire County Council,03-01000,CANDOR SERVICES LIMITED,Soft Facilities Management,Cleaning Equipment & Janitorial Supplies,9.08,0,9.08,01-Jun-11,COMMUNITIES
Nottinghamshire County Council,03-01000,CANDOR SERVICES LIMITED,Soft Facilities Management,Cleaning Equipment & Janitorial Supplies,38.4,0,38.4,01-Jun-11,COMMUNITIES
Nottinghamshire County Council,03-01000,CANDOR SERVICES LIMITED,Soft Facilities Management,Cleaning Equipment & Janitorial Supplies,10.4,0,10.4,01-Jun-11,COMMUNITIES
Nottinghamshire County Council,03-01000,CANDOR SERVICES LIMITED,Soft Facilities Management,Cleaning Equipment & Janitorial Supplies,34.5,0,34.5,01-Jun-11,COMMUNITIES
Nottinghamshire County Council,03-01000,CANDOR SERVICES LIMITED,Soft Facilities Management,Cleaning Equipment & Janitorial Supplies,3,0,3,01-Jun-11,COMMUNITIES
Nottinghamshire County Council,03-01000,CANDOR SERVICES LIMITED,Soft Facilities Management,Cleaning Equipment & Janitorial Supplies,6.25,0,6.25,01-Jun-11,COMMUNITIES
Nottinghamshire County Council,03-01000,CANDOR SERVICES LIMITED,Soft Facilities Management,Cleaning Equipment & Janitorial Supplies,8.53,0,8.53,01-Jun-11,COMMUNITIES
Nottinghamshire County Council,03-01000,CANDOR SERVICES LIMITED,Soft Facilities Management,Cleaning Equipment & Janitorial Supplies,2.5,0,2.5,01-Jun-11,COMMUNITIES
Nottinghamshire County Council,03-01000,CANDOR SERVICES LIMITED,Soft Facilities Management,Cleaning Equipment & Janitorial Supplies,32.7,0,32.7,01-Jun-11,COMMUNITIES
Nottinghamshire County Council,03-01000,CANDOR SERVICES LIMITED,Soft Facilities Management,Cleaning Equipment & Janitorial Supplies,10.4,0,10.4,01-Jun-11,COMMUNITIES
Nottinghamshire County Council,03-01000,CANDOR SERVICES LIMITED,Soft Facilities Management,Cleaning Equipment & Janitorial Supplies,45.5,0,45.5,01-Jun-11,COMMUNITIES
Nottinghamshire County Council,03-01000,CANDOR SERVICES LIMITED,Soft Facilities Management,Cleaning Equipment & Janitorial Supplies,1.74,0,1.74,01-Jun-11,COMMUNITIES
Nottinghamshire County Council,03-01000,CANDOR SERVICES LIMITED,Soft Facilities Management,Cleaning Equipment & Janitorial Supplies,2,0,2,01-Jun-11,COMMUNITIES
Nottinghamshire County Council,03-01000,CANDOR SERVICES LIMITED,Soft Facilities Management,Cleaning Equipment & Janitorial Supplies,1.32,0,1.32,01-Jun-11,COMMUNITIES
Nottinghamshire County Council,03-01000,CANDOR SERVICES LIMITED,Soft Facilities Management,Cleaning Equipment & Janitorial Supplies,1.57,0,1.57,01-Jun-11,COMMUNITIES
Nottinghamshire County Council,03-01000,CANDOR SERVICES LIMITED,Soft Facilities Management,Cleaning Equipment & Janitorial Supplies,2.49,0,2.49,01-Jun-11,COMMUNITIES
Nottinghamshire County Council,03-01000,CANDOR SERVICES LIMITED,Soft Facilities Management,Cleaning Equipment & Janitorial Supplies,11.92,0,11.92,01-Jun-11,COMMUNITIES
Nottinghamshire County Council,03-01000,CANDOR SERVICES LIMITED,Soft Facilities Management,Cleaning Equipment & Janitorial Supplies,13.62,0,13.62,01-Jun-11,COMMUNITIES
Nottinghamshire County Council,03-01000,CANDOR SERVICES LIMITED,Soft Facilities Management,Cleaning Equipment & Janitorial Supplies,35.36,0,35.36,01-Jun-11,COMMUNITIES
Nottinghamshire County Council,03-01000,CANDOR SERVICES LIMITED,Soft Facilities Management,Cleaning Equipment & Janitorial Supplies,23,0,23,01-Jun-11,COMMUNITIES
Nottinghamshire County Council,03-01000,CANDOR SERVICES LIMITED,Soft Facilities Management,Cleaning Equipment & Janitorial Supplies,19.2,0,19.2,01-Jun-11,COMMUNITIES
Nottinghamshire County Council,03-01000,CANDOR SERVICES LIMITED,Soft Facilities Management,Cleaning Equipment & Janitorial Supplies,41.9,0,41.9,01-Jun-11,COMMUNITIES
Nottinghamshire County Council,03-01000,CANDOR SERVICES LIMITED,Soft Facilities Management,Cleaning Equipment & Janitorial Supplies,40,0,40,01-Jun-11,COMMUNITIES
Nottinghamshire County Council,03-01001,CANDOR SERVICES LIMITED,Soft Facilities Management,Cleaning Equipment & Janitorial Supplies,17.5,0,17.5,01-Jun-11,COMMUNITIES
Nottinghamshire County Council,03-01001,CANDOR SERVICES LIMITED,Soft Facilities Management,Cleaning Equipment & Janitorial Supplies,1.45,0,1.45,01-Jun-11,COMMUNITIES
Nottinghamshire County Council,03-01001,CANDOR SERVICES LIMITED,Soft Facilities Management,Cleaning Equipment & Janitorial Supplies,2.5,0,2.5,01-Jun-11,COMMUNITIES
Nottinghamshire County Council,03-01001,CANDOR SERVICES LIMITED,Soft Facilities Management,Cleaning Equipment & Janitorial Supplies,0.58,0,0.58,01-Jun-11,COMMUNITIES
Nottinghamshire County Council,03-01001,CANDOR SERVICES LIMITED,Soft Facilities Management,Cleaning Equipment & Janitorial Supplies,1.32,0,1.32,01-Jun-11,COMMUNITIES
Nottinghamshire County Council,03-01001,CANDOR SERVICES LIMITED,Soft Facilities Management,Cleaning Equipment & Janitorial Supplies,1.57,0,1.57,01-Jun-11,COMMUNITIES
Nottinghamshire County Council,03-01001,CANDOR SERVICES LIMITED,Soft Facilities Management,Cleaning Equipment & Janitorial Supplies,1,0,1,01-Jun-11,COMMUNITIES
Nottinghamshire County Council,03-01001,CANDOR SERVICES LIMITED,Soft Facilities Management,Cleaning Equipment & Janitorial Supplies,11.5,0,11.5,01-Jun-11,COMMUNITIES
Nottinghamshire County Council,03-01001,CANDOR SERVICES LIMITED,Soft Facilities Management,Cleaning Equipment & Janitorial Supplies,1.25,0,1.25,01-Jun-11,COMMUNITIES
Nottinghamshire County Council,03-01001,CANDOR SERVICES LIMITED,Soft Facilities Management,Cleaning Equipment & Janitorial Supplies,0.29,0,0.29,01-Jun-11,COMMUNITIES
Nottinghamshire County Council,03-01001,CANDOR SERVICES LIMITED,Soft Facilities Management,Cleaning Equipment & Janitorial Supplies,2.49,0,2.49,01-Jun-11,COMMUNITIES
Nottinghamshire County Council,03-01001,CANDOR SERVICES LIMITED,Soft Facilities Management,Cleaning Equipment & Janitorial Supplies,9.6,0,9.6,01-Jun-11,COMMUNITIES
Nottinghamshire County Council,03-01001,CANDOR SERVICES LIMITED,Soft Facilities Management,Cleaning Equipment & Janitorial Supplies,1.25,0,1.25,01-Jun-11,COMMUNITIES
Nottinghamshire County Council,03-01001,CANDOR SERVICES LIMITED,Soft Facilities Management,Cleaning Equipment & Janitorial Supplies,67.5,0,67.5,01-Jun-11,COMMUNITIES
Nottinghamshire County Council,03-01001,CANDOR SERVICES LIMITED,Soft Facilities Management,Cleaning Equipment & Janitorial Supplies,0.58,0,0.58,01-Jun-11,COMMUNITIES
Nottinghamshire County Council,03-01001,CANDOR SERVICES LIMITED,Soft Facilities Management,Cleaning Equipment & Janitorial Supplies,2.63,0,2.63,01-Jun-11,COMMUNITIES
Nottinghamshire County Council,03-01001,CANDOR SERVICES LIMITED,Soft Facilities Management,Cleaning Equipment & Janitorial Supplies,3.1,0,3.1,01-Jun-11,COMMUNITIES
Nottinghamshire County Council,03-01001,CANDOR SERVICES LIMITED,Soft Facilities Management,Cleaning Equipment & Janitorial Supplies,2.49,0,2.49,01-Jun-11,COMMUNITIES
Nottinghamshire County Council,03-01001,CANDOR SERVICES LIMITED,Soft Facilities Management,Cleaning Equipment & Janitorial Supplies,2.5,0,2.5,01-Jun-11,COMMUNITIES
Nottinghamshire County Council,03-01001,CANDOR SERVICES LIMITED,Soft Facilities Management,Cleaning Equipment & Janitorial Supplies,62.85,0,62.85,01-Jun-11,COMMUNITIES
Nottinghamshire County Council,03-01001,CANDOR SERVICES LIMITED,Soft Facilities Management,Cleaning Equipment & Janitorial Supplies,9.6,0,9.6,01-Jun-11,COMMUNITIES
Nottinghamshire County Council,03-01001,CANDOR SERVICES LIMITED,Soft Facilities Management,Cleaning Equipment & Janitorial Supplies,3.42,0,3.42,01-Jun-11,COMMUNITIES
Nottinghamshire County Council,03-01001,CANDOR SERVICES LIMITED,Soft Facilities Management,Cleaning Equipment & Janitorial Supplies,5,0,5,01-Jun-11,COMMUNITIES
Nottinghamshire County Council,03-01001,CANDOR SERVICES LIMITED,Soft Facilities Management,Cleaning Equipment & Janitorial Supplies,6.25,0,6.25,01-Jun-11,COMMUNITIES
Nottinghamshire County Council,03-01001,CANDOR SERVICES LIMITED,Soft Facilities Management,Cleaning Equipment & Janitorial Supplies,0.58,0,0.58,01-Jun-11,COMMUNITIES
Nottinghamshire County Council,03-01001,CANDOR SERVICES LIMITED,Soft Facilities Management,Cleaning Equipment & Janitorial Supplies,20.8,0,20.8,01-Jun-11,COMMUNITIES
Nottinghamshire County Council,03-01001,CANDOR SERVICES LIMITED,Soft Facilities Management,Cleaning Equipment & Janitorial Supplies,11.25,0,11.25,01-Jun-11,COMMUNITIES
Nottinghamshire County Council,03-01001,CANDOR SERVICES LIMITED,Soft Facilities Management,Cleaning Equipment & Janitorial Supplies,1.45,0,1.45,01-Jun-11,COMMUNITIES
Nottinghamshire County Council,03-01001,CANDOR SERVICES LIMITED,Soft Facilities Management,Cleaning Equipment & Janitorial Supplies,4.54,0,4.54,01-Jun-11,COMMUNITIES
Nottinghamshire County Council,03-01001,CANDOR SERVICES LIMITED,Soft Facilities Management,Cleaning Equipment & Janitorial Supplies,5.96,0,5.96,01-Jun-11,COMMUNITIES
Nottinghamshire County Council,03-01001,CANDOR SERVICES LIMITED,Soft Facilities Management,Cleaning Equipment & Janitorial Supplies,2.29,0,2.29,01-Jun-11,COMMUNITIES
Nottinghamshire County Council,03-01001,CANDOR SERVICES LIMITED,Soft Facilities Management,Cleaning Equipment & Janitorial Supplies,19.2,0,19.2,01-Jun-11,COMMUNITIES
Nottinghamshire County Council,03-01001,CANDOR SERVICES LIMITED,Soft Facilities Management,Cleaning Equipment & Janitorial Supplies,11.02,0,11.02,01-Jun-11,COMMUNITIES
Nottinghamshire County Council,03-01001,CANDOR SERVICES LIMITED,Soft Facilities Management,Cleaning Equipment & Janitorial Supplies,11.5,0,11.5,01-Jun-11,COMMUNITIES
Nottinghamshire County Council,03-01001,CANDOR SERVICES LIMITED,Soft Facilities Management,Cleaning Equipment & Janitorial Supplies,3.75,0,3.75,01-Jun-11,COMMUNITIES
Nottinghamshire County Council,03-01001,CANDOR SERVICES LIMITED,Soft Facilities Management,Cleaning Equipment & Janitorial Supplies,0.29,0,0.29,01-Jun-11,COMMUNITIES
Nottinghamshire County Council,03-01001,CANDOR SERVICES LIMITED,Soft Facilities Management,Cleaning Equipment & Janitorial Supplies,5,0,5,01-Jun-11,COMMUNITIES
Nottinghamshire County Council,03-01001,CANDOR SERVICES LIMITED,Soft Facilities Management,Cleaning Equipment & Janitorial Supplies,1,0,1,01-Jun-11,COMMUNITIES
Nottinghamshire County Council,03-01001,CANDOR SERVICES LIMITED,Soft Facilities Management,Cleaning Equipment & Janitorial Supplies,1.32,0,1.32,01-Jun-11,COMMUNITIES
Nottinghamshire County Council,03-01001,CANDOR SERVICES LIMITED,Soft Facilities Management,Cleaning Equipment & Janitorial Supplies,1.57,0,1.57,01-Jun-11,COMMUNITIES
Nottinghamshire County Council,03-01001,CANDOR SERVICES LIMITED,Soft Facilities Management,Cleaning Equipment & Janitorial Supplies,11.5,0,11.5,01-Jun-11,COMMUNITIES
Nottinghamshire County Council,03-01001,CANDOR SERVICES LIMITED,Soft Facilities Management,Cleaning Equipment & Janitorial Supplies,21.25,0,21.25,01-Jun-11,COMMUNITIES
Nottinghamshire County Council,03-01001,CANDOR SERVICES LIMITED,Soft Facilities Management,Cleaning Equipment & Janitorial Supplies,1.16,0,1.16,01-Jun-11,COMMUNITIES
Nottinghamshire County Council,03-01001,CANDOR SERVICES LIMITED,Soft Facilities Management,Cleaning Equipment & Janitorial Supplies,4.54,0,4.54,01-Jun-11,COMMUNITIES
Nottinghamshire County Council,03-01001,CANDOR SERVICES LIMITED,Soft Facilities Management,Cleaning Equipment & Janitorial Supplies,5.96,0,5.96,01-Jun-11,COMMUNITIES
Nottinghamshire County Council,03-01001,CANDOR SERVICES LIMITED,Soft Facilities Management,Cleaning Equipment & Janitorial Supplies,19.2,0,19.2,01-Jun-11,COMMUNITIES
Nottinghamshire County Council,03-01001,CANDOR SERVICES LIMITED,Soft Facilities Management,Cleaning Equipment & Janitorial Supplies,23,0,23,01-Jun-11,COMMUNITIES
Nottinghamshire County Council,03-01001,CANDOR SERVICES LIMITED,Soft Facilities Management,Cleaning Equipment & Janitorial Supplies,20.95,0,20.95,01-Jun-11,COMMUNITIES
Nottinghamshire County Council,03-01001,CANDOR SERVICES LIMITED,Soft Facilities Management,Cleaning Equipment & Janitorial Supplies,1,0,1,01-Jun-11,COMMUNITIES
Nottinghamshire County Council,03-01001,CANDOR SERVICES LIMITED,Soft Facilities Management,Cleaning Equipment & Janitorial Supplies,1.32,0,1.32,01-Jun-11,COMMUNITIES
Nottinghamshire County Council,03-01001,CANDOR SERVICES LIMITED,Soft Facilities Management,Cleaning Equipment & Janitorial Supplies,1.57,0,1.57,01-Jun-11,COMMUNITIES
Nottinghamshire County Council,03-01001,CANDOR SERVICES LIMITED,Soft Facilities Management,Cleaning Equipment & Janitorial Supplies,21.25,0,21.25,01-Jun-11,COMMUNITIES
Nottinghamshire County Council,03-01001,CANDOR SERVICES LIMITED,Soft Facilities Management,Cleaning Equipment & Janitorial Supplies,2.03,0,2.03,01-Jun-11,COMMUNITIES
Nottinghamshire County Council,03-01001,CANDOR SERVICES LIMITED,Soft Facilities Management,Cleaning Equipment & Janitorial Supplies,2.49,0,2.49,01-Jun-11,COMMUNITIES
Nottinghamshire County Council,03-01001,CANDOR SERVICES LIMITED,Soft Facilities Management,Cleaning Equipment & Janitorial Supplies,28.8,0,28.8,01-Jun-11,COMMUNITIES
Nottinghamshire County Council,03-01001,CANDOR SERVICES LIMITED,Soft Facilities Management,Cleaning Equipment & Janitorial Supplies,1.57,0,1.57,01-Jun-11,COMMUNITIES
Nottinghamshire County Council,03-01001,CANDOR SERVICES LIMITED,Soft Facilities Management,Cleaning Equipment & Janitorial Supplies,41.9,0,41.9,01-Jun-11,COMMUNITIES
Nottinghamshire County Council,03-01001,CANDOR SERVICES LIMITED,Soft Facilities Management,Cleaning Equipment & Janitorial Supplies,32.7,0,32.7,01-Jun-11,COMMUNITIES
Nottinghamshire County Council,03-01001,CANDOR SERVICES LIMITED,Soft Facilities Management,Cleaning Equipment & Janitorial Supplies,40,0,40,01-Jun-11,COMMUNITIES
Nottinghamshire County Council,03-01001,CANDOR SERVICES LIMITED,Soft Facilities Management,Cleaning Equipment & Janitorial Supplies,0.29,0,0.29,01-Jun-11,COMMUNITIES
Nottinghamshire County Council,03-02761,CANDOR SERVICES LIMITED,Soft Facilities Management,Cleaning Equipment & Janitorial Supplies,674.55,0,674.55,09-Jun-11,COMMUNITIES
Nottinghamshire County Council,03-03159,DRAEFERN LIMITED T/A RIGHT4STAFF,People,Recruitment,432.6,0,432.6,10-Jun-11,COMMUNITIES
Nottinghamshire County Council,03-03446,DRAEFERN LIMITED T/A RIGHT4STAFF,People,Recruitment,432.6,0,432.6,13-Jun-11,COMMUNITIES
Nottinghamshire County Council,03-03653,CANDOR SERVICES LIMITED,Soft Facilities Management,Cleaning Equipment & Janitorial Supplies,6.25,0,6.25,14-Jun-11,COMMUNITIES
Nottinghamshire County Council,03-03653,CANDOR SERVICES LIMITED,Soft Facilities Management,Cleaning Equipment & Janitorial Supplies,0.58,0,0.58,14-Jun-11,COMMUNITIES
Nottinghamshire County Council,03-03653,CANDOR SERVICES LIMITED,Soft Facilities Management,Cleaning Equipment & Janitorial Supplies,6.25,0,6.25,14-Jun-11,COMMUNITIES
Nottinghamshire County Council,03-03653,CANDOR SERVICES LIMITED,Soft Facilities Management,Cleaning Equipment & Janitorial Supplies,0.58,0,0.58,14-Jun-11,COMMUNITIES
Nottinghamshire County Council,03-03653,CANDOR SERVICES LIMITED,Soft Facilities Management,Cleaning Equipment & Janitorial Supplies,1,0,1,14-Jun-11,COMMUNITIES
Nottinghamshire County Council,03-03653,CANDOR SERVICES LIMITED,Soft Facilities Management,Cleaning Equipment & Janitorial Supplies,11.5,0,11.5,14-Jun-11,COMMUNITIES
Nottinghamshire County Council,03-03653,CANDOR SERVICES LIMITED,Soft Facilities Management,Cleaning Equipment & Janitorial Supplies,1.68,0,1.68,14-Jun-11,COMMUNITIES
Nottinghamshire County Council,03-03653,CANDOR SERVICES LIMITED,Soft Facilities Management,Cleaning Equipment & Janitorial Supplies,9.6,0,9.6,14-Jun-11,COMMUNITIES
Nottinghamshire County Council,03-03653,CANDOR SERVICES LIMITED,Soft Facilities Management,Cleaning Equipment & Janitorial Supplies,6.25,0,6.25,14-Jun-11,COMMUNITIES
Nottinghamshire County Council,03-03653,CANDOR SERVICES LIMITED,Soft Facilities Management,Cleaning Equipment & Janitorial Supplies,0.87,0,0.87,14-Jun-11,COMMUNITIES
Nottinghamshire County Council,03-03653,CANDOR SERVICES LIMITED,Soft Facilities Management,Cleaning Equipment & Janitorial Supplies,2,0,2,14-Jun-11,COMMUNITIES
Nottinghamshire County Council,03-03653,CANDOR SERVICES LIMITED,Soft Facilities Management,Cleaning Equipment & Janitorial Supplies,23,0,23,14-Jun-11,COMMUNITIES
Nottinghamshire County Council,03-03653,CANDOR SERVICES LIMITED,Soft Facilities Management,Cleaning Equipment & Janitorial Supplies,9.6,0,9.6,14-Jun-11,COMMUNITIES
Nottinghamshire County Council,03-03653,CANDOR SERVICES LIMITED,Soft Facilities Management,Cleaning Equipment & Janitorial Supplies,5,0,5,14-Jun-11,COMMUNITIES
Nottinghamshire County Council,03-03653,CANDOR SERVICES LIMITED,Soft Facilities Management,Cleaning Equipment & Janitorial Supplies,3.75,0,3.75,14-Jun-11,COMMUNITIES
Nottinghamshire County Council,03-03653,CANDOR SERVICES LIMITED,Soft Facilities Management,Cleaning Equipment & Janitorial Supplies,0.87,0,0.87,14-Jun-11,COMMUNITIES
Nottinghamshire County Council,03-03653,CANDOR SERVICES LIMITED,Soft Facilities Management,Cleaning Equipment & Janitorial Supplies,10,0,10,14-Jun-11,COMMUNITIES
Nottinghamshire County Council,03-03653,CANDOR SERVICES LIMITED,Soft Facilities Management,Cleaning Equipment & Janitorial Supplies,0.29,0,0.29,14-Jun-11,COMMUNITIES
Nottinghamshire County Council,03-03653,CANDOR SERVICES LIMITED,Soft Facilities Management,Cleaning Equipment & Janitorial Supplies,1,0,1,14-Jun-11,COMMUNITIES
Nottinghamshire County Council,03-03653,CANDOR SERVICES LIMITED,Soft Facilities Management,Cleaning Equipment & Janitorial Supplies,11.5,0,11.5,14-Jun-11,COMMUNITIES
Nottinghamshire County Council,03-03653,CANDOR SERVICES LIMITED,Soft Facilities Management,Cleaning Equipment & Janitorial Supplies,3.75,0,3.75,14-Jun-11,COMMUNITIES
Nottinghamshire County Council,03-03653,CANDOR SERVICES LIMITED,Soft Facilities Management,Cleaning Equipment & Janitorial Supplies,0.29,0,0.29,14-Jun-11,COMMUNITIES
Nottinghamshire County Council,03-03653,CANDOR SERVICES LIMITED,Soft Facilities Management,Cleaning Equipment & Janitorial Supplies,1,0,1,14-Jun-11,COMMUNITIES
Nottinghamshire County Council,03-03653,CANDOR SERVICES LIMITED,Soft Facilities Management,Cleaning Equipment & Janitorial Supplies,11.5,0,11.5,14-Jun-11,COMMUNITIES
Nottinghamshire County Council,03-03653,CANDOR SERVICES LIMITED,Soft Facilities Management,Cleaning Equipment & Janitorial Supplies,12.5,0,12.5,14-Jun-11,COMMUNITIES
Nottinghamshire County Council,03-03653,CANDOR SERVICES LIMITED,Soft Facilities Management,Cleaning Equipment & Janitorial Supplies,0.58,0,0.58,14-Jun-11,COMMUNITIES
Nottinghamshire County Council,03-03653,CANDOR SERVICES LIMITED,Soft Facilities Management,Cleaning Equipment & Janitorial Supplies,9.08,0,9.08,14-Jun-11,COMMUNITIES
Nottinghamshire County Council,03-03653,CANDOR SERVICES LIMITED,Soft Facilities Management,Cleaning Equipment & Janitorial Supplies,7.88,0,7.88,14-Jun-11,COMMUNITIES
Nottinghamshire County Council,03-03653,CANDOR SERVICES LIMITED,Soft Facilities Management,Cleaning Equipment & Janitorial Supplies,6.2,0,6.2,14-Jun-11,COMMUNITIES
Nottinghamshire County Council,03-03653,CANDOR SERVICES LIMITED,Soft Facilities Management,Cleaning Equipment & Janitorial Supplies,11.92,0,11.92,14-Jun-11,COMMUNITIES
Nottinghamshire County Council,03-03653,CANDOR SERVICES LIMITED,Soft Facilities Management,Cleaning Equipment & Janitorial Supplies,7.34,0,7.34,14-Jun-11,COMMUNITIES
Nottinghamshire County Council,03-03653,CANDOR SERVICES LIMITED,Soft Facilities Management,Cleaning Equipment & Janitorial Supplies,23,0,23,14-Jun-11,COMMUNITIES
Nottinghamshire County Council,03-03653,CANDOR SERVICES LIMITED,Soft Facilities Management,Cleaning Equipment & Janitorial Supplies,86.25,0,86.25,14-Jun-11,COMMUNITIES
Nottinghamshire County Council,03-03653,CANDOR SERVICES LIMITED,Soft Facilities Management,Cleaning Equipment & Janitorial Supplies,2.32,0,2.32,14-Jun-11,COMMUNITIES
Nottinghamshire County Council,03-03653,CANDOR SERVICES LIMITED,Soft Facilities Management,Cleaning Equipment & Janitorial Supplies,7,0,7,14-Jun-11,COMMUNITIES
Nottinghamshire County Council,03-03653,CANDOR SERVICES LIMITED,Soft Facilities Management,Cleaning Equipment & Janitorial Supplies,5.96,0,5.96,14-Jun-11,COMMUNITIES
Nottinghamshire County Council,03-03653,CANDOR SERVICES LIMITED,Soft Facilities Management,Cleaning Equipment & Janitorial Supplies,3.1,0,3.1,14-Jun-11,COMMUNITIES
Nottinghamshire County Council,03-03653,CANDOR SERVICES LIMITED,Soft Facilities Management,Cleaning Equipment & Janitorial Supplies,92,0,92,14-Jun-11,COMMUNITIES
Nottinghamshire County Council,03-03653,CANDOR SERVICES LIMITED,Soft Facilities Management,Cleaning Equipment & Janitorial Supplies,5,0,5,14-Jun-11,COMMUNITIES
Nottinghamshire County Council,03-03653,CANDOR SERVICES LIMITED,Soft Facilities Management,Cleaning Equipment & Janitorial Supplies,2.5,0,2.5,14-Jun-11,COMMUNITIES
Nottinghamshire County Council,03-03653,CANDOR SERVICES LIMITED,Soft Facilities Management,Cleaning Equipment & Janitorial Supplies,0.29,0,0.29,14-Jun-11,COMMUNITIES
Nottinghamshire County Council,03-03653,CANDOR SERVICES LIMITED,Soft Facilities Management,Cleaning Equipment & Janitorial Supplies,20.95,0,20.95,14-Jun-11,COMMUNITIES
Nottinghamshire County Council,03-03653,CANDOR SERVICES LIMITED,Soft Facilities Management,Cleaning Equipment & Janitorial Supplies,40,0,40,14-Jun-11,COMMUNITIES
Nottinghamshire County Council,03-03697,HSS HIRE SHOPS,Hard Facilities Management ,Tools & General Machinery,539,107.8,646.8,14-Jun-11,COMMUNITIES
Nottinghamshire County Council,03-04095,CANDOR SERVICES LIMITED,Soft Facilities Management,Cleaning Equipment & Janitorial Supplies,47.5,0,47.5,15-Jun-11,COMMUNITIES
Nottinghamshire County Council,03-04095,CANDOR SERVICES LIMITED,Soft Facilities Management,Cleaning Equipment & Janitorial Supplies,2.61,0,2.61,15-Jun-11,COMMUNITIES
Nottinghamshire County Council,03-04095,CANDOR SERVICES LIMITED,Soft Facilities Management,Cleaning Equipment & Janitorial Supplies,2.5,0,2.5,15-Jun-11,COMMUNITIES
Nottinghamshire County Council,03-04095,CANDOR SERVICES LIMITED,Soft Facilities Management,Cleaning Equipment & Janitorial Supplies,2.49,0,2.49,15-Jun-11,COMMUNITIES
Nottinghamshire County Council,03-04095,CANDOR SERVICES LIMITED,Soft Facilities Management,Cleaning Equipment & Janitorial Supplies,48,0,48,15-Jun-11,COMMUNITIES
Nottinghamshire County Council,03-04095,CANDOR SERVICES LIMITED,Soft Facilities Management,Cleaning Equipment & Janitorial Supplies,62.85,0,62.85,15-Jun-11,COMMUNITIES
Nottinghamshire County Council,03-04095,CANDOR SERVICES LIMITED,Soft Facilities Management,Cleaning Equipment & Janitorial Supplies,73.4,0,73.4,15-Jun-11,COMMUNITIES
Nottinghamshire County Council,03-04095,CANDOR SERVICES LIMITED,Soft Facilities Management,Cleaning Equipment & Janitorial Supplies,52.5,0,52.5,15-Jun-11,COMMUNITIES
Nottinghamshire County Council,03-04095,CANDOR SERVICES LIMITED,Soft Facilities Management,Cleaning Equipment & Janitorial Supplies,2.32,0,2.32,15-Jun-11,COMMUNITIES
Nottinghamshire County Council,03-04095,CANDOR SERVICES LIMITED,Soft Facilities Management,Cleaning Equipment & Janitorial Supplies,5.96,0,5.96,15-Jun-11,COMMUNITIES
Nottinghamshire County Council,03-04095,CANDOR SERVICES LIMITED,Soft Facilities Management,Cleaning Equipment & Janitorial Supplies,2.98,0,2.98,15-Jun-11,COMMUNITIES
Nottinghamshire County Council,03-04095,CANDOR SERVICES LIMITED,Soft Facilities Management,Cleaning Equipment & Janitorial Supplies,1.54,0,1.54,15-Jun-11,COMMUNITIES
Nottinghamshire County Council,03-04095,CANDOR SERVICES LIMITED,Soft Facilities Management,Cleaning Equipment & Janitorial Supplies,1.54,0,1.54,15-Jun-11,COMMUNITIES
Nottinghamshire County Council,03-04095,CANDOR SERVICES LIMITED,Soft Facilities Management,Cleaning Equipment & Janitorial Supplies,1.11,0,1.11,15-Jun-11,COMMUNITIES
Nottinghamshire County Council,03-04095,CANDOR SERVICES LIMITED,Soft Facilities Management,Cleaning Equipment & Janitorial Supplies,34.5,0,34.5,15-Jun-11,COMMUNITIES
Nottinghamshire County Council,03-04095,CANDOR SERVICES LIMITED,Soft Facilities Management,Cleaning Equipment & Janitorial Supplies,38.4,0,38.4,15-Jun-11,COMMUNITIES
Nottinghamshire County Council,03-04095,CANDOR SERVICES LIMITED,Soft Facilities Management,Cleaning Equipment & Janitorial Supplies,20.95,0,20.95,15-Jun-11,COMMUNITIES
Nottinghamshire County Council,03-04095,CANDOR SERVICES LIMITED,Soft Facilities Management,Cleaning Equipment & Janitorial Supplies,55.13,0,55.13,15-Jun-11,COMMUNITIES
Nottinghamshire County Council,03-04095,CANDOR SERVICES LIMITED,Soft Facilities Management,Cleaning Equipment & Janitorial Supplies,37.5,0,37.5,15-Jun-11,COMMUNITIES
Nottinghamshire County Council,03-04095,CANDOR SERVICES LIMITED,Soft Facilities Management,Cleaning Equipment & Janitorial Supplies,4.93,0,4.93,15-Jun-11,COMMUNITIES
Nottinghamshire County Council,03-04095,CANDOR SERVICES LIMITED,Soft Facilities Management,Cleaning Equipment & Janitorial Supplies,2,0,2,15-Jun-11,COMMUNITIES
Nottinghamshire County Council,03-04095,CANDOR SERVICES LIMITED,Soft Facilities Management,Cleaning Equipment & Janitorial Supplies,1.54,0,1.54,15-Jun-11,COMMUNITIES
Nottinghamshire County Council,03-04095,CANDOR SERVICES LIMITED,Soft Facilities Management,Cleaning Equipment & Janitorial Supplies,1.54,0,1.54,15-Jun-11,COMMUNITIES
Nottinghamshire County Council,03-04095,CANDOR SERVICES LIMITED,Soft Facilities Management,Cleaning Equipment & Janitorial Supplies,1.11,0,1.11,15-Jun-11,COMMUNITIES
Nottinghamshire County Council,03-04095,CANDOR SERVICES LIMITED,Soft Facilities Management,Cleaning Equipment & Janitorial Supplies,7.8,0,7.8,15-Jun-11,COMMUNITIES
Nottinghamshire County Council,03-04095,CANDOR SERVICES LIMITED,Soft Facilities Management,Cleaning Equipment & Janitorial Supplies,7.8,0,7.8,15-Jun-11,COMMUNITIES
Nottinghamshire County Council,03-04095,CANDOR SERVICES LIMITED,Soft Facilities Management,Cleaning Equipment & Janitorial Supplies,2.62,0,2.62,15-Jun-11,COMMUNITIES
Nottinghamshire County Council,03-04095,CANDOR SERVICES LIMITED,Soft Facilities Management,Cleaning Equipment & Janitorial Supplies,34.5,0,34.5,15-Jun-11,COMMUNITIES
Nottinghamshire County Council,03-04095,CANDOR SERVICES LIMITED,Soft Facilities Management,Cleaning Equipment & Janitorial Supplies,62.4,0,62.4,15-Jun-11,COMMUNITIES
Nottinghamshire County Council,03-04095,CANDOR SERVICES LIMITED,Soft Facilities Management,Cleaning Equipment & Janitorial Supplies,36.7,0,36.7,15-Jun-11,COMMUNITIES
Nottinghamshire County Council,03-04095,CANDOR SERVICES LIMITED,Soft Facilities Management,Cleaning Equipment & Janitorial Supplies,2.57,0,2.57,15-Jun-11,COMMUNITIES
Nottinghamshire County Council,03-04095,CANDOR SERVICES LIMITED,Soft Facilities Management,Cleaning Equipment & Janitorial Supplies,40,0,40,15-Jun-11,COMMUNITIES
Nottinghamshire County Council,03-04136,EAST MIDLANDS VEHICLE HIRE,Transport & Travel,Motor Vehicles,10,2,12,15-Jun-11,COMMUNITIES
Nottinghamshire County Council,03-04136,EAST MIDLANDS VEHICLE HIRE,Transport & Travel,Motor Vehicles,434,86.8,520.8,15-Jun-11,COMMUNITIES
Nottinghamshire County Council,03-04919,CANDOR SERVICES LIMITED,Soft Facilities Management,Cleaning Equipment & Janitorial Supplies,28.8,0,28.8,20-Jun-11,COMMUNITIES
Nottinghamshire County Council,03-04919,CANDOR SERVICES LIMITED,Soft Facilities Management,Cleaning Equipment & Janitorial Supplies,26.25,0,26.25,20-Jun-11,COMMUNITIES
Nottinghamshire County Council,03-04919,CANDOR SERVICES LIMITED,Soft Facilities Management,Cleaning Equipment & Janitorial Supplies,3.77,0,3.77,20-Jun-11,COMMUNITIES
Nottinghamshire County Council,03-04919,CANDOR SERVICES LIMITED,Soft Facilities Management,Cleaning Equipment & Janitorial Supplies,7.47,0,7.47,20-Jun-11,COMMUNITIES
Nottinghamshire County Council,03-04919,CANDOR SERVICES LIMITED,Soft Facilities Management,Cleaning Equipment & Janitorial Supplies,3.16,0,3.16,20-Jun-11,COMMUNITIES
Nottinghamshire County Council,03-04919,CANDOR SERVICES LIMITED,Soft Facilities Management,Cleaning Equipment & Janitorial Supplies,57.6,0,57.6,20-Jun-11,COMMUNITIES
Nottinghamshire County Council,03-04919,CANDOR SERVICES LIMITED,Soft Facilities Management,Cleaning Equipment & Janitorial Supplies,31.25,0,31.25,20-Jun-11,COMMUNITIES
Nottinghamshire County Council,03-04919,CANDOR SERVICES LIMITED,Soft Facilities Management,Cleaning Equipment & Janitorial Supplies,3.19,0,3.19,20-Jun-11,COMMUNITIES
Nottinghamshire County Council,03-04919,CANDOR SERVICES LIMITED,Soft Facilities Management,Cleaning Equipment & Janitorial Supplies,67.2,0,67.2,20-Jun-11,COMMUNITIES
Nottinghamshire County Council,03-04919,CANDOR SERVICES LIMITED,Soft Facilities Management,Cleaning Equipment & Janitorial Supplies,0.92,0,0.92,20-Jun-11,COMMUNITIES
Nottinghamshire County Council,03-04919,CANDOR SERVICES LIMITED,Soft Facilities Management,Cleaning Equipment & Janitorial Supplies,3.1,0,3.1,20-Jun-11,COMMUNITIES
Nottinghamshire County Council,03-04919,CANDOR SERVICES LIMITED,Soft Facilities Management,Cleaning Equipment & Janitorial Supplies,2.5,0,2.5,20-Jun-11,COMMUNITIES
Nottinghamshire County Council,03-04919,CANDOR SERVICES LIMITED,Soft Facilities Management,Cleaning Equipment & Janitorial Supplies,55.13,0,55.13,20-Jun-11,COMMUNITIES
Nottinghamshire County Council,03-04919,CANDOR SERVICES LIMITED,Soft Facilities Management,Cleaning Equipment & Janitorial Supplies,20.95,0,20.95,20-Jun-11,COMMUNITIES
Nottinghamshire County Council,03-04919,CANDOR SERVICES LIMITED,Soft Facilities Management,Cleaning Equipment & Janitorial Supplies,2.59,0,2.59,20-Jun-11,COMMUNITIES
Nottinghamshire County Council,03-04919,CANDOR SERVICES LIMITED,Soft Facilities Management,Cleaning Equipment & Janitorial Supplies,3.1,0,3.1,20-Jun-11,COMMUNITIES
Nottinghamshire County Council,03-04919,CANDOR SERVICES LIMITED,Soft Facilities Management,Cleaning Equipment & Janitorial Supplies,1.77,0,1.77,20-Jun-11,COMMUNITIES
Nottinghamshire County Council,03-04919,CANDOR SERVICES LIMITED,Soft Facilities Management,Cleaning Equipment & Janitorial Supplies,1.25,0,1.25,20-Jun-11,COMMUNITIES
Nottinghamshire County Council,03-04919,CANDOR SERVICES LIMITED,Soft Facilities Management,Cleaning Equipment & Janitorial Supplies,0.79,0,0.79,20-Jun-11,COMMUNITIES
Nottinghamshire County Council,03-04919,CANDOR SERVICES LIMITED,Soft Facilities Management,Cleaning Equipment & Janitorial Supplies,1,0,1,20-Jun-11,COMMUNITIES
Nottinghamshire County Council,03-04919,CANDOR SERVICES LIMITED,Soft Facilities Management,Cleaning Equipment & Janitorial Supplies,1.19,0,1.19,20-Jun-11,COMMUNITIES
Nottinghamshire County Council,03-04919,CANDOR SERVICES LIMITED,Soft Facilities Management,Cleaning Equipment & Janitorial Supplies,3.1,0,3.1,20-Jun-11,COMMUNITIES
Nottinghamshire County Council,03-04919,CANDOR SERVICES LIMITED,Soft Facilities Management,Cleaning Equipment & Janitorial Supplies,36.7,0,36.7,20-Jun-11,COMMUNITIES
Nottinghamshire County Council,03-04919,CANDOR SERVICES LIMITED,Soft Facilities Management,Cleaning Equipment & Janitorial Supplies,11.5,0,11.5,20-Jun-11,COMMUNITIES
Nottinghamshire County Council,03-04919,CANDOR SERVICES LIMITED,Soft Facilities Management,Cleaning Equipment & Janitorial Supplies,23.07,0,23.07,20-Jun-11,COMMUNITIES
Nottinghamshire County Council,03-04919,CANDOR SERVICES LIMITED,Soft Facilities Management,Cleaning Equipment & Janitorial Supplies,63.88,0,63.88,20-Jun-11,COMMUNITIES
Nottinghamshire County Council,03-04919,CANDOR SERVICES LIMITED,Soft Facilities Management,Cleaning Equipment & Janitorial Supplies,15.92,0,15.92,20-Jun-11,COMMUNITIES
Nottinghamshire County Council,03-04919,CANDOR SERVICES LIMITED,Soft Facilities Management,Cleaning Equipment & Janitorial Supplies,0.79,0,0.79,20-Jun-11,COMMUNITIES
Nottinghamshire County Council,03-04919,CANDOR SERVICES LIMITED,Soft Facilities Management,Cleaning Equipment & Janitorial Supplies,1.25,0,1.25,20-Jun-11,COMMUNITIES
Nottinghamshire County Council,03-04919,CANDOR SERVICES LIMITED,Soft Facilities Management,Cleaning Equipment & Janitorial Supplies,60,0,60,20-Jun-11,COMMUNITIES
Nottinghamshire County Council,03-04919,CANDOR SERVICES LIMITED,Soft Facilities Management,Cleaning Equipment & Janitorial Supplies,40,0,40,20-Jun-11,COMMUNITIES
Nottinghamshire County Council,03-04919,CANDOR SERVICES LIMITED,Soft Facilities Management,Cleaning Equipment & Janitorial Supplies,7.47,0,7.47,20-Jun-11,COMMUNITIES
Nottinghamshire County Council,03-04919,CANDOR SERVICES LIMITED,Soft Facilities Management,Cleaning Equipment & Janitorial Supplies,42.5,0,42.5,20-Jun-11,COMMUNITIES
Nottinghamshire County Council,03-04919,CANDOR SERVICES LIMITED,Soft Facilities Management,Cleaning Equipment & Janitorial Supplies,4.06,0,4.06,20-Jun-11,COMMUNITIES
Nottinghamshire County Council,03-04919,CANDOR SERVICES LIMITED,Soft Facilities Management,Cleaning Equipment & Janitorial Supplies,7.2,0,7.2,20-Jun-11,COMMUNITIES
Nottinghamshire County Council,03-08382,ROYAL MAIL GROUP PLC,Soft Facilities Management,Mail & Couriers,"1,036.28",0,"1,036.28",22-Jun-11,COMMUNITIES
Nottinghamshire County Council,03-08562,ENTERPRISE RENT-A-CAR LIMITED,Transport & Travel,Motor Vehicles,10,2,12,23-Jun-11,COMMUNITIES
Nottinghamshire County Council,03-08562,ENTERPRISE RENT-A-CAR LIMITED,Transport & Travel,Motor Vehicles,482.16,96.43,578.59,23-Jun-11,COMMUNITIES
Nottinghamshire County Council,03-08640,GLASDON UK LIMITED,Soft Facilities Management,Cleaning Equipment & Janitorial Supplies,"1,260.00",0,"1,260.00",24-Jun-11,COMMUNITIES
Nottinghamshire County Council,03-08640,GLASDON UK LIMITED,Soft Facilities Management,Cleaning Equipment & Janitorial Supplies,"1,260.00",0,"1,260.00",24-Jun-11,COMMUNITIES
Nottinghamshire County Council,03-02820,BIFFA WASTE SERVICES LIMITED,Soft Facilities Management,Environmental Services,441.14,88.23,529.37,10-Jun-11,COMMUNITIES
Nottinghamshire County Council,03-08871,ART CLEANING (MIDLANDS) LIMITED,Soft Facilities Management,Industrial Cleaning Services,"1,324.00",0,"1,324.00",27-Jun-11,COMMUNITIES
Nottinghamshire County Council,03-02818,BIFFA WASTE SERVICES LIMITED,Soft Facilities Management,Environmental Services,938.52,187.7,"1,126.22",10-Jun-11,COMMUNITIES
Nottinghamshire County Council,03-02819,BIFFA WASTE SERVICES LIMITED,Soft Facilities Management,Environmental Services,441.14,88.23,529.37,10-Jun-11,COMMUNITIES
Nottinghamshire County Council,03-02911,BIFFA WASTE SERVICES LIMITED,Soft Facilities Management,Environmental Services,"2,395.04",479.01,"2,874.05",10-Jun-11,COMMUNITIES
Nottinghamshire County Council,03-02912,BIFFA WASTE SERVICES LIMITED,Soft Facilities Management,Environmental Services,434.9,86.98,521.88,10-Jun-11,COMMUNITIES
Nottinghamshire County Council,03-02816,BIFFA WASTE SERVICES LIMITED,Soft Facilities Management,Environmental Services,441.14,88.23,529.37,10-Jun-11,COMMUNITIES
Nottinghamshire County Council,03-02817,BIFFA WASTE SERVICES LIMITED,Soft Facilities Management,Environmental Services,938.52,187.7,"1,126.22",10-Jun-11,COMMUNITIES
Nottinghamshire County Council,03-02823,BIFFA WASTE SERVICES LIMITED,Soft Facilities Management,Environmental Services,"1,116.10",223.22,"1,339.32",10-Jun-11,COMMUNITIES
Nottinghamshire County Council,03-04663,PHS GROUP PLC,Soft Facilities Management,Cleaning Equipment & Janitorial Supplies,156.78,31.36,188.14,17-Jun-11,COMMUNITIES
Nottinghamshire County Council,03-04663,PHS GROUP PLC,Soft Facilities Management,Cleaning Equipment & Janitorial Supplies,783.89,156.78,940.67,17-Jun-11,COMMUNITIES
Nottinghamshire County Council,03-02901,BIFFA WASTE SERVICES LIMITED,Soft Facilities Management,Environmental Services,"2,152.20",430.44,"2,582.64",10-Jun-11,COMMUNITIES
Nottinghamshire County Council,03-02913,BIFFA WASTE SERVICES LIMITED,Soft Facilities Management,Environmental Services,434.9,86.98,521.88,10-Jun-11,COMMUNITIES
Nottinghamshire County Council,03-02822,BIFFA WASTE SERVICES LIMITED,Soft Facilities Management,Environmental Services,"2,152.20",430.44,"2,582.64",10-Jun-11,COMMUNITIES
Nottinghamshire County Council,03-02914,BIFFA WASTE SERVICES LIMITED,Soft Facilities Management,Environmental Services,434.9,86.98,521.88,10-Jun-11,COMMUNITIES
Nottinghamshire County Council,03-04097,PREMIERE POLISH COMPANY LIMITED,Soft Facilities Management,Cleaning Equipment & Janitorial Supplies,786,0,786,15-Jun-11,COMMUNITIES
Nottinghamshire County Council,03-02806,BARKER ROSS LIMITED,People,Recruitment,417.06,83.41,500.47,10-Jun-11,COMMUNITIES
Nottinghamshire County Council,03-03193,BARKER ROSS LIMITED,People,Recruitment,417.06,83.41,500.47,10-Jun-11,COMMUNITIES
Nottinghamshire County Council,03-03579,STAFFLINE RECRUITMENT LIMITED,People,Recruitment,67.92,13.58,81.5,17-Jun-11,COMMUNITIES
Nottinghamshire County Council,03-03579,STAFFLINE RECRUITMENT LIMITED,People,Recruitment,148.58,29.72,178.3,17-Jun-11,COMMUNITIES
Nottinghamshire County Council,03-03580,STAFFLINE RECRUITMENT LIMITED,People,Recruitment,67.92,13.58,81.5,17-Jun-11,COMMUNITIES
Nottinghamshire County Council,03-03580,STAFFLINE RECRUITMENT LIMITED,People,Recruitment,67.92,13.58,81.5,17-Jun-11,COMMUNITIES
Nottinghamshire County Council,03-03581,STAFFLINE RECRUITMENT LIMITED,People,Recruitment,84.9,16.98,101.88,17-Jun-11,COMMUNITIES
Nottinghamshire County Council,03-03581,STAFFLINE RECRUITMENT LIMITED,People,Recruitment,169.8,33.96,203.76,17-Jun-11,COMMUNITIES
Nottinghamshire County Council,03-00122,OCS GROUP UK LIMITED,Soft Facilities Management,Cleaning Equipment & Janitorial Supplies,491.4,98.28,589.68,10-Jun-11,COMMUNITIES
Nottinghamshire County Council,03-02731,CANDOR SERVICES LIMITED,Soft Facilities Management,Cleaning Equipment & Janitorial Supplies,"1,100.00",0,"1,100.00",09-Jun-11,COMMUNITIES
Nottinghamshire County Council,03-08330,SL CLOTHING LIMITED,Soft Facilities Management,Clothing,101,0,101,22-Jun-11,COMMUNITIES
Nottinghamshire County Council,03-08330,SL CLOTHING LIMITED,Soft Facilities Management,Clothing,101,0,101,22-Jun-11,COMMUNITIES
Nottinghamshire County Council,03-08330,SL CLOTHING LIMITED,Soft Facilities Management,Clothing,101,0,101,22-Jun-11,COMMUNITIES
Nottinghamshire County Council,03-08330,SL CLOTHING LIMITED,Soft Facilities Management,Clothing,101,0,101,22-Jun-11,COMMUNITIES
Nottinghamshire County Council,03-08330,SL CLOTHING LIMITED,Soft Facilities Management,Clothing,127.4,0,127.4,22-Jun-11,COMMUNITIES
Nottinghamshire County Council,03-08330,SL CLOTHING LIMITED,Soft Facilities Management,Clothing,127.4,0,127.4,22-Jun-11,COMMUNITIES
Nottinghamshire County Council,03-08330,SL CLOTHING LIMITED,Soft Facilities Management,Clothing,38.22,0,38.22,22-Jun-11,COMMUNITIES
Nottinghamshire County Council,03-02121,WHITE YOUNG GREEN CONSULTING LIM,Professional Services,Consultancy,"1,622.00",324.4,"1,946.40",06-Jun-11,RESOURCES
Nottinghamshire County Council,03-02558,CBP ARCHITECTS LIMITED,Professional Services,Professional Engineering Services,"1,787.00",357.4,"2,144.40",08-Jun-11,RESOURCES
Nottinghamshire County Council,03-02559,CBP ARCHITECTS LIMITED,Professional Services,Professional Engineering Services,"1,937.00",387.4,"2,324.40",08-Jun-11,RESOURCES
Nottinghamshire County Council,03-02560,CBP ARCHITECTS LIMITED,Professional Services,Professional Engineering Services,"1,807.00",361.4,"2,168.40",08-Jun-11,RESOURCES
Nottinghamshire County Council,03-02561,CBP ARCHITECTS LIMITED,Professional Services,Professional Engineering Services,"1,529.58",305.92,"1,835.50",08-Jun-11,RESOURCES
Nottinghamshire County Council,03-02579,FAITHFULL AND GOULD,Professional Services,Consultancy,"3,451.50",690.3,"4,141.80",08-Jun-11,RESOURCES
Nottinghamshire County Council,03-02580,APPLEYARD AND TREW,Professional Services,Professional Engineering Services,"7,945.65","1,589.13","9,534.78",08-Jun-11,RESOURCES
Nottinghamshire County Council,03-04190,EDMOND SHIPWAY,Professional Services,Consultancy,"7,000.00","1,400.00","8,400.00",21-Jun-11,RESOURCES
Nottinghamshire County Council,03-04192,FAITHFULL AND GOULD,Professional Services,Consultancy,870.03,174.01,"1,044.04",15-Jun-11,RESOURCES
Nottinghamshire County Council,03-04193,JACOBS ENGINEERING UK LIMITED,Professional Services,Professional Engineering Services,"4,534.80",906.96,"5,441.76",15-Jun-11,RESOURCES
Nottinghamshire County Council,03-04194,JACOBS ENGINEERING UK LIMITED,Professional Services,Professional Engineering Services,"11,841.76","2,368.35","14,210.11",15-Jun-11,RESOURCES
Nottinghamshire County Council,03-04219,GLEEDS MANAGEMENT SERVICES LIMITED,Professional Services,Property Management,"5,058.47","1,011.69","6,070.16",15-Jun-11,RESOURCES
Nottinghamshire County Council,03-04311,TMH (WEST HALLAM) LIMITED,People,Agency Staff - Manual,"1,823.27",0,"1,823.27",16-Jun-11,RESOURCES
Nottinghamshire County Council,03-04332,TMH (WEST HALLAM) LIMITED,People,Agency Staff - Manual,996.04,0,996.04,16-Jun-11,RESOURCES
Nottinghamshire County Council,03-04332,TMH (WEST HALLAM) LIMITED,People,Agency Staff - Manual,35.6,0,35.6,16-Jun-11,RESOURCES
Nottinghamshire County Council,03-04341,TMH (WEST HALLAM) LIMITED,People,Agency Staff - Manual,"1,593.66",278.89,"1,872.55",16-Jun-11,RESOURCES
Nottinghamshire County Council,03-04395,CBP ARCHITECTS LIMITED,Professional Services,Professional Engineering Services,"2,002.00",400.4,"2,402.40",16-Jun-11,RESOURCES
Nottinghamshire County Council,03-04396,CBP ARCHITECTS LIMITED,Professional Services,Professional Engineering Services,"1,995.50",399.1,"2,394.60",16-Jun-11,RESOURCES
Nottinghamshire County Council,03-04397,CBP ARCHITECTS LIMITED,Professional Services,Professional Engineering Services,"2,002.00",400.4,"2,402.40",16-Jun-11,RESOURCES
Nottinghamshire County Council,03-04934,CBP ARCHITECTS LIMITED,Professional Services,Professional Engineering Services,522,104.4,626.4,20-Jun-11,RESOURCES
Nottinghamshire County Council,03-04935,CBP ARCHITECTS LIMITED,Professional Services,Professional Engineering Services,"1,618.50",323.7,"1,942.20",20-Jun-11,RESOURCES
Nottinghamshire County Council,03-04937,KING STURGE LLP,Professional Services,Legal Services,"5,045.33","1,009.07","6,054.40",20-Jun-11,RESOURCES
Nottinghamshire County Council,03-05060,EDC (NOTTINGHAM) LIMITED,People,Recruitment,572,0,572,21-Jun-11,RESOURCES
Nottinghamshire County Council,03-05060,EDC (NOTTINGHAM) LIMITED,People,Recruitment,962,0,962,21-Jun-11,RESOURCES
Nottinghamshire County Council,03-05060,EDC (NOTTINGHAM) LIMITED,People,Recruitment,962,0,962,21-Jun-11,RESOURCES
Nottinghamshire County Council,03-05060,EDC (NOTTINGHAM) LIMITED,People,Recruitment,962,0,962,21-Jun-11,RESOURCES
Nottinghamshire County Council,03-05060,EDC (NOTTINGHAM) LIMITED,People,Recruitment,296.4,0,296.4,21-Jun-11,RESOURCES
Nottinghamshire County Council,03-08621,VINCENT AND GORBING,Professional Services,Professional Engineering Services,"1,924.41",384.88,"2,309.29",23-Jun-11,RESOURCES
Nottinghamshire County Council,03-08622,VINCENT AND GORBING,Professional Services,Professional Engineering Services,"3,567.52",713.5,"4,281.02",23-Jun-11,RESOURCES
Nottinghamshire County Council,03-08645,VINCENT AND GORBING,Professional Services,Professional Engineering Services,"2,219.76",443.95,"2,663.71",24-Jun-11,RESOURCES
Nottinghamshire County Council,03-08652,VINCENT AND GORBING,Professional Services,Professional Engineering Services,"1,919.96",383.99,"2,303.95",24-Jun-11,RESOURCES
Nottinghamshire County Council,03-02483,GATENBY SANDERSON,Persons Name,Person Name,"2,067.00",0,"2,067.00",08-Jun-11,COMMUNITIES
Nottinghamshire County Council,03-02483,GATENBY SANDERSON,Persons Name,Person Name,516.65,0,516.65,08-Jun-11,COMMUNITIES
Nottinghamshire County Council,03-01972,KONICA MINOLTA,ICT,"Printing & Publishing, Equipment & Supplies",945.42,0,945.42,06-Jun-11,COMMUNITIES
Nottinghamshire County Council,03-01973,KONICA MINOLTA,ICT,"Printing & Publishing, Equipment & Supplies","1,715.85",0,"1,715.85",06-Jun-11,COMMUNITIES
Nottinghamshire County Council,03-00078,BARKER ROSS LIMITED,People,Recruitment,63.35,12.67,76.02,02-Jun-11,COMMUNITIES
Nottinghamshire County Council,03-00078,BARKER ROSS LIMITED,People,Recruitment,"1,102.00",220.4,"1,322.40",02-Jun-11,COMMUNITIES
Nottinghamshire County Council,03-00103,BARKER ROSS LIMITED,People,Recruitment,53,10.6,63.6,03-Jun-11,COMMUNITIES
Nottinghamshire County Council,03-00103,BARKER ROSS LIMITED,People,Recruitment,860.43,172.09,"1,032.52",03-Jun-11,COMMUNITIES
Nottinghamshire County Council,03-00248,BARKER ROSS LIMITED,People,Recruitment,1,0.2,1.2,02-Jun-11,COMMUNITIES
Nottinghamshire County Council,03-00248,BARKER ROSS LIMITED,People,Recruitment,848.25,169.65,"1,017.90",02-Jun-11,COMMUNITIES
Nottinghamshire County Council,03-00735,BARKER ROSS LIMITED,People,Recruitment,35.1,7.02,42.12,16-Jun-11,COMMUNITIES
Nottinghamshire County Council,03-00735,BARKER ROSS LIMITED,People,Recruitment,"1,247.00",249.4,"1,496.40",16-Jun-11,COMMUNITIES
Nottinghamshire County Council,03-01523,BARKER ROSS LIMITED,People,Recruitment,104.76,20.95,125.71,13-Jun-11,COMMUNITIES
Nottinghamshire County Council,03-01523,BARKER ROSS LIMITED,People,Recruitment,"1,261.50",252.3,"1,513.80",13-Jun-11,COMMUNITIES
Nottinghamshire County Council,03-02544,BARKER ROSS LIMITED,People,Recruitment,51.3,10.26,61.56,10-Jun-11,COMMUNITIES
Nottinghamshire County Council,03-04226,BARKER ROSS LIMITED,People,Recruitment,35.1,7.02,42.12,23-Jun-11,COMMUNITIES
Nottinghamshire County Council,03-04226,BARKER ROSS LIMITED,People,Recruitment,986,197.2,"1,183.20",23-Jun-11,COMMUNITIES
Nottinghamshire County Council,03-00055,RAI TECHNICAL LIMITED,Hard Facilities Management ,Tools & General Machinery,106.38,21.28,127.66,03-Jun-11,COMMUNITIES
Nottinghamshire County Council,03-00055,RAI TECHNICAL LIMITED,Hard Facilities Management ,Tools & General Machinery,"1,126.25",225.25,"1,351.50",03-Jun-11,COMMUNITIES
Nottinghamshire County Council,03-00056,RAI TECHNICAL LIMITED,Hard Facilities Management ,Tools & General Machinery,109.62,21.92,131.54,03-Jun-11,COMMUNITIES
Nottinghamshire County Council,03-00056,RAI TECHNICAL LIMITED,Hard Facilities Management ,Tools & General Machinery,"1,126.25",225.25,"1,351.50",03-Jun-11,COMMUNITIES
Nottinghamshire County Council,03-00086,RAI TECHNICAL LIMITED,Hard Facilities Management ,Tools & General Machinery,18.36,3.67,22.03,03-Jun-11,COMMUNITIES
Nottinghamshire County Council,03-00086,RAI TECHNICAL LIMITED,Hard Facilities Management ,Tools & General Machinery,901,180.2,"1,081.20",03-Jun-11,COMMUNITIES
Nottinghamshire County Council,03-00087,RAI TECHNICAL LIMITED,Hard Facilities Management ,Tools & General Machinery,18.9,3.78,22.68,03-Jun-11,COMMUNITIES
Nottinghamshire County Council,03-00087,RAI TECHNICAL LIMITED,Hard Facilities Management ,Tools & General Machinery,450.5,90.1,540.6,03-Jun-11,COMMUNITIES
Nottinghamshire County Council,03-00104,BARKER ROSS LIMITED,People,Recruitment,39.15,7.83,46.98,03-Jun-11,COMMUNITIES
Nottinghamshire County Council,03-00104,BARKER ROSS LIMITED,People,Recruitment,575,115,690,03-Jun-11,COMMUNITIES
Nottinghamshire County Council,03-00189,RAI TECHNICAL LIMITED,Hard Facilities Management ,Tools & General Machinery,82.62,16.52,99.14,03-Jun-11,COMMUNITIES
Nottinghamshire County Council,03-00189,RAI TECHNICAL LIMITED,Hard Facilities Management ,Tools & General Machinery,455.63,91.13,546.76,03-Jun-11,COMMUNITIES
Nottinghamshire County Council,03-00190,RAI TECHNICAL LIMITED,Hard Facilities Management ,Tools & General Machinery,113.94,22.79,136.73,03-Jun-11,COMMUNITIES
Nottinghamshire County Council,03-00190,RAI TECHNICAL LIMITED,Hard Facilities Management ,Tools & General Machinery,455.63,91.13,546.76,03-Jun-11,COMMUNITIES
Nottinghamshire County Council,03-00566,RAI TECHNICAL LIMITED,Hard Facilities Management ,Tools & General Machinery,36.72,7.34,44.06,03-Jun-11,COMMUNITIES
Nottinghamshire County Council,03-00566,RAI TECHNICAL LIMITED,Hard Facilities Management ,Tools & General Machinery,901,180.2,"1,081.20",03-Jun-11,COMMUNITIES
Nottinghamshire County Council,03-00567,RAI TECHNICAL LIMITED,Hard Facilities Management ,Tools & General Machinery,19.87,3.97,23.84,03-Jun-11,COMMUNITIES
Nottinghamshire County Council,03-00567,RAI TECHNICAL LIMITED,Hard Facilities Management ,Tools & General Machinery,93.96,18.79,112.75,03-Jun-11,COMMUNITIES
Nottinghamshire County Council,03-00567,RAI TECHNICAL LIMITED,Hard Facilities Management ,Tools & General Machinery,477,95.4,572.4,03-Jun-11,COMMUNITIES
Nottinghamshire County Council,03-00567,RAI TECHNICAL LIMITED,Hard Facilities Management ,Tools & General Machinery,629.38,125.88,755.26,03-Jun-11,COMMUNITIES
Nottinghamshire County Council,03-00734,BARKER ROSS LIMITED,People,Recruitment,118.35,23.67,142.02,03-Jun-11,COMMUNITIES
Nottinghamshire County Council,03-00734,BARKER ROSS LIMITED,People,Recruitment,"1,325.00",265,"1,590.00",03-Jun-11,COMMUNITIES
Nottinghamshire County Council,03-00818,RAI TECHNICAL LIMITED,Hard Facilities Management ,Tools & General Machinery,68.04,13.61,81.65,03-Jun-11,COMMUNITIES
Nottinghamshire County Council,03-00818,RAI TECHNICAL LIMITED,Hard Facilities Management ,Tools & General Machinery,455.63,91.13,546.76,03-Jun-11,COMMUNITIES
Nottinghamshire County Council,03-00819,RAI TECHNICAL LIMITED,Hard Facilities Management ,Tools & General Machinery,89.64,17.93,107.57,03-Jun-11,COMMUNITIES
Nottinghamshire County Council,03-00819,RAI TECHNICAL LIMITED,Hard Facilities Management ,Tools & General Machinery,455.63,91.13,546.76,03-Jun-11,COMMUNITIES
Nottinghamshire County Council,03-01994,RAI TECHNICAL LIMITED,Hard Facilities Management ,Tools & General Machinery,92.88,18.58,111.46,14-Jun-11,COMMUNITIES
Nottinghamshire County Council,03-01994,RAI TECHNICAL LIMITED,Hard Facilities Management ,Tools & General Machinery,445.5,89.1,534.6,14-Jun-11,COMMUNITIES
Nottinghamshire County Council,03-01995,RAI TECHNICAL LIMITED,Hard Facilities Management ,Tools & General Machinery,66.42,13.28,79.7,14-Jun-11,COMMUNITIES
Nottinghamshire County Council,03-01995,RAI TECHNICAL LIMITED,Hard Facilities Management ,Tools & General Machinery,"1,126.25",225.25,"1,351.50",14-Jun-11,COMMUNITIES
Nottinghamshire County Council,03-01996,RAI TECHNICAL LIMITED,Hard Facilities Management ,Tools & General Machinery,151.2,30.24,181.44,14-Jun-11,COMMUNITIES
Nottinghamshire County Council,03-01996,RAI TECHNICAL LIMITED,Hard Facilities Management ,Tools & General Machinery,"1,126.25",225.25,"1,351.50",14-Jun-11,COMMUNITIES
Nottinghamshire County Council,03-02545,BARKER ROSS LIMITED,People,Recruitment,997.9,199.58,"1,197.48",10-Jun-11,COMMUNITIES
Nottinghamshire County Council,03-02546,BARKER ROSS LIMITED,People,Recruitment,"1,081.45",216.29,"1,297.74",13-Jun-11,COMMUNITIES
Nottinghamshire County Council,03-03752,RAI TECHNICAL LIMITED,Hard Facilities Management ,Tools & General Machinery,59.94,11.99,71.93,29-Jun-11,COMMUNITIES
Nottinghamshire County Council,03-03752,RAI TECHNICAL LIMITED,Hard Facilities Management ,Tools & General Machinery,455.63,91.13,546.76,29-Jun-11,COMMUNITIES
Nottinghamshire County Council,03-04225,BARKER ROSS LIMITED,People,Recruitment,863.9,172.78,"1,036.68",27-Jun-11,COMMUNITIES
Nottinghamshire County Council,03-04768,RAI TECHNICAL LIMITED,Hard Facilities Management ,Tools & General Machinery,46.98,9.4,56.38,24-Jun-11,COMMUNITIES
Nottinghamshire County Council,03-04768,RAI TECHNICAL LIMITED,Hard Facilities Management ,Tools & General Machinery,901,180.2,"1,081.20",24-Jun-11,COMMUNITIES
Nottinghamshire County Council,03-04769,RAI TECHNICAL LIMITED,Hard Facilities Management ,Tools & General Machinery,95.04,19.01,114.05,24-Jun-11,COMMUNITIES
Nottinghamshire County Council,03-04769,RAI TECHNICAL LIMITED,Hard Facilities Management ,Tools & General Machinery,"1,126.25",225.25,"1,351.50",24-Jun-11,COMMUNITIES
Nottinghamshire County Council,03-08596,BARKER ROSS LIMITED,People,Recruitment,"1,387.45",277.49,"1,664.94",27-Jun-11,COMMUNITIES
Nottinghamshire County Council,03-08697,BARKER ROSS LIMITED,People,Recruitment,"1,258.00",251.6,"1,509.60",27-Jun-11,COMMUNITIES
Nottinghamshire County Council,03-00015,AGGREGATE INDUSTRIES UK,External Services (Highways & Culture),Earth & Stone Aggregates ,140.04,28.01,168.05,13-Jun-11,COMMUNITIES
Nottinghamshire County Council,03-00015,AGGREGATE INDUSTRIES UK,External Services (Highways & Culture),Earth & Stone Aggregates ,140.04,28.01,168.05,13-Jun-11,COMMUNITIES
Nottinghamshire County Council,03-00015,AGGREGATE INDUSTRIES UK,External Services (Highways & Culture),Earth & Stone Aggregates ,218,43.6,261.6,13-Jun-11,COMMUNITIES
Nottinghamshire County Council,03-00015,AGGREGATE INDUSTRIES UK,External Services (Highways & Culture),Earth & Stone Aggregates ,247.32,49.46,296.78,13-Jun-11,COMMUNITIES
Nottinghamshire County Council,03-00015,AGGREGATE INDUSTRIES UK,External Services (Highways & Culture),Earth & Stone Aggregates ,493.68,98.74,592.42,13-Jun-11,COMMUNITIES
Nottinghamshire County Council,03-00015,AGGREGATE INDUSTRIES UK,External Services (Highways & Culture),Earth & Stone Aggregates ,44.88,8.98,53.86,13-Jun-11,COMMUNITIES
Nottinghamshire County Council,03-00035,W T BURDEN LIMITED,Hard Facilities Management ,Building & Construction Supplies,537.77,107.55,645.32,01-Jun-11,COMMUNITIES
Nottinghamshire County Council,03-00042,COLAS LIMITED,Professional Services,Professional Engineering Services,534.96,106.99,641.95,03-Jun-11,COMMUNITIES
Nottinghamshire County Council,03-00060,INSTARMAC LIMITED,External Services (Highways & Culture),Highways & Works,814.8,162.96,977.76,02-Jun-11,COMMUNITIES
Nottinghamshire County Council,03-00060,INSTARMAC LIMITED,External Services (Highways & Culture),Highways & Works,40.32,8.06,48.38,02-Jun-11,COMMUNITIES
Nottinghamshire County Council,03-00085,AYTON ASPHALT,External Services (Highways & Culture),Highways & Works,800,160,960,02-Jun-11,COMMUNITIES
Nottinghamshire County Council,03-00085,AYTON ASPHALT,External Services (Highways & Culture),Highways & Works,23.04,4.61,27.65,02-Jun-11,COMMUNITIES
Nottinghamshire County Council,03-00187,ADBRUF LIMITED,External Services (Highways & Culture),Highways & Works,"1,140.00",228,"1,368.00",02-Jun-11,COMMUNITIES
Nottinghamshire County Council,03-00187,ADBRUF LIMITED,External Services (Highways & Culture),Highways & Works,"4,680.00",936,"5,616.00",02-Jun-11,COMMUNITIES
Nottinghamshire County Council,03-00187,ADBRUF LIMITED,External Services (Highways & Culture),Highways & Works,9.12,1.82,10.94,02-Jun-11,COMMUNITIES
Nottinghamshire County Council,03-00187,ADBRUF LIMITED,External Services (Highways & Culture),Highways & Works,70.2,14.04,84.24,02-Jun-11,COMMUNITIES
Nottinghamshire County Council,03-00188,BRITISH OXYGEN COMPANY LIMITED,External Services (Highways & Culture),Chemicals & Gases,130.65,26.13,156.78,06-Jun-11,COMMUNITIES
Nottinghamshire County Council,03-00188,BRITISH OXYGEN COMPANY LIMITED,External Services (Highways & Culture),Chemicals & Gases,252,50.4,302.4,06-Jun-11,COMMUNITIES
Nottinghamshire County Council,03-00188,BRITISH OXYGEN COMPANY LIMITED,External Services (Highways & Culture),Chemicals & Gases,252,50.4,302.4,06-Jun-11,COMMUNITIES
Nottinghamshire County Council,03-00337,MARWOOD ELECTRICAL CO LIMITED,Hard Facilities Management ,Electrical Systems & Lighting,"4,072.80",814.56,"4,887.36",07-Jun-11,COMMUNITIES
Nottinghamshire County Council,03-00337,MARWOOD ELECTRICAL CO LIMITED,Hard Facilities Management ,Electrical Systems & Lighting,24,4.8,28.8,07-Jun-11,COMMUNITIES
Nottinghamshire County Council,03-00338,SIMMONSIGN LIMITED,Soft Facilities Management,Printed Media & Signage,"3,005.60",601.12,"3,606.72",06-Jun-11,COMMUNITIES
Nottinghamshire County Council,03-00564,W T BURDEN LIMITED,Hard Facilities Management ,Building & Construction Supplies,"1,501.25",300.25,"1,801.50",03-Jun-11,COMMUNITIES
Nottinghamshire County Council,03-00565,W T BURDEN LIMITED,Hard Facilities Management ,Building & Construction Supplies,716.8,143.36,860.16,27-Jun-11,COMMUNITIES
Nottinghamshire County Council,03-00565,W T BURDEN LIMITED,Hard Facilities Management ,Building & Construction Supplies,33.82,6.76,40.58,27-Jun-11,COMMUNITIES
Nottinghamshire County Council,03-00736,CHARLES ENDIRECT LIMITED,Hard Facilities Management ,Electrical Systems & Lighting,608,121.6,729.6,27-Jun-11,COMMUNITIES
Nottinghamshire County Council,03-00736,CHARLES ENDIRECT LIMITED,Hard Facilities Management ,Electrical Systems & Lighting,29.5,5.9,35.4,27-Jun-11,COMMUNITIES
Nottinghamshire County Council,03-00737,KEYLINE BUILDERS MERCHANTS,Hard Facilities Management ,Building Construction Services,"1,283.40",256.68,"1,540.08",06-Jun-11,COMMUNITIES
Nottinghamshire County Council,03-00737,KEYLINE BUILDERS MERCHANTS,Hard Facilities Management ,Building Construction Services,"1,916.34",383.27,"2,299.61",06-Jun-11,COMMUNITIES
Nottinghamshire County Council,03-00816,W T BURDEN LIMITED,Hard Facilities Management ,Building & Construction Supplies,716.8,143.36,860.16,27-Jun-11,COMMUNITIES
Nottinghamshire County Council,03-00816,W T BURDEN LIMITED,Hard Facilities Management ,Building & Construction Supplies,33.82,6.76,40.58,27-Jun-11,COMMUNITIES
Nottinghamshire County Council,03-00820,SMITH BROS CAERCONAN WHOLESALE LIMITED,Hard Facilities Management ,Electronic Components & Supplies,"5,673.00","1,134.60","6,807.60",03-Jun-11,COMMUNITIES
Nottinghamshire County Council,03-00820,SMITH BROS CAERCONAN WHOLESALE LIMITED,Hard Facilities Management ,Electronic Components & Supplies,100,20,120,03-Jun-11,COMMUNITIES
Nottinghamshire County Council,03-00937,INSTARMAC LIMITED,External Services (Highways & Culture),Highways & Works,570.08,114.02,684.1,03-Jun-11,COMMUNITIES
Nottinghamshire County Council,03-00938,LUCY ELECTRIC UK LIMITED,Hard Facilities Management ,Electrical Systems & Lighting,637.5,127.5,765,03-Jun-11,COMMUNITIES
Nottinghamshire County Council,03-00939,THE POST AND COLUMN CO LIMITED,Hard Facilities Management ,Building & Construction Supplies,"2,505.90",501.18,"3,007.08",03-Jun-11,COMMUNITIES
Nottinghamshire County Council,03-00941,SIMMONSIGN LIMITED,Soft Facilities Management,Printed Media & Signage,751.4,150.28,901.68,16-Jun-11,COMMUNITIES
Nottinghamshire County Council,03-00941,SIMMONSIGN LIMITED,Soft Facilities Management,Printed Media & Signage,25.5,5.1,30.6,16-Jun-11,COMMUNITIES
Nottinghamshire County Council,03-01112,AGGREGATE INDUSTRIES UK,External Services (Highways & Culture),Earth & Stone Aggregates ,412.2,82.44,494.64,07-Jun-11,COMMUNITIES
Nottinghamshire County Council,03-01112,AGGREGATE INDUSTRIES UK,External Services (Highways & Culture),Earth & Stone Aggregates ,654,130.8,784.8,07-Jun-11,COMMUNITIES
Nottinghamshire County Council,03-01112,AGGREGATE INDUSTRIES UK,External Services (Highways & Culture),Earth & Stone Aggregates ,20,4,24,07-Jun-11,COMMUNITIES
Nottinghamshire County Council,03-01113,BEESWIFT,Soft Facilities Management,Clothing,239.5,47.9,287.4,06-Jun-11,COMMUNITIES
Nottinghamshire County Council,03-01113,BEESWIFT,Soft Facilities Management,Clothing,239.5,47.9,287.4,06-Jun-11,COMMUNITIES
Nottinghamshire County Council,03-01113,BEESWIFT,Soft Facilities Management,Clothing,239.5,47.9,287.4,06-Jun-11,COMMUNITIES
Nottinghamshire County Council,03-01114,W T BURDEN LIMITED,Hard Facilities Management ,Building & Construction Supplies,716.8,143.36,860.16,27-Jun-11,COMMUNITIES
Nottinghamshire County Council,03-01114,W T BURDEN LIMITED,Hard Facilities Management ,Building & Construction Supplies,100.8,20.16,120.96,27-Jun-11,COMMUNITIES
Nottinghamshire County Council,03-01116,INSTARMAC LIMITED,External Services (Highways & Culture),Highways & Works,"1,140.16",228.03,"1,368.19",06-Jun-11,COMMUNITIES
Nottinghamshire County Council,03-01118,URBIS LIGHTING LIMITED,Hard Facilities Management ,Electrical Systems & Lighting,"1,196.90",239.38,"1,436.28",28-Jun-11,COMMUNITIES
Nottinghamshire County Council,03-01118,URBIS LIGHTING LIMITED,Hard Facilities Management ,Electrical Systems & Lighting,20,4,24,28-Jun-11,COMMUNITIES
Nottinghamshire County Council,03-01521,AYTON ASPHALT,External Services (Highways & Culture),Highways & Works,"1,646.08",329.22,"1,975.30",06-Jun-11,COMMUNITIES
Nottinghamshire County Council,03-01522,AYTON ASPHALT,External Services (Highways & Culture),Highways & Works,"2,119.68",423.94,"2,543.62",07-Jun-11,COMMUNITIES
Nottinghamshire County Council,03-01524,LUCY ELECTRIC UK LIMITED,Hard Facilities Management ,Electrical Systems & Lighting,347.5,69.5,417,13-Jun-11,COMMUNITIES
Nottinghamshire County Council,03-01524,LUCY ELECTRIC UK LIMITED,Hard Facilities Management ,Electrical Systems & Lighting,637.5,127.5,765,13-Jun-11,COMMUNITIES
Nottinghamshire County Council,03-01783,EMO OIL LIMITED,Hard Facilities Management ,Utilities,"4,465.20",893.04,"5,358.24",03-Jun-11,COMMUNITIES
Nottinghamshire County Council,03-01989,ABACUS LIGHTING LIMITED,Hard Facilities Management ,Electrical Systems & Lighting,"4,649.25",929.85,"5,579.10",07-Jun-11,COMMUNITIES
Nottinghamshire County Council,03-01991,HIRST SIGNS LIMITED,Soft Facilities Management,Printed Media & Signage,564,112.8,676.8,13-Jun-11,COMMUNITIES
Nottinghamshire County Council,03-01991,HIRST SIGNS LIMITED,Soft Facilities Management,Printed Media & Signage,572,114.4,686.4,13-Jun-11,COMMUNITIES
Nottinghamshire County Council,03-01991,HIRST SIGNS LIMITED,Soft Facilities Management,Printed Media & Signage,660,132,792,13-Jun-11,COMMUNITIES
Nottinghamshire County Council,03-01991,HIRST SIGNS LIMITED,Soft Facilities Management,Printed Media & Signage,764,152.8,916.8,13-Jun-11,COMMUNITIES
Nottinghamshire County Council,03-01991,HIRST SIGNS LIMITED,Soft Facilities Management,Printed Media & Signage,794,158.8,952.8,13-Jun-11,COMMUNITIES
